﻿Body Name,Body,Service Area Categorisation,Service Division Categorisation,Responsible Unit,Expenses Type,Detailed Expenses Type,Payment Date,Transaction Number,Payment Amount,Supplier Type,Supplier Name,Supplier Id
Portsmouth City Council,PCC,Planning Services,Business support,Regeneration,Third Party Payments,Private contractors,07/10/19,6324889,870,VENDOR,DP BLINDS LTD,126923
Portsmouth City Council,PCC,Highways and Transport Services,Parking Services,Regeneration,Premises-Related Expenditure,Rents,16/10/19,6326448,50,VENDOR,BOARHUNT GROUP LTD,103726
Portsmouth City Council,PCC,Highways and Transport Services,Parking Services,Regeneration,Third Party Payments,Private contractors,16/10/19,6326448,65,VENDOR,BOARHUNT GROUP LTD,103726
Portsmouth City Council,PCC,Highways and Transport Services,Parking Services,Regeneration,Third Party Payments,Private contractors,16/10/19,6326448,25,VENDOR,BOARHUNT GROUP LTD,103726
Portsmouth City Council,PCC,Highways and Transport Services,Parking Services,Regeneration,Third Party Payments,Private contractors,16/10/19,6326448,50,VENDOR,BOARHUNT GROUP LTD,103726
Portsmouth City Council,PCC,Highways and Transport Services,Parking Services,Regeneration,Third Party Payments,Private contractors,16/10/19,6326448,25,VENDOR,BOARHUNT GROUP LTD,103726
Portsmouth City Council,PCC,Highways and Transport Services,Parking Services,Regeneration,Third Party Payments,Private contractors,16/10/19,6326448,50,VENDOR,BOARHUNT GROUP LTD,103726
Portsmouth City Council,PCC,Highways and Transport Services,Parking Services,Regeneration,Third Party Payments,Private contractors,16/10/19,6326448,50,VENDOR,BOARHUNT GROUP LTD,103726
Portsmouth City Council,PCC,Highways and Transport Services,Parking Services,Regeneration,Third Party Payments,Private contractors,16/10/19,6326448,25,VENDOR,BOARHUNT GROUP LTD,103726
Portsmouth City Council,PCC,Highways and Transport Services,Parking Services,Regeneration,Third Party Payments,Private contractors,16/10/19,6326448,60,VENDOR,BOARHUNT GROUP LTD,103726
Portsmouth City Council,PCC,Highways and Transport Services,Parking Services,Regeneration,Third Party Payments,Private contractors,16/10/19,6326448,130,VENDOR,BOARHUNT GROUP LTD,103726
Portsmouth City Council,PCC,Highways and Transport Services,Parking Services,Regeneration,Third Party Payments,Private contractors,16/10/19,6326448,50,VENDOR,BOARHUNT GROUP LTD,103726
Portsmouth City Council,PCC,Highways and Transport Services,Parking Services,Regeneration,Third Party Payments,Private contractors,16/10/19,6326448,50,VENDOR,BOARHUNT GROUP LTD,103726
Portsmouth City Council,PCC,Highways and Transport Services,Parking Services,Regeneration,Third Party Payments,Private contractors,16/10/19,6326448,50,VENDOR,BOARHUNT GROUP LTD,103726
Portsmouth City Council,PCC,Highways and Transport Services,Parking Services,Regeneration,Third Party Payments,Private contractors,16/10/19,6326448,50,VENDOR,BOARHUNT GROUP LTD,103726
Portsmouth City Council,PCC,Highways and Transport Services,Parking Services,Regeneration,Third Party Payments,Private contractors,16/10/19,6326448,50,VENDOR,BOARHUNT GROUP LTD,103726
Portsmouth City Council,PCC,Highways and Transport Services,Parking Services,Regeneration,Premises-Related Expenditure,Rents,16/10/19,6326448,25,VENDOR,BOARHUNT GROUP LTD,103726
Portsmouth City Council,PCC,Highways and Transport Services,Parking Services,Regeneration,Premises-Related Expenditure,Rents,16/10/19,6326448,50,VENDOR,BOARHUNT GROUP LTD,103726
Portsmouth City Council,PCC,Highways and Transport Services,Parking Services,Regeneration,Third Party Payments,Private contractors,16/10/19,6326448,90,VENDOR,BOARHUNT GROUP LTD,103726
Portsmouth City Council,PCC,Highways and Transport Services,Parking Services,Regeneration,Premises-Related Expenditure,Rents,16/10/19,6326448,1600,VENDOR,BOARHUNT GROUP LTD,103726
Portsmouth City Council,PCC,Cultural and Related Services,Open Spaces,"Culture, Leisure & Regulatory Services",Transport-Related Expenditure,Direct transport costs,16/10/19,6326448,55,VENDOR,BOARHUNT GROUP LTD,103726
Portsmouth City Council,PCC,Highways and Transport Services,Parking Services,Regeneration,Third Party Payments,Private contractors,24/10/19,6328504,50,VENDOR,BOARHUNT GROUP LTD,103726
Portsmouth City Council,PCC,Highways and Transport Services,Parking Services,Regeneration,Third Party Payments,Private contractors,24/10/19,6328504,44,VENDOR,BOARHUNT GROUP LTD,103726
Portsmouth City Council,PCC,Highways and Transport Services,Parking Services,Regeneration,Third Party Payments,Private contractors,24/10/19,6328504,50,VENDOR,BOARHUNT GROUP LTD,103726
Portsmouth City Council,PCC,Highways and Transport Services,Parking Services,Regeneration,Third Party Payments,Private contractors,24/10/19,6328504,30,VENDOR,BOARHUNT GROUP LTD,103726
Portsmouth City Council,PCC,Highways and Transport Services,Parking Services,Regeneration,Third Party Payments,Private contractors,24/10/19,6328504,50,VENDOR,BOARHUNT GROUP LTD,103726
Portsmouth City Council,PCC,Highways and Transport Services,Parking Services,Regeneration,Third Party Payments,Private contractors,24/10/19,6328504,50,VENDOR,BOARHUNT GROUP LTD,103726
Portsmouth City Council,PCC,Highways and Transport Services,Parking Services,Regeneration,Third Party Payments,Private contractors,24/10/19,6328504,44,VENDOR,BOARHUNT GROUP LTD,103726
Portsmouth City Council,PCC,Highways and Transport Services,Parking Services,Regeneration,Third Party Payments,Private contractors,24/10/19,6328504,44,VENDOR,BOARHUNT GROUP LTD,103726
Portsmouth City Council,PCC,Highways and Transport Services,Parking Services,Regeneration,Third Party Payments,Private contractors,24/10/19,6328504,44,VENDOR,BOARHUNT GROUP LTD,103726
Portsmouth City Council,PCC,Highways and Transport Services,Parking Services,Regeneration,Third Party Payments,Private contractors,24/10/19,6328504,44,VENDOR,BOARHUNT GROUP LTD,103726
Portsmouth City Council,PCC,Highways and Transport Services,Parking Services,Regeneration,Third Party Payments,Private contractors,24/10/19,6328504,25,VENDOR,BOARHUNT GROUP LTD,103726
Portsmouth City Council,PCC,Highways and Transport Services,Parking Services,Regeneration,Third Party Payments,Private contractors,24/10/19,6328504,25,VENDOR,BOARHUNT GROUP LTD,103726
Portsmouth City Council,PCC,Children's and Education Services,Children Looked After,Children's Services and Education,Third Party Payments,Other establishments,23/10/19,6328419,4413.43,VENDOR,KEYS GROUP LIMITED,137236
Portsmouth City Council,PCC,Children's and Education Services,Children Looked After,Children's Services and Education,Third Party Payments,Other establishments,23/10/19,6328419,248.14,VENDOR,KEYS GROUP LIMITED,137236
Portsmouth City Council,PCC,Children's and Education Services,Family Support Services,Children's Services and Education,Transport-Related Expenditure,Public transport,09/10/19,6325114,0.64,VENDOR,ATOC LTD,103839
Portsmouth City Council,PCC,Children's and Education Services,Family Support Services,Children's Services and Education,Transport-Related Expenditure,Public transport,09/10/19,6325114,3.2,VENDOR,ATOC LTD,103839
Portsmouth City Council,PCC,Children's and Education Services,Family Support Services,Children's Services and Education,Transport-Related Expenditure,Public transport,09/10/19,6325114,1.31,VENDOR,ATOC LTD,103839
Portsmouth City Council,PCC,Children's and Education Services,Family Support Services,Children's Services and Education,Transport-Related Expenditure,Public transport,09/10/19,6325114,6.57,VENDOR,ATOC LTD,103839
Portsmouth City Council,PCC,Children's and Education Services,Family Support Services,Children's Services and Education,Transport-Related Expenditure,Public transport,09/10/19,6325114,2.64,VENDOR,ATOC LTD,103839
Portsmouth City Council,PCC,Children's and Education Services,Family Support Services,Children's Services and Education,Transport-Related Expenditure,Public transport,09/10/19,6325114,13.19,VENDOR,ATOC LTD,103839
Portsmouth City Council,PCC,Children's and Education Services,Family Support Services,Children's Services and Education,Transport-Related Expenditure,Public transport,09/10/19,6325114,1.55,VENDOR,ATOC LTD,103839
Portsmouth City Council,PCC,Children's and Education Services,Family Support Services,Children's Services and Education,Transport-Related Expenditure,Public transport,09/10/19,6325114,7.75,VENDOR,ATOC LTD,103839
Portsmouth City Council,PCC,Children's and Education Services,Family Support Services,Children's Services and Education,Transport-Related Expenditure,Public transport,09/10/19,6325114,1.23,VENDOR,ATOC LTD,103839
Portsmouth City Council,PCC,Children's and Education Services,Family Support Services,Children's Services and Education,Transport-Related Expenditure,Public transport,09/10/19,6325114,6.15,VENDOR,ATOC LTD,103839
Portsmouth City Council,PCC,Children's and Education Services,Family Support Services,Children's Services and Education,Transport-Related Expenditure,Public transport,09/10/19,6325114,73.9,VENDOR,ATOC LTD,103839
Portsmouth City Council,PCC,Children's and Education Services,Other Children and Family Services,Children's Services and Education,Transport-Related Expenditure,Public transport,09/10/19,6325114,2.56,VENDOR,ATOC LTD,103839
Portsmouth City Council,PCC,Children's and Education Services,Other Children and Family Services,Children's Services and Education,Transport-Related Expenditure,Public transport,09/10/19,6325114,12.81,VENDOR,ATOC LTD,103839
Portsmouth City Council,PCC,Children's and Education Services,Other Children and Family Services,Children's Services and Education,Transport-Related Expenditure,Public transport,09/10/19,6325114,8.1,VENDOR,ATOC LTD,103839
Portsmouth City Council,PCC,Children's and Education Services,Family Support Services,Children's Services and Education,Transport-Related Expenditure,Public transport,09/10/19,6325114,0.77,VENDOR,ATOC LTD,103839
Portsmouth City Council,PCC,Children's and Education Services,Family Support Services,Children's Services and Education,Transport-Related Expenditure,Public transport,09/10/19,6325114,3.84,VENDOR,ATOC LTD,103839
Portsmouth City Council,PCC,Children's and Education Services,Safeguarding Children and Young Peoples Services,Children's Services and Education,Transport-Related Expenditure,Public transport,09/10/19,6325114,0.38,VENDOR,ATOC LTD,103839
Portsmouth City Council,PCC,Children's and Education Services,Safeguarding Children and Young Peoples Services,Children's Services and Education,Transport-Related Expenditure,Public transport,09/10/19,6325114,1.91,VENDOR,ATOC LTD,103839
Portsmouth City Council,PCC,Children's and Education Services,Family Support Services,Children's Services and Education,Transport-Related Expenditure,Public transport,09/10/19,6325114,2.54,VENDOR,ATOC LTD,103839
Portsmouth City Council,PCC,Children's and Education Services,Family Support Services,Children's Services and Education,Transport-Related Expenditure,Public transport,09/10/19,6325114,12.68,VENDOR,ATOC LTD,103839
Portsmouth City Council,PCC,Children's and Education Services,Safeguarding Children and Young Peoples Services,Children's Services and Education,Transport-Related Expenditure,Public transport,09/10/19,6325114,3.01,VENDOR,ATOC LTD,103839
Portsmouth City Council,PCC,Children's and Education Services,Safeguarding Children and Young Peoples Services,Children's Services and Education,Transport-Related Expenditure,Public transport,09/10/19,6325114,15.06,VENDOR,ATOC LTD,103839
Portsmouth City Council,PCC,Children's and Education Services,Safeguarding Children and Young Peoples Services,Children's Services and Education,Transport-Related Expenditure,Public transport,09/10/19,6325114,5,VENDOR,ATOC LTD,103839
Portsmouth City Council,PCC,Children's and Education Services,Family Support Services,Children's Services and Education,Transport-Related Expenditure,Public transport,09/10/19,6325114,26.42,VENDOR,ATOC LTD,103839
Portsmouth City Council,PCC,Children's and Education Services,Family Support Services,Children's Services and Education,Transport-Related Expenditure,Public transport,09/10/19,6325114,132.09,VENDOR,ATOC LTD,103839
Portsmouth City Council,PCC,Children's and Education Services,Family Support Services,Children's Services and Education,Transport-Related Expenditure,Public transport,09/10/19,6325114,803.3,VENDOR,ATOC LTD,103839
Portsmouth City Council,PCC,Children's and Education Services,Children Looked After,Children's Services and Education,Transport-Related Expenditure,Public transport,09/10/19,6325114,0.33,VENDOR,ATOC LTD,103839
Portsmouth City Council,PCC,Children's and Education Services,Children Looked After,Children's Services and Education,Transport-Related Expenditure,Public transport,09/10/19,6325114,1.65,VENDOR,ATOC LTD,103839
Portsmouth City Council,PCC,Children's and Education Services,Safeguarding Children and Young Peoples Services,Children's Services and Education,Transport-Related Expenditure,Public transport,09/10/19,6325114,0.33,VENDOR,ATOC LTD,103839
Portsmouth City Council,PCC,Children's and Education Services,Safeguarding Children and Young Peoples Services,Children's Services and Education,Transport-Related Expenditure,Public transport,09/10/19,6325114,1.65,VENDOR,ATOC LTD,103839
Portsmouth City Council,PCC,Children's and Education Services,Children Looked After,Children's Services and Education,Transport-Related Expenditure,Public transport,09/10/19,6325114,5.99,VENDOR,ATOC LTD,103839
Portsmouth City Council,PCC,Children's and Education Services,Children Looked After,Children's Services and Education,Transport-Related Expenditure,Public transport,09/10/19,6325114,29.94,VENDOR,ATOC LTD,103839
Portsmouth City Council,PCC,Children's and Education Services,Children Looked After,Children's Services and Education,Transport-Related Expenditure,Public transport,09/10/19,6325114,144.1,VENDOR,ATOC LTD,103839
Portsmouth City Council,PCC,Children's and Education Services,Children Looked After,Children's Services and Education,Transport-Related Expenditure,Public transport,09/10/19,6325114,0.33,VENDOR,ATOC LTD,103839
Portsmouth City Council,PCC,Children's and Education Services,Children Looked After,Children's Services and Education,Transport-Related Expenditure,Public transport,09/10/19,6325114,1.65,VENDOR,ATOC LTD,103839
Portsmouth City Council,PCC,Children's and Education Services,Children Looked After,Children's Services and Education,Transport-Related Expenditure,Public transport,09/10/19,6325114,11.92,VENDOR,ATOC LTD,103839
Portsmouth City Council,PCC,Children's and Education Services,Children Looked After,Children's Services and Education,Transport-Related Expenditure,Public transport,09/10/19,6325114,59.6,VENDOR,ATOC LTD,103839
Portsmouth City Council,PCC,Children's and Education Services,Children Looked After,Children's Services and Education,Transport-Related Expenditure,Public transport,09/10/19,6325114,116.5,VENDOR,ATOC LTD,103839
Portsmouth City Council,PCC,Children's and Education Services,Other Children and Family Services,Children's Services and Education,Transport-Related Expenditure,Public transport,09/10/19,6325114,57.13,VENDOR,ATOC LTD,103839
Portsmouth City Council,PCC,Children's and Education Services,Other Children and Family Services,Children's Services and Education,Transport-Related Expenditure,Public transport,09/10/19,6325114,285.63,VENDOR,ATOC LTD,103839
Portsmouth City Council,PCC,Children's and Education Services,Other Children and Family Services,Children's Services and Education,Transport-Related Expenditure,Public transport,09/10/19,6325114,426.3,VENDOR,ATOC LTD,103839
Portsmouth City Council,PCC,Children's and Education Services,Safeguarding Children and Young Peoples Services,Children's Services and Education,Transport-Related Expenditure,Public transport,09/10/19,6325114,0.37,VENDOR,ATOC LTD,103839
Portsmouth City Council,PCC,Children's and Education Services,Safeguarding Children and Young Peoples Services,Children's Services and Education,Transport-Related Expenditure,Public transport,09/10/19,6325114,1.84,VENDOR,ATOC LTD,103839
Portsmouth City Council,PCC,Children's and Education Services,Children Looked After,Children's Services and Education,Transport-Related Expenditure,Public transport,09/10/19,6325114,0.33,VENDOR,ATOC LTD,103839
Portsmouth City Council,PCC,Children's and Education Services,Children Looked After,Children's Services and Education,Transport-Related Expenditure,Public transport,09/10/19,6325114,1.65,VENDOR,ATOC LTD,103839
Portsmouth City Council,PCC,Children's and Education Services,Asylum seekers,Children's Services and Education,Transport-Related Expenditure,Public transport,09/10/19,6325114,12.19,VENDOR,ATOC LTD,103839
Portsmouth City Council,PCC,Children's and Education Services,Asylum seekers,Children's Services and Education,Transport-Related Expenditure,Public transport,09/10/19,6325114,60.96,VENDOR,ATOC LTD,103839
Portsmouth City Council,PCC,Children's and Education Services,Asylum seekers,Children's Services and Education,Transport-Related Expenditure,Public transport,09/10/19,6325114,6.2,VENDOR,ATOC LTD,103839
Portsmouth City Council,PCC,Children's and Education Services,Asylum seekers,Children's Services and Education,Transport-Related Expenditure,Public transport,09/10/19,6325114,4.2,VENDOR,ATOC LTD,103839
Portsmouth City Council,PCC,Children's and Education Services,Asylum seekers,Children's Services and Education,Transport-Related Expenditure,Public transport,09/10/19,6325114,24.2,VENDOR,ATOC LTD,103839
Portsmouth City Council,PCC,Children's and Education Services,Asylum seekers,Children's Services and Education,Transport-Related Expenditure,Public transport,09/10/19,6325114,24.2,VENDOR,ATOC LTD,103839
Portsmouth City Council,PCC,Children's and Education Services,Asylum seekers,Children's Services and Education,Transport-Related Expenditure,Public transport,09/10/19,6325114,39.6,VENDOR,ATOC LTD,103839
Portsmouth City Council,PCC,Children's and Education Services,Asylum seekers,Children's Services and Education,Transport-Related Expenditure,Public transport,09/10/19,6325114,24.2,VENDOR,ATOC LTD,103839
Portsmouth City Council,PCC,Children's and Education Services,Asylum seekers,Children's Services and Education,Transport-Related Expenditure,Public transport,09/10/19,6325114,24.2,VENDOR,ATOC LTD,103839
Portsmouth City Council,PCC,Children's and Education Services,Asylum seekers,Children's Services and Education,Transport-Related Expenditure,Public transport,09/10/19,6325114,16.6,VENDOR,ATOC LTD,103839
Portsmouth City Council,PCC,Children's and Education Services,Asylum seekers,Children's Services and Education,Transport-Related Expenditure,Public transport,09/10/19,6325114,24.2,VENDOR,ATOC LTD,103839
Portsmouth City Council,PCC,Children's and Education Services,Asylum seekers,Children's Services and Education,Transport-Related Expenditure,Public transport,09/10/19,6325114,24.2,VENDOR,ATOC LTD,103839
Portsmouth City Council,PCC,Children's and Education Services,Asylum seekers,Children's Services and Education,Transport-Related Expenditure,Public transport,09/10/19,6325114,24.2,VENDOR,ATOC LTD,103839
Portsmouth City Council,PCC,Children's and Education Services,Asylum seekers,Children's Services and Education,Transport-Related Expenditure,Public transport,09/10/19,6325114,24.2,VENDOR,ATOC LTD,103839
Portsmouth City Council,PCC,Children's and Education Services,Asylum seekers,Children's Services and Education,Transport-Related Expenditure,Public transport,09/10/19,6325114,24.2,VENDOR,ATOC LTD,103839
Portsmouth City Council,PCC,Children's and Education Services,Asylum seekers,Children's Services and Education,Transport-Related Expenditure,Public transport,09/10/19,6325114,24.2,VENDOR,ATOC LTD,103839
Portsmouth City Council,PCC,Children's and Education Services,Asylum seekers,Children's Services and Education,Transport-Related Expenditure,Public transport,09/10/19,6325114,40.8,VENDOR,ATOC LTD,103839
Portsmouth City Council,PCC,Children's and Education Services,Asylum seekers,Children's Services and Education,Transport-Related Expenditure,Public transport,09/10/19,6325114,31.7,VENDOR,ATOC LTD,103839
Portsmouth City Council,PCC,Children's and Education Services,Asylum seekers,Children's Services and Education,Transport-Related Expenditure,Public transport,09/10/19,6325114,31.7,VENDOR,ATOC LTD,103839
Portsmouth City Council,PCC,Children's and Education Services,Safeguarding Children and Young Peoples Services,Children's Services and Education,Transport-Related Expenditure,Public transport,09/10/19,6325114,10.59,VENDOR,ATOC LTD,103839
Portsmouth City Council,PCC,Children's and Education Services,Safeguarding Children and Young Peoples Services,Children's Services and Education,Transport-Related Expenditure,Public transport,09/10/19,6325114,52.93,VENDOR,ATOC LTD,103839
Portsmouth City Council,PCC,Children's and Education Services,Safeguarding Children and Young Peoples Services,Children's Services and Education,Transport-Related Expenditure,Public transport,09/10/19,6325114,53,VENDOR,ATOC LTD,103839
Portsmouth City Council,PCC,Children's and Education Services,Safeguarding Children and Young Peoples Services,Children's Services and Education,Transport-Related Expenditure,Public transport,09/10/19,6325114,50.7,VENDOR,ATOC LTD,103839
Portsmouth City Council,PCC,Children's and Education Services,Safeguarding Children and Young Peoples Services,Children's Services and Education,Transport-Related Expenditure,Public transport,09/10/19,6325114,6.2,VENDOR,ATOC LTD,103839
Portsmouth City Council,PCC,Children's and Education Services,Safeguarding Children and Young Peoples Services,Children's Services and Education,Transport-Related Expenditure,Public transport,09/10/19,6325114,0.25,VENDOR,ATOC LTD,103839
Portsmouth City Council,PCC,Children's and Education Services,Safeguarding Children and Young Peoples Services,Children's Services and Education,Transport-Related Expenditure,Public transport,09/10/19,6325114,1.25,VENDOR,ATOC LTD,103839
Portsmouth City Council,PCC,Children's and Education Services,Safeguarding Children and Young Peoples Services,Children's Services and Education,Transport-Related Expenditure,Public transport,09/10/19,6325114,0.33,VENDOR,ATOC LTD,103839
Portsmouth City Council,PCC,Children's and Education Services,Safeguarding Children and Young Peoples Services,Children's Services and Education,Transport-Related Expenditure,Public transport,09/10/19,6325114,1.65,VENDOR,ATOC LTD,103839
Portsmouth City Council,PCC,Children's and Education Services,Other Children and Family Services,Children's Services and Education,Transport-Related Expenditure,Public transport,09/10/19,6325114,1.13,VENDOR,ATOC LTD,103839
Portsmouth City Council,PCC,Children's and Education Services,Other Children and Family Services,Children's Services and Education,Transport-Related Expenditure,Public transport,09/10/19,6325114,13.17,VENDOR,ATOC LTD,103839
Portsmouth City Council,PCC,Children's and Education Services,Other Children and Family Services,Children's Services and Education,Transport-Related Expenditure,Public transport,09/10/19,6325114,0.33,VENDOR,ATOC LTD,103839
Portsmouth City Council,PCC,Children's and Education Services,Other Children and Family Services,Children's Services and Education,Transport-Related Expenditure,Public transport,09/10/19,6325114,1.65,VENDOR,ATOC LTD,103839
Portsmouth City Council,PCC,Children's and Education Services,Safeguarding Children and Young Peoples Services,Children's Services and Education,Transport-Related Expenditure,Public transport,09/10/19,6325114,1.5,VENDOR,ATOC LTD,103839
Portsmouth City Council,PCC,Children's and Education Services,Youth Justice,Children's Services and Education,Transport-Related Expenditure,Public transport,09/10/19,6325114,3.9,VENDOR,ATOC LTD,103839
Portsmouth City Council,PCC,Children's and Education Services,Youth Justice,Children's Services and Education,Transport-Related Expenditure,Public transport,09/10/19,6325114,19.53,VENDOR,ATOC LTD,103839
Portsmouth City Council,PCC,Children's and Education Services,Family Support Services,Children's Services and Education,Transport-Related Expenditure,Public transport,31/10/19,6329830,58.2,VENDOR,ATOC LTD,103839
Portsmouth City Council,PCC,Children's and Education Services,Family Support Services,Children's Services and Education,Transport-Related Expenditure,Public transport,31/10/19,6329830,408.9,VENDOR,ATOC LTD,103839
Portsmouth City Council,PCC,Children's and Education Services,Children Looked After,Children's Services and Education,Transport-Related Expenditure,Public transport,31/10/19,6329830,213,VENDOR,ATOC LTD,103839
Portsmouth City Council,PCC,Children's and Education Services,Children Looked After,Children's Services and Education,Transport-Related Expenditure,Public transport,31/10/19,6329830,41.9,VENDOR,ATOC LTD,103839
Portsmouth City Council,PCC,Children's and Education Services,Other Children and Family Services,Children's Services and Education,Transport-Related Expenditure,Public transport,31/10/19,6329830,447.3,VENDOR,ATOC LTD,103839
Portsmouth City Council,PCC,Children's and Education Services,Asylum seekers,Children's Services and Education,Transport-Related Expenditure,Public transport,31/10/19,6329830,20.55,VENDOR,ATOC LTD,103839
Portsmouth City Council,PCC,Children's and Education Services,Asylum seekers,Children's Services and Education,Transport-Related Expenditure,Public transport,31/10/19,6329830,23.9,VENDOR,ATOC LTD,103839
Portsmouth City Council,PCC,Children's and Education Services,Asylum seekers,Children's Services and Education,Transport-Related Expenditure,Public transport,31/10/19,6329830,33.2,VENDOR,ATOC LTD,103839
Portsmouth City Council,PCC,Children's and Education Services,Asylum seekers,Children's Services and Education,Transport-Related Expenditure,Public transport,31/10/19,6329830,31.7,VENDOR,ATOC LTD,103839
Portsmouth City Council,PCC,Children's and Education Services,Asylum seekers,Children's Services and Education,Transport-Related Expenditure,Public transport,31/10/19,6329830,31.7,VENDOR,ATOC LTD,103839
Portsmouth City Council,PCC,Children's and Education Services,Asylum seekers,Children's Services and Education,Transport-Related Expenditure,Public transport,31/10/19,6329830,31.7,VENDOR,ATOC LTD,103839
Portsmouth City Council,PCC,Children's and Education Services,Safeguarding Children and Young Peoples Services,Children's Services and Education,Transport-Related Expenditure,Public transport,31/10/19,6329830,56,VENDOR,ATOC LTD,103839
Portsmouth City Council,PCC,Children's and Education Services,Safeguarding Children and Young Peoples Services,Children's Services and Education,Transport-Related Expenditure,Public transport,31/10/19,6329830,85.4,VENDOR,ATOC LTD,103839
Portsmouth City Council,PCC,Housing Services,Homelessness,"Housing, Neighbourhood and Building Services",Transport-Related Expenditure,Public transport,31/10/19,6329830,21.6,VENDOR,ATOC LTD,103839
Portsmouth City Council,PCC,Housing Services,Homelessness,"Housing, Neighbourhood and Building Services",Transport-Related Expenditure,Public transport,31/10/19,6329830,98.1,VENDOR,ATOC LTD,103839
Portsmouth City Council,PCC,Planning Services,Business support,Regeneration,Supplies and Services,Communications and computing,04/10/19,6324807,14.68,VENDOR,TECHNOLOGY WITHIN LIMITED,143958
Portsmouth City Council,PCC,Planning Services,Business support,Regeneration,Supplies and Services,Communications and computing,04/10/19,6324807,1346.2,VENDOR,TECHNOLOGY WITHIN LIMITED,143958
Portsmouth City Council,PCC,Cultural and Related Services,Open Spaces,"Culture, Leisure & Regulatory Services",Supplies and Services,"Equipment, furniture and materials",02/10/19,6324478,2596,VENDOR,SYNCHEMICALS LIMITED,146048
Portsmouth City Council,PCC,Cultural and Related Services,Open Spaces,"Culture, Leisure & Regulatory Services",Premises-Related Expenditure,Grounds maintenance costs,16/10/19,6326914,4966.79,COMPANY,J B CORRIE AND CO LTD,100911
Portsmouth City Council,PCC,Children's and Education Services,Children Looked After,Children's Services and Education,Third Party Payments,Other establishments,18/10/19,6327202,3011.34,VENDOR,HORIZON CARE AND EDUCATION GROUP LTD,138450
Portsmouth City Council,PCC,Children's and Education Services,Children Looked After,Children's Services and Education,Third Party Payments,Other establishments,18/10/19,6327202,3011.34,VENDOR,HORIZON CARE AND EDUCATION GROUP LTD,138450
Portsmouth City Council,PCC,Children's and Education Services,Children Looked After,Children's Services and Education,Third Party Payments,Other establishments,18/10/19,6327202,2914.2,VENDOR,HORIZON CARE AND EDUCATION GROUP LTD,138450
Portsmouth City Council,PCC,Children's and Education Services,Children Looked After,Children's Services and Education,Third Party Payments,Other establishments,18/10/19,6327202,194.28,VENDOR,HORIZON CARE AND EDUCATION GROUP LTD,138450
Portsmouth City Council,PCC,Children's and Education Services,Children Looked After,Children's Services and Education,Third Party Payments,Other establishments,23/10/19,6328418,27857.14,VENDOR,KEYS GROUP LIMITED,137236
Portsmouth City Council,PCC,Other,Suspense and Capital Schemes,Capital - Leader,Capital Charges,Capital Expenditure (WIP),16/10/19,6326904,3204,VENDOR,HAMPSHIRE FLAG COMPANY,100374
Portsmouth City Council,PCC,Solent LEP,Business support,OTHER,Employees,Indirect employee expenses,22/10/19,6327913,445,VENDOR,PMG LTD,107775
Portsmouth City Council,PCC,Adult Social Care,Assistive Equipment & Technology,"Housing, Neighbourhood and Building Services",Supplies and Services,"Equipment, furniture and materials",02/10/19,6324487,1793.5,VENDOR,TYNETEC B/U OF LEGRAND ELECTRIC LTD,140439
Portsmouth City Council,PCC,Adult Social Care,Assistive Equipment & Technology,"Housing, Neighbourhood and Building Services",Supplies and Services,"Equipment, furniture and materials",02/10/19,6324487,137.1,VENDOR,TYNETEC B/U OF LEGRAND ELECTRIC LTD,140439
Portsmouth City Council,PCC,Adult Social Care,Assistive Equipment & Technology,"Housing, Neighbourhood and Building Services",Supplies and Services,"Equipment, furniture and materials",02/10/19,6324487,961.7,VENDOR,TYNETEC B/U OF LEGRAND ELECTRIC LTD,140439
Portsmouth City Council,PCC,Adult Social Care,Assistive Equipment & Technology,"Housing, Neighbourhood and Building Services",Supplies and Services,"Equipment, furniture and materials",02/10/19,6324487,22.5,VENDOR,TYNETEC B/U OF LEGRAND ELECTRIC LTD,140439
Portsmouth City Council,PCC,Adult Social Care,Physical Support Older People (65-74),Adult Services,Supplies and Services,"Equipment, furniture and materials",01/10/19,6323916,1795,VENDOR,MANGAR INTERNATIONAL LTD,100983
Portsmouth City Council,PCC,Adult Social Care,Physical Support Older People (65-74),Adult Services,Supplies and Services,"Printing, stationery and general office expenses",01/10/19,6323916,10.21,VENDOR,MANGAR INTERNATIONAL LTD,100983
Portsmouth City Council,PCC,Other,Suspense and Capital Schemes,"Capital - Health, Wellbeing & Social Care",Capital Charges,Capital Expenditure (WIP),21/10/19,6327351,11070.59,VENDOR,PORTSDOWN OFFICE LTD,100059
Portsmouth City Council,PCC,Other,Suspense and Capital Schemes,"Capital - Health, Wellbeing & Social Care",Capital Charges,Capital Expenditure (WIP),21/10/19,6327351,50000,VENDOR,PORTSDOWN OFFICE LTD,100059
Portsmouth City Council,PCC,Other,Suspense and Capital Schemes,Capital - Traffic & Transportation,Capital Charges,Capital Expenditure (WIP),28/10/19,6329047,650,VENDOR,HYPERION INFRASTRUCTURE CONSULTANCY,144798
Portsmouth City Council,PCC,Other,Suspense and Capital Schemes,Capital - Traffic & Transportation,Capital Charges,Capital Expenditure (WIP),28/10/19,6329047,3470,VENDOR,HYPERION INFRASTRUCTURE CONSULTANCY,144798
Portsmouth City Council,PCC,Highways and Transport Services,"Airports, Harbours and Toll Facilities",Portsmouth International Port,Third Party Payments,Private contractors,23/10/19,6327963,920.2,VENDOR,ALERE TOXICOLOGY PLC,121708
Portsmouth City Council,PCC,Environmental and Regulatory Services,Regulatory Services,"Culture, Leisure & Regulatory Services",Supplies and Services,Services,28/10/19,6328909,950,VENDOR,ALERE TOXICOLOGY PLC,121708
Portsmouth City Council,PCC,Adult Social Care,Physical Support Older People (85+),Adult Services,Third Party Payments,Other establishments,30/10/19,6329259,3744.6,VENDOR,AGINCARE UK,134367
Portsmouth City Council,PCC,Other,Suspense and Capital Schemes,Capital - Education,Capital Charges,REFCUS,04/10/19,6324752,94545,COMPANY,MOUNTJOY LIMITED,129869
Portsmouth City Council,PCC,Other,Suspense and Capital Schemes,Capital - Housing General Fund,Capital Charges,Capital Expenditure (WIP),07/10/19,6324924,4718.04,COMPANY,MOUNTJOY LIMITED,129869
Portsmouth City Council,PCC,Other,Suspense and Capital Schemes,Capital - Housing General Fund,Capital Charges,Capital Expenditure (WIP),07/10/19,6324924,909.5,COMPANY,MOUNTJOY LIMITED,129869
Portsmouth City Council,PCC,Housing Revenue Account,Repairs and Maintenance,"Housing, Neighbourhood and Building Services",Premises-Related Expenditure,"Repairs, alterations and maintenance of buildings",21/10/19,6327344,20510.43,COMPANY,MOUNTJOY LIMITED,129869
Portsmouth City Council,PCC,Adult Social Care,Physical Support Older People (85+),Adult Services,Third Party Payments,Other establishments,04/10/19,6324664,3744.6,VENDOR,AGINCARE UK,134367
Portsmouth City Council,PCC,Cultural and Related Services,Open Spaces,"Culture, Leisure & Regulatory Services",Premises-Related Expenditure,Water Services,25/10/19,6328681,1358.97,VENDOR,CASTLE WATER LIMITED,142798
Portsmouth City Council,PCC,Cultural and Related Services,Open Spaces,"Culture, Leisure & Regulatory Services",Premises-Related Expenditure,Water Services,22/10/19,6327841,816.73,VENDOR,CASTLE WATER LIMITED,142798
Portsmouth City Council,PCC,Other,Suspense and Capital Schemes,"Housing, Neighbourhood and Building Services",Premises-Related Expenditure,Water Services,25/10/19,6328681,17.24,VENDOR,CASTLE WATER LIMITED,142798
Portsmouth City Council,PCC,Housing Revenue Account,"Rents, Rates, Taxes and Other Charges","Housing, Neighbourhood and Building Services",Premises-Related Expenditure,Water Services,22/10/19,6327918,701.34,VENDOR,PORTSMOUTH WATER LTD,100253
Portsmouth City Council,PCC,Housing Services,Homelessness,"Housing, Neighbourhood and Building Services",Supplies and Services,Grants and subscriptions,01/10/19,6323965,15000,VENDOR,TWO SAINTS LTD,102584
Portsmouth City Council,PCC,Other,Suspense and Capital Schemes,Capital - Children & Families,Capital Charges,Capital Expenditure (WIP),14/10/19,6326227,62199.25,VENDOR,SERVELEC GROUP LTD,144037
Portsmouth City Council,PCC,Other,Suspense and Capital Schemes,Capital - Children & Families,Capital Charges,Capital Expenditure (WIP),14/10/19,6326227,74639.1,VENDOR,SERVELEC GROUP LTD,144037
Portsmouth City Council,PCC,Cultural and Related Services,Library Service,"Culture, Leisure & Regulatory Services",Supplies and Services,"Equipment, furniture and materials",11/10/19,6326053,800,VENDOR,SPLODGE DESIGNS,120430
Portsmouth City Council,PCC,Adult Social Care,Social Care Activities,Adult Services,Third Party Payments,Other establishments,17/10/19,6327118,1059.52,VENDOR,SISTERLY CARE LTD,126324
Portsmouth City Council,PCC,Adult Social Care,Social Care Activities,Adult Services,Third Party Payments,Other establishments,17/10/19,6327118,1059.52,VENDOR,SISTERLY CARE LTD,126324
Portsmouth City Council,PCC,Adult Social Care,Social Care Activities,Adult Services,Third Party Payments,Other establishments,17/10/19,6327118,657.47,VENDOR,SISTERLY CARE LTD,126324
Portsmouth City Council,PCC,Adult Social Care,Physical Support Adults (18 - 64),Adult Services,Third Party Payments,Other establishments,17/10/19,6327118,397.32,VENDOR,SISTERLY CARE LTD,126324
Portsmouth City Council,PCC,Adult Social Care,Physical Support Older People (85+),Adult Services,Third Party Payments,Other establishments,17/10/19,6327118,406.78,VENDOR,SISTERLY CARE LTD,126324
Portsmouth City Council,PCC,Adult Social Care,Physical Support Older People (85+),Adult Services,Third Party Payments,Other establishments,17/10/19,6327118,264.88,VENDOR,SISTERLY CARE LTD,126324
Portsmouth City Council,PCC,Adult Social Care,Physical Support Older People (85+),Adult Services,Third Party Payments,Other establishments,17/10/19,6327118,889.24,VENDOR,SISTERLY CARE LTD,126324
Portsmouth City Council,PCC,Adult Social Care,Physical Support Older People (85+),Adult Services,Third Party Payments,Other establishments,17/10/19,6327118,-70.95,VENDOR,SISTERLY CARE LTD,126324
Portsmouth City Council,PCC,Adult Social Care,Physical Support Older People (85+),Adult Services,Third Party Payments,Other establishments,17/10/19,6327118,666.93,VENDOR,SISTERLY CARE LTD,126324
Portsmouth City Council,PCC,Adult Social Care,Physical Support Older People (85+),Adult Services,Third Party Payments,Other establishments,17/10/19,6327118,1177.77,VENDOR,SISTERLY CARE LTD,126324
Portsmouth City Council,PCC,Adult Social Care,Physical Support Older People (85+),Adult Services,Third Party Payments,Other establishments,17/10/19,6327118,1177.77,VENDOR,SISTERLY CARE LTD,126324
Portsmouth City Council,PCC,Adult Social Care,Physical Support Older People (85+),Adult Services,Third Party Payments,Other establishments,17/10/19,6327118,586.52,VENDOR,SISTERLY CARE LTD,126324
Portsmouth City Council,PCC,Adult Social Care,Physical Support Older People (85+),Adult Services,Third Party Payments,Other establishments,17/10/19,6327118,1191.96,VENDOR,SISTERLY CARE LTD,126324
Portsmouth City Council,PCC,Housing Services,Housing Strategy,"Housing, Neighbourhood and Building Services",Supplies and Services,Grants and subscriptions,07/10/19,6324943,225,VENDOR,ROYAL INSTITUTION OF CHARTERED SURVEYORS,100075
Portsmouth City Council,PCC,Housing Services,Housing Strategy,"Housing, Neighbourhood and Building Services",Supplies and Services,Grants and subscriptions,07/10/19,6324943,800,VENDOR,ROYAL INSTITUTION OF CHARTERED SURVEYORS,100075
Portsmouth City Council,PCC,Support Service / Transparency Costs Unallocated,AMS,"Housing, Neighbourhood and Building Services",Supplies and Services,Grants and subscriptions,07/10/19,6324943,225,VENDOR,ROYAL INSTITUTION OF CHARTERED SURVEYORS,100075
Portsmouth City Council,PCC,Support Service / Transparency Costs Unallocated,AMS,"Housing, Neighbourhood and Building Services",Supplies and Services,Grants and subscriptions,07/10/19,6324943,800,VENDOR,ROYAL INSTITUTION OF CHARTERED SURVEYORS,100075
Portsmouth City Council,PCC,Children's and Education Services,Safeguarding Children and Young Peoples Services,Children's Services and Education,Premises-Related Expenditure,Rents,01/10/19,6323936,2024.89,VENDOR,PORTSMOUTH GRAMMAR SCHOOL,101120
Portsmouth City Council,PCC,Cultural and Related Services,Culture and Heritage,"Culture, Leisure & Regulatory Services",Third Party Payments,Private contractors,02/10/19,6324440,1500,SOLETRADER,Classified as 'personal data' (under the Data Protection Act 2018),145567
Portsmouth City Council,PCC,Children's and Education Services,Other Children and Family Services,Children's Services and Education,Third Party Payments,Other establishments,14/10/19,6326105,811.35,VENDOR,APPLETREE SUPPORT LTD,126285
Portsmouth City Council,PCC,Children's and Education Services,Other Children and Family Services,Children's Services and Education,Third Party Payments,Other establishments,14/10/19,6326105,1379.31,VENDOR,APPLETREE SUPPORT LTD,126285
Portsmouth City Council,PCC,Children's and Education Services,Other Children and Family Services,Children's Services and Education,Third Party Payments,Other establishments,14/10/19,6326105,829.38,VENDOR,APPLETREE SUPPORT LTD,126285
Portsmouth City Council,PCC,Children's and Education Services,Other Children and Family Services,Children's Services and Education,Third Party Payments,Other establishments,11/10/19,6325807,856.44,VENDOR,APPLETREE SUPPORT LTD,126285
Portsmouth City Council,PCC,Children's and Education Services,Other Children and Family Services,Children's Services and Education,Third Party Payments,Other establishments,11/10/19,6325807,865.44,VENDOR,APPLETREE SUPPORT LTD,126285
Portsmouth City Council,PCC,Cultural and Related Services,Culture and Heritage,"Culture, Leisure & Regulatory Services",Third Party Payments,Private contractors,11/10/19,6326013,9700.65,VENDOR,PORTSMOUTH DIOCESE,102084
Portsmouth City Council,PCC,Other,Suspense and Capital Schemes,Capital - Culture & City Development,Capital Charges,Capital Expenditure (WIP),24/10/19,6328564,29388.25,VENDOR,HISTORIC BUILDINGS RESTORATION,138335
Portsmouth City Council,PCC,Other,Suspense and Capital Schemes,Capital - Housing General Fund,Capital Charges,REFCUS,02/10/19,6324495,6221.07,VENDOR,WICOR BUILDING SERVICES LIMITED,144144
Portsmouth City Council,PCC,Housing Services,Private Sector Housing Renewal,"Housing, Neighbourhood and Building Services",Income,Other grants reimbursements and contributions,02/10/19,6324495,-652.56,VENDOR,WICOR BUILDING SERVICES LIMITED,144144
Portsmouth City Council,PCC,Adult Social Care,Physical Support Older People (85+),Adult Services,Third Party Payments,Other establishments,11/10/19,6325795,2839.91,VENDOR,AGINCARE UK,134367
Portsmouth City Council,PCC,Adult Social Care,Physical Support Older People (85+),Adult Services,Third Party Payments,Other establishments,11/10/19,6325795,4871.65,VENDOR,AGINCARE UK,134367
Portsmouth City Council,PCC,Adult Social Care,Assistive Equipment & Technology,Adult Services,Premises-Related Expenditure,"Repairs, alterations and maintenance of buildings",02/10/19,6323981,440,SOLETRADER,ALC BUILDING SERVICES,117194
Portsmouth City Council,PCC,Children's and Education Services,Other Education and Community Budget,Children's Services and Education,Transport-Related Expenditure,Car allowances,11/10/19,6325853,1855,VENDOR,CITY WIDE TAXIS,103408
Portsmouth City Council,PCC,Children's and Education Services,Other Education and Community Budget,Children's Services and Education,Transport-Related Expenditure,Car allowances,11/10/19,6325853,742.5,VENDOR,CITY WIDE TAXIS,103408
Portsmouth City Council,PCC,Children's and Education Services,Other Education and Community Budget,Children's Services and Education,Transport-Related Expenditure,Car allowances,11/10/19,6325853,850,VENDOR,CITY WIDE TAXIS,103408
Portsmouth City Council,PCC,Children's and Education Services,Other Education and Community Budget,Children's Services and Education,Transport-Related Expenditure,Car allowances,11/10/19,6325853,850,VENDOR,CITY WIDE TAXIS,103408
Portsmouth City Council,PCC,Children's and Education Services,Other Education and Community Budget,Children's Services and Education,Transport-Related Expenditure,Car allowances,11/10/19,6325853,992,VENDOR,CITY WIDE TAXIS,103408
Portsmouth City Council,PCC,Children's and Education Services,Other Education and Community Budget,Children's Services and Education,Transport-Related Expenditure,Car allowances,11/10/19,6325853,2700,VENDOR,CITY WIDE TAXIS,103408
Portsmouth City Council,PCC,Planning Services,Business support,Regeneration,Third Party Payments,Private contractors,01/10/19,6323844,3437.5,VENDOR,ACK TOURISM LTD,144786
Portsmouth City Council,PCC,Adult Social Care,Support with Memory and Cognition Older People (85+),Adult Services,Third Party Payments,Other establishments,11/10/19,6325798,2244.4,VENDOR,ALEXANDRA ROSE RESIDENTIAL CARE HOME,101952
Portsmouth City Council,PCC,Adult Social Care,Support with Memory and Cognition Older People (85+),Adult Services,Third Party Payments,Other establishments,11/10/19,6325798,72.4,VENDOR,ALEXANDRA ROSE RESIDENTIAL CARE HOME,101952
Portsmouth City Council,PCC,Highways and Transport Services,"Airports, Harbours and Toll Facilities",Portsmouth International Port,Employees,Indirect employee expenses,03/10/19,6324606,600,SOLETRADER,PHILL PREECE TRAINING,138448
Portsmouth City Council,PCC,Cultural and Related Services,Open Spaces,"Culture, Leisure & Regulatory Services",Supplies and Services,"Equipment, furniture and materials",28/10/19,6329016,430.65,VENDOR,COUNTRY GARDEN PLANT SALES LTD,143052
Portsmouth City Council,PCC,Children's and Education Services,Children Looked After,Children's Services and Education,Third Party Payments,Other establishments,22/10/19,6327887,5284.8,VENDOR,INTEGRATED SERVICES PROGRAMME,136360
Portsmouth City Council,PCC,Children's and Education Services,Children Looked After,Children's Services and Education,Third Party Payments,Other establishments,22/10/19,6327887,5284.8,VENDOR,INTEGRATED SERVICES PROGRAMME,136360
Portsmouth City Council,PCC,Children's and Education Services,Children Looked After,Children's Services and Education,Third Party Payments,Other establishments,22/10/19,6327887,5284.8,VENDOR,INTEGRATED SERVICES PROGRAMME,136360
Portsmouth City Council,PCC,Children's and Education Services,Children Looked After,Children's Services and Education,Third Party Payments,Other establishments,25/10/19,6328818,3600,VENDOR,ORANGE GROVE FOSTERCARE LIMITED,140168
Portsmouth City Council,PCC,Children's and Education Services,Other Children and Family Services,Children's Services and Education,Employees,Indirect employee expenses,11/10/19,6325977,504,VENDOR, JOHN'S COFFEE HOUSE,143065
Portsmouth City Council,PCC,Housing Services,Homelessness,"Housing, Neighbourhood and Building Services",Third Party Payments,Private contractors,04/10/19,6324744,270,VENDOR,M J H REMOVALS LTD,105441
Portsmouth City Council,PCC,Housing Services,Homelessness,"Housing, Neighbourhood and Building Services",Third Party Payments,Private contractors,04/10/19,6324744,240,VENDOR,M J H REMOVALS LTD,105441
Portsmouth City Council,PCC,Housing Services,Homelessness,"Housing, Neighbourhood and Building Services",Third Party Payments,Private contractors,18/10/19,6327218,340,VENDOR,M J H REMOVALS LTD,105441
Portsmouth City Council,PCC,Housing Services,Homelessness,"Housing, Neighbourhood and Building Services",Third Party Payments,Private contractors,18/10/19,6327218,260,VENDOR,M J H REMOVALS LTD,105441
Portsmouth City Council,PCC,Housing Services,Homelessness,"Housing, Neighbourhood and Building Services",Third Party Payments,Private contractors,18/10/19,6327218,280,VENDOR,M J H REMOVALS LTD,105441
Portsmouth City Council,PCC,Housing Services,Homelessness,"Housing, Neighbourhood and Building Services",Third Party Payments,Private contractors,18/10/19,6327218,380,VENDOR,M J H REMOVALS LTD,105441
Portsmouth City Council,PCC,Housing Services,Homelessness,"Housing, Neighbourhood and Building Services",Third Party Payments,Private contractors,18/10/19,6327218,430,VENDOR,M J H REMOVALS LTD,105441
Portsmouth City Council,PCC,Housing Services,Homelessness,"Housing, Neighbourhood and Building Services",Third Party Payments,Private contractors,18/10/19,6327218,370,VENDOR,M J H REMOVALS LTD,105441
Portsmouth City Council,PCC,Children's and Education Services,Children Looked After,Children's Services and Education,Premises-Related Expenditure,Rents,31/10/19,6329898,950,VENDOR,ESA PROPERTY LTD,146243
Portsmouth City Council,PCC,Adult Social Care,Support with Memory and Cognition Older People (85+),Adult Services,Third Party Payments,Other establishments,11/10/19,6325798,3985.67,VENDOR,ALEXANDRA ROSE RESIDENTIAL CARE HOME,101952
Portsmouth City Council,PCC,Cultural and Related Services,Recreation and Sport,"Culture, Leisure & Regulatory Services",Supplies and Services,Grants and subscriptions,11/10/19,6326062,1250,VENDOR,STAMSHAW & TIPNER COMMUNITY CENTRE,108330
Portsmouth City Council,PCC,Highways and Transport Services,"Airports, Harbours and Toll Facilities",Portsmouth International Port,Supplies and Services,"Equipment, furniture and materials",17/10/19,6327088,3554.25,VENDOR,L3 COMMUNICATIONS UK LIMITED,108150
Portsmouth City Council,PCC,Environmental and Regulatory Services,"Cemetery, Cremation and Mortuary Services","Culture, Leisure & Regulatory Services",Third Party Payments,Private contractors,08/10/19,6324979,616.67,VENDOR,ALVER-STONES PORTSMOUTH LIMITED,111892
Portsmouth City Council,PCC,Environmental and Regulatory Services,Flood Defence and Land Drainage,Regeneration,Third Party Payments,Private contractors,23/10/19,6328423,18602.5,COMPANY,LES SEARLE PLANT HIRE & SALES LIMITED,146059
Portsmouth City Council,PCC,Costs below Net Cost of Services,Trading,Regeneration,Premises-Related Expenditure,"Repairs, alterations and maintenance of buildings",28/10/19,6329025,629.38,VENDOR,DETECT FIRE AND SECURITY LTD,126216
Portsmouth City Council,PCC,Costs below Net Cost of Services,Trading,Regeneration,Third Party Payments,Private contractors,28/10/19,6328926,2825.5,VENDOR,BEVAN BRITTAN LLP,108894
Portsmouth City Council,PCC,Adult Social Care,Information and Early Intervention,Adult Services,Third Party Payments,Other establishments,31/10/19,6329826,18678,VENDOR,APETITO LTD,100127
Portsmouth City Council,PCC,Adult Social Care,Information and Early Intervention,Adult Services,Third Party Payments,Other establishments,31/10/19,6329826,1508,VENDOR,APETITO LTD,100127
Portsmouth City Council,PCC,Adult Social Care,Information and Early Intervention,Adult Services,Income,Customer and client receipts,31/10/19,6329826,-20186,VENDOR,APETITO LTD,100127
Portsmouth City Council,PCC,Cultural and Related Services,Library Service,"Culture, Leisure & Regulatory Services",Premises-Related Expenditure,Cleaning and domestic supplies,21/10/19,6327270,989.15,VENDOR,1ST CHOICE HIGH LEVEL CLEANING & MAINTENANCE LIMITED,101385
Portsmouth City Council,PCC,Cultural and Related Services,Culture and Heritage,"Culture, Leisure & Regulatory Services",Supplies and Services,Services,24/10/19,6328586,550,VENDOR,OXFORD UNIVERSITY,109021
Portsmouth City Council,PCC,Adult Social Care,Learning Disability Support  Adults (18 - 64),Adult Services,Third Party Payments,Other establishments,11/10/19,6325796,7537.03,VENDOR,AITCH CARE HOMES (LONDON) LIMITED,125606
Portsmouth City Council,PCC,Children's and Education Services,Children Looked After,Children's Services and Education,Third Party Payments,Other establishments,21/10/19,6327355,7971.34,VENDOR,SAKURA CARE LIMITED,144940
Portsmouth City Council,PCC,Children's and Education Services,Asylum seekers,Children's Services and Education,Third Party Payments,Other establishments,21/10/19,6327355,5968.7,VENDOR,SAKURA CARE LIMITED,144940
Portsmouth City Council,PCC,Children's and Education Services,Family Support Services,Children's Services and Education,Premises-Related Expenditure,"Repairs, alterations and maintenance of buildings",23/10/19,6328407,890,COMPANY,H MONFARED (BUILDERS) LIMITED,126008
Portsmouth City Council,PCC,Support Service / Transparency Costs Unallocated,Information Services,Corporate Services,Supplies and Services,Communications and computing,25/10/19,6328674,1900,VENDOR,BYTES SECURITY PARTNERSHIP LTD,132113
Portsmouth City Council,PCC,Housing Services,Homelessness,"Housing, Neighbourhood and Building Services",Third Party Payments,Private contractors,18/10/19,6327147,465.5,VENDOR,Classified as 'personal data' (under the Data Protection Act 2018),141332
Portsmouth City Council,PCC,Highways and Transport Services,Structural Maintenance,Regeneration,Supplies and Services,Communications and computing,25/10/19,6328732,7595.22,VENDOR,ELGIN,137378
Portsmouth City Council,PCC,Highways and Transport Services,Traffic Management and Road Safety,Regeneration,Third Party Payments,Private contractors,23/10/19,6328425,648.44,VENDOR,LEWIS MARQUEES LTD,100481
Portsmouth City Council,PCC,Housing Services,Homelessness,"Housing, Neighbourhood and Building Services",Third Party Payments,Private contractors,18/10/19,6327147,465.5,VENDOR,Classified as 'personal data' (under the Data Protection Act 2018),141332
Portsmouth City Council,PCC,Adult Social Care,Support with Memory and Cognition Older People (85+),Adult Services,Third Party Payments,Other establishments,11/10/19,6325798,1266.04,VENDOR,ALEXANDRA ROSE RESIDENTIAL CARE HOME,101952
Portsmouth City Council,PCC,Cultural and Related Services,Open Spaces,"Culture, Leisure & Regulatory Services",Premises-Related Expenditure,Grounds maintenance costs,18/10/19,6327194,825.4,VENDOR,GEDNEY BULB COMPANY LTD,146071
Portsmouth City Council,PCC,Cultural and Related Services,Open Spaces,"Culture, Leisure & Regulatory Services",Premises-Related Expenditure,Grounds maintenance costs,18/10/19,6327194,35.3,VENDOR,GEDNEY BULB COMPANY LTD,146071
Portsmouth City Council,PCC,Cultural and Related Services,Open Spaces,"Culture, Leisure & Regulatory Services",Premises-Related Expenditure,Grounds maintenance costs,18/10/19,6327194,12.6,VENDOR,GEDNEY BULB COMPANY LTD,146071
Portsmouth City Council,PCC,Housing Services,Homelessness,"Housing, Neighbourhood and Building Services",Third Party Payments,Private contractors,18/10/19,6327147,465.5,VENDOR,Classified as 'personal data' (under the Data Protection Act 2018),141332
Portsmouth City Council,PCC,Housing Services,Homelessness,"Housing, Neighbourhood and Building Services",Third Party Payments,Private contractors,18/10/19,6327147,931,VENDOR,Classified as 'personal data' (under the Data Protection Act 2018),141332
Portsmouth City Council,PCC,Housing Services,Homelessness,"Housing, Neighbourhood and Building Services",Third Party Payments,Private contractors,18/10/19,6327147,232.75,VENDOR,Classified as 'personal data' (under the Data Protection Act 2018),141332
Portsmouth City Council,PCC,Cultural and Related Services,Tourism,"Culture, Leisure & Regulatory Services",Third Party Payments,Private contractors,02/10/19,6324484,2800,VENDOR,TOURISM SOUTH EAST,106123
Portsmouth City Council,PCC,Support Service / Transparency Costs Unallocated,Personnel,Corporate Services,Employees,Direct employee expenses,03/10/19,6324525,64528.24,VENDOR,COMENSURA LTD,140265
Portsmouth City Council,PCC,Support Service / Transparency Costs Unallocated,Personnel,Corporate Services,Employees,Direct employee expenses,11/10/19,6325858,67486.2,VENDOR,COMENSURA LTD,140265
Portsmouth City Council,PCC,Support Service / Transparency Costs Unallocated,Personnel,Corporate Services,Employees,Direct employee expenses,18/10/19,6327169,61014.33,VENDOR,COMENSURA LTD,140265
Portsmouth City Council,PCC,Adult Social Care,Learning Disability Support  Adults (18 - 64),Adult Services,Third Party Payments,Other establishments,11/10/19,6325796,7861.6,VENDOR,AITCH CARE HOMES (LONDON) LIMITED,125606
Portsmouth City Council,PCC,Support Service / Transparency Costs Unallocated,Personnel,Corporate Services,Employees,Direct employee expenses,25/10/19,6328689,60376.61,VENDOR,COMENSURA LTD,140265
Portsmouth City Council,PCC,Other,Suspense and Capital Schemes,Capital - Traffic & Transportation,Capital Charges,Capital Expenditure (WIP),22/10/19,6327864,750,COMPANY,CYCLE WORKS LTD,113048
Portsmouth City Council,PCC,Cultural and Related Services,Culture and Heritage,"Culture, Leisure & Regulatory Services",Supplies and Services,"Equipment, furniture and materials",18/10/19,6327203,461.85,VENDOR,HORNBY HOBBIES LTD,144541
Portsmouth City Council,PCC,Cultural and Related Services,Culture and Heritage,"Culture, Leisure & Regulatory Services",Supplies and Services,"Equipment, furniture and materials",10/10/19,6325723,833.49,VENDOR,HARPER COLLINS PUBLISHERS,102232
Portsmouth City Council,PCC,Other,Suspense and Capital Schemes,Capital - Environment & Climate Change,Capital Charges,Capital Expenditure (WIP),29/10/19,6329217,924.24,VENDOR,OVE ARUP AND PARTNERS LIMITED,109635
Portsmouth City Council,PCC,Housing Services,Homelessness,"Housing, Neighbourhood and Building Services",Third Party Payments,Private contractors,18/10/19,6327147,66.5,VENDOR,Classified as 'personal data' (under the Data Protection Act 2018),141332
Portsmouth City Council,PCC,Housing Services,Homelessness,"Housing, Neighbourhood and Building Services",Third Party Payments,Private contractors,18/10/19,6327147,332.5,VENDOR,Classified as 'personal data' (under the Data Protection Act 2018),141332
Portsmouth City Council,PCC,Support Service / Transparency Costs Unallocated,AMS,"Housing, Neighbourhood and Building Services",Supplies and Services,Communications and computing,01/10/19,6323875,548.3,VENDOR,CIVICA UK LTD,104001
Portsmouth City Council,PCC,Support Service / Transparency Costs Unallocated,Financial Services,Finance & Revenues,Supplies and Services,Communications and computing,04/10/19,6324692,432.86,VENDOR,CIVICA UK LTD,104001
Portsmouth City Council,PCC,Support Service / Transparency Costs Unallocated,Financial Services,Finance & Revenues,Supplies and Services,Communications and computing,04/10/19,6324692,193.18,VENDOR,CIVICA UK LTD,104001
Portsmouth City Council,PCC,Children's and Education Services,Other Education and Community Budget,Children's Services and Education,Supplies and Services,Communications and computing,07/10/19,6324855,57.1,VENDOR,CIVICA UK LTD,104001
Portsmouth City Council,PCC,Other,Suspense and Capital Schemes,Capital - Resources,Capital Charges,Capital Expenditure (WIP),07/10/19,6324855,1298.58,VENDOR,CIVICA UK LTD,104001
Portsmouth City Council,PCC,Support Service / Transparency Costs Unallocated,AMS,Regeneration,Supplies and Services,Communications and computing,09/10/19,6325124,432.86,VENDOR,CIVICA UK LTD,104001
Portsmouth City Council,PCC,Support Service / Transparency Costs Unallocated,AMS,Regeneration,Supplies and Services,Communications and computing,16/10/19,6326457,432.86,VENDOR,CIVICA UK LTD,104001
Portsmouth City Council,PCC,Support Service / Transparency Costs Unallocated,AMS,Regeneration,Supplies and Services,Communications and computing,16/10/19,6326457,193.18,VENDOR,CIVICA UK LTD,104001
Portsmouth City Council,PCC,Support Service / Transparency Costs Unallocated,AMS,Regeneration,Supplies and Services,Communications and computing,30/10/19,6329278,432.86,VENDOR,CIVICA UK LTD,104001
Portsmouth City Council,PCC,Housing Services,Homelessness,"Housing, Neighbourhood and Building Services",Third Party Payments,Private contractors,18/10/19,6327147,133,VENDOR,Classified as 'personal data' (under the Data Protection Act 2018),141332
Portsmouth City Council,PCC,Corporate and Democratic Core,Democratic Representation and Management,"Culture, Leisure & Regulatory Services",Third Party Payments,Private contractors,31/10/19,6329942,400.2,VENDOR,ROYAL NAVAL CLUB & ROYAL ALBERT YACHT CLUB,111690
Portsmouth City Council,PCC,Corporate and Democratic Core,Democratic Representation and Management,"Culture, Leisure & Regulatory Services",Third Party Payments,Private contractors,31/10/19,6329942,37.5,VENDOR,ROYAL NAVAL CLUB & ROYAL ALBERT YACHT CLUB,111690
Portsmouth City Council,PCC,Housing Services,Homelessness,"Housing, Neighbourhood and Building Services",Third Party Payments,Private contractors,18/10/19,6327147,186.25,VENDOR,Classified as 'personal data' (under the Data Protection Act 2018),141332
Portsmouth City Council,PCC,Housing Services,Homelessness,"Housing, Neighbourhood and Building Services",Third Party Payments,Private contractors,18/10/19,6327147,432.25,VENDOR,Classified as 'personal data' (under the Data Protection Act 2018),141332
Portsmouth City Council,PCC,Support Service / Transparency Costs Unallocated,Personnel,Corporate Services,Employees,Direct employee expenses,09/10/19,6325626,906.5,VENDOR,THE OYSTER PARTNERSHIP,120530
Portsmouth City Council,PCC,Support Service / Transparency Costs Unallocated,Personnel,Corporate Services,Employees,Direct employee expenses,09/10/19,6325626,8.1,VENDOR,THE OYSTER PARTNERSHIP,120530
Portsmouth City Council,PCC,Costs below Net Cost of Services,Trading,Regeneration,Supplies and Services,Services,08/10/19,6325093,5152.34,VENDOR,THE OYSTER PARTNERSHIP,120530
Portsmouth City Council,PCC,Costs below Net Cost of Services,Trading,Regeneration,Supplies and Services,Services,15/10/19,6326422,2847,VENDOR,THE OYSTER PARTNERSHIP,120530
Portsmouth City Council,PCC,Costs below Net Cost of Services,Trading,Regeneration,Supplies and Services,Services,15/10/19,6326422,2944.09,VENDOR,THE OYSTER PARTNERSHIP,120530
Portsmouth City Council,PCC,Housing Services,Homelessness,"Housing, Neighbourhood and Building Services",Third Party Payments,Private contractors,18/10/19,6327147,432.25,VENDOR,Classified as 'personal data' (under the Data Protection Act 2018),141332
Portsmouth City Council,PCC,Costs below Net Cost of Services,Trading,Regeneration,Supplies and Services,Services,22/10/19,6327943,2524.34,VENDOR,THE OYSTER PARTNERSHIP,120530
Portsmouth City Council,PCC,Costs below Net Cost of Services,Trading,Regeneration,Supplies and Services,Services,30/10/19,6329808,2962.34,VENDOR,THE OYSTER PARTNERSHIP,120530
Portsmouth City Council,PCC,Housing Services,Homelessness,"Housing, Neighbourhood and Building Services",Third Party Payments,Private contractors,18/10/19,6327147,232.75,VENDOR,Classified as 'personal data' (under the Data Protection Act 2018),141332
Portsmouth City Council,PCC,Housing Services,Homelessness,"Housing, Neighbourhood and Building Services",Third Party Payments,Private contractors,18/10/19,6327147,99.75,VENDOR,Classified as 'personal data' (under the Data Protection Act 2018),141332
Portsmouth City Council,PCC,Housing Services,Homelessness,"Housing, Neighbourhood and Building Services",Third Party Payments,Private contractors,18/10/19,6327147,1862,VENDOR,Classified as 'personal data' (under the Data Protection Act 2018),141332
Portsmouth City Council,PCC,Housing Services,Homelessness,"Housing, Neighbourhood and Building Services",Third Party Payments,Private contractors,18/10/19,6327147,1400,VENDOR,Classified as 'personal data' (under the Data Protection Act 2018),141332
Portsmouth City Council,PCC,Housing Services,Homelessness,"Housing, Neighbourhood and Building Services",Third Party Payments,Private contractors,18/10/19,6327147,665,VENDOR,Classified as 'personal data' (under the Data Protection Act 2018),141332
Portsmouth City Council,PCC,Housing Services,Homelessness,"Housing, Neighbourhood and Building Services",Third Party Payments,Private contractors,18/10/19,6327147,2065,VENDOR,Classified as 'personal data' (under the Data Protection Act 2018),141332
Portsmouth City Council,PCC,Other,Suspense and Capital Schemes,Capital - Housing General Fund,Capital Charges,REFCUS,30/10/19,6329348,2980,COMPANY,DOLPHIN MOBILITY LTD,135682
Portsmouth City Council,PCC,Adult Social Care,Physical Support Older People (85+),Adult Services,Third Party Payments,Other establishments,01/10/19,6323945,17388.48,VENDOR,SEVACARE (UK) LTD,136163
Portsmouth City Council,PCC,Adult Social Care,Physical Support Older People (85+),Adult Services,Third Party Payments,Other establishments,01/10/19,6323945,11497.92,VENDOR,SEVACARE (UK) LTD,136163
Portsmouth City Council,PCC,Adult Social Care,Physical Support Older People (85+),Adult Services,Third Party Payments,Other establishments,01/10/19,6323945,20616.96,VENDOR,SEVACARE (UK) LTD,136163
Portsmouth City Council,PCC,Adult Social Care,Physical Support Older People (85+),Adult Services,Third Party Payments,Other establishments,01/10/19,6323945,17388.48,VENDOR,SEVACARE (UK) LTD,136163
Portsmouth City Council,PCC,Housing Revenue Account,Special Services,"Housing, Neighbourhood and Building Services",Employees,Direct employee expenses,02/10/19,6324462,3660.16,VENDOR,SEVACARE (UK) LTD,136163
Portsmouth City Council,PCC,Housing Services,Homelessness,"Housing, Neighbourhood and Building Services",Third Party Payments,Private contractors,18/10/19,6327147,232.75,VENDOR,Classified as 'personal data' (under the Data Protection Act 2018),141332
Portsmouth City Council,PCC,Other,Suspense and Capital Schemes,Capital - Environment & Climate Change,Capital Charges,Capital Expenditure (WIP),31/10/19,6329907,37575.97,VENDOR,HASKONINGDHV UK LIMITED,109400
Portsmouth City Council,PCC,Adult Social Care,Physical Support Older People (85+),Adult Services,Third Party Payments,Other establishments,30/10/19,6329789,17388.48,VENDOR,SEVACARE (UK) LTD,136163
Portsmouth City Council,PCC,Adult Social Care,Physical Support Older People (85+),Adult Services,Third Party Payments,Other establishments,30/10/19,6329789,11497.92,VENDOR,SEVACARE (UK) LTD,136163
Portsmouth City Council,PCC,Adult Social Care,Physical Support Older People (85+),Adult Services,Third Party Payments,Other establishments,30/10/19,6329789,20616.96,VENDOR,SEVACARE (UK) LTD,136163
Portsmouth City Council,PCC,Adult Social Care,Physical Support Older People (85+),Adult Services,Third Party Payments,Other establishments,30/10/19,6329789,17388.48,VENDOR,SEVACARE (UK) LTD,136163
Portsmouth City Council,PCC,Housing Revenue Account,Special Services,"Housing, Neighbourhood and Building Services",Employees,Direct employee expenses,30/10/19,6329790,3649.52,VENDOR,SEVACARE (UK) LTD,136163
Portsmouth City Council,PCC,Support Service / Transparency Costs Unallocated,AMS,Regeneration,Supplies and Services,Services,01/10/19,6323941,1950,VENDOR,REC LIMITED,145881
Portsmouth City Council,PCC,Support Service / Transparency Costs Unallocated,AMS,"Housing, Neighbourhood and Building Services",Transport-Related Expenditure,Direct transport costs,28/10/19,6328903,168.85,VENDOR,A & J LAWRENCE LTD,141283
Portsmouth City Council,PCC,Children's and Education Services,Other Education and Community Budget,Children's Services and Education,Transport-Related Expenditure,Direct transport costs,28/10/19,6328903,60,VENDOR,A & J LAWRENCE LTD,141283
Portsmouth City Council,PCC,Housing Revenue Account,Special Services,"Housing, Neighbourhood and Building Services",Transport-Related Expenditure,Direct transport costs,28/10/19,6328903,335.16,VENDOR,A & J LAWRENCE LTD,141283
Portsmouth City Council,PCC,Housing Revenue Account,Special Services,"Housing, Neighbourhood and Building Services",Transport-Related Expenditure,Direct transport costs,28/10/19,6328903,150,VENDOR,A & J LAWRENCE LTD,141283
Portsmouth City Council,PCC,Children's and Education Services,Other Education and Community Budget,Children's Services and Education,Transport-Related Expenditure,Direct transport costs,28/10/19,6328903,34.8,VENDOR,A & J LAWRENCE LTD,141283
Portsmouth City Council,PCC,Housing Revenue Account,Special Services,"Housing, Neighbourhood and Building Services",Transport-Related Expenditure,Direct transport costs,28/10/19,6328903,150,VENDOR,A & J LAWRENCE LTD,141283
Portsmouth City Council,PCC,Housing Revenue Account,Special Services,"Housing, Neighbourhood and Building Services",Transport-Related Expenditure,Direct transport costs,28/10/19,6328903,150,VENDOR,A & J LAWRENCE LTD,141283
Portsmouth City Council,PCC,Housing Revenue Account,Special Services,"Housing, Neighbourhood and Building Services",Transport-Related Expenditure,Direct transport costs,28/10/19,6328903,150,VENDOR,A & J LAWRENCE LTD,141283
Portsmouth City Council,PCC,Housing Revenue Account,Special Services,"Housing, Neighbourhood and Building Services",Transport-Related Expenditure,Direct transport costs,28/10/19,6328903,150,VENDOR,A & J LAWRENCE LTD,141283
Portsmouth City Council,PCC,Housing Revenue Account,Special Services,"Housing, Neighbourhood and Building Services",Transport-Related Expenditure,Direct transport costs,28/10/19,6328903,150,VENDOR,A & J LAWRENCE LTD,141283
Portsmouth City Council,PCC,Other,Suspense and Capital Schemes,Capital - Leader,Capital Charges,Capital Expenditure (WIP),31/10/19,6329932,7100,VENDOR,PARKER TORRINGTON LTD,106526
Portsmouth City Council,PCC,Housing Services,Homelessness,"Housing, Neighbourhood and Building Services",Third Party Payments,Private contractors,18/10/19,6327147,1550,VENDOR,Classified as 'personal data' (under the Data Protection Act 2018),141332
Portsmouth City Council,PCC,Housing Services,Homelessness,"Housing, Neighbourhood and Building Services",Third Party Payments,Private contractors,18/10/19,6327147,1750,VENDOR,Classified as 'personal data' (under the Data Protection Act 2018),141332
Portsmouth City Council,PCC,Housing Revenue Account,Special Services,"Housing, Neighbourhood and Building Services",Transport-Related Expenditure,Direct transport costs,28/10/19,6328903,51.64,VENDOR,A & J LAWRENCE LTD,141283
Portsmouth City Council,PCC,Adult Social Care,Learning Disability Support  Adults (18 - 64),Adult Services,Third Party Payments,Other establishments,11/10/19,6325796,8582.04,VENDOR,AITCH CARE HOMES (LONDON) LIMITED,125606
Portsmouth City Council,PCC,Solent LEP,Business support,OTHER,Third Party Payments,Private contractors,16/10/19,6326450,843.4,SOLETRADER,Classified as 'personal data' (under the Data Protection Act 2018),146156
Portsmouth City Council,PCC,Adult Social Care,Physical Support Older People (85+),Adult Services,Third Party Payments,Other establishments,18/10/19,6327145,945.28,VENDOR,ALLIED HEALTH-SERVICES LIMITED,137338
Portsmouth City Council,PCC,Corporate and Democratic Core,Corporate Management,Corporate Services,Supplies and Services,"Printing, stationery and general office expenses",08/10/19,6325012,114.4,VENDOR,EASTRIO 1 LTD,144641
Portsmouth City Council,PCC,Corporate and Democratic Core,Corporate Management,Corporate Services,Supplies and Services,"Printing, stationery and general office expenses",08/10/19,6325012,185.9,VENDOR,EASTRIO 1 LTD,144641
Portsmouth City Council,PCC,Corporate and Democratic Core,Corporate Management,Corporate Services,Supplies and Services,"Printing, stationery and general office expenses",08/10/19,6325012,114.4,VENDOR,EASTRIO 1 LTD,144641
Portsmouth City Council,PCC,Corporate and Democratic Core,Corporate Management,Corporate Services,Supplies and Services,"Printing, stationery and general office expenses",08/10/19,6325012,114.4,VENDOR,EASTRIO 1 LTD,144641
Portsmouth City Council,PCC,Planning Services,Development Control,Regeneration,Supplies and Services,Communications and computing,04/10/19,6324730,330.24,VENDOR,IDOX SOFTWARE LTD,113608
Portsmouth City Council,PCC,Environmental and Regulatory Services,Regulatory Services,"Culture, Leisure & Regulatory Services",Supplies and Services,Communications and computing,04/10/19,6324730,330.24,VENDOR,IDOX SOFTWARE LTD,113608
Portsmouth City Council,PCC,Cultural and Related Services,Recreation and Sport,"Culture, Leisure & Regulatory Services",Supplies and Services,Grants and subscriptions,07/10/19,6324904,1625,VENDOR,HIGHBURY AREA COMMUNITY ASSOCIATION,104488
Portsmouth City Council,PCC,Housing Services,Homelessness,"Housing, Neighbourhood and Building Services",Third Party Payments,Private contractors,31/10/19,6329824,465.5,VENDOR,Classified as 'personal data' (under the Data Protection Act 2018),141332
Portsmouth City Council,PCC,Housing Services,Homelessness,"Housing, Neighbourhood and Building Services",Third Party Payments,Private contractors,31/10/19,6329824,518.75,VENDOR,Classified as 'personal data' (under the Data Protection Act 2018),141332
Portsmouth City Council,PCC,Housing Services,Homelessness,"Housing, Neighbourhood and Building Services",Third Party Payments,Private contractors,31/10/19,6329824,252.75,VENDOR,Classified as 'personal data' (under the Data Protection Act 2018),141332
Portsmouth City Council,PCC,Housing Services,Homelessness,"Housing, Neighbourhood and Building Services",Third Party Payments,Private contractors,31/10/19,6329824,465.5,VENDOR,Classified as 'personal data' (under the Data Protection Act 2018),141332
Portsmouth City Council,PCC,Housing Services,Homelessness,"Housing, Neighbourhood and Building Services",Third Party Payments,Private contractors,31/10/19,6329824,665,VENDOR,Classified as 'personal data' (under the Data Protection Act 2018),141332
Portsmouth City Council,PCC,Housing Services,Homelessness,"Housing, Neighbourhood and Building Services",Third Party Payments,Private contractors,31/10/19,6329824,465.5,VENDOR,Classified as 'personal data' (under the Data Protection Act 2018),141332
Portsmouth City Council,PCC,Support Service / Transparency Costs Unallocated,Procurement,Finance & Revenues,Supplies and Services,Communications and computing,10/10/19,6325731,3433.49,VENDOR,IN-TEND LTD,121323
Portsmouth City Council,PCC,Housing Services,Homelessness,"Housing, Neighbourhood and Building Services",Third Party Payments,Private contractors,31/10/19,6329824,798,VENDOR,Classified as 'personal data' (under the Data Protection Act 2018),141332
Portsmouth City Council,PCC,Housing Services,Homelessness,"Housing, Neighbourhood and Building Services",Third Party Payments,Private contractors,31/10/19,6329824,698.25,VENDOR,Classified as 'personal data' (under the Data Protection Act 2018),141332
Portsmouth City Council,PCC,Housing Services,Homelessness,"Housing, Neighbourhood and Building Services",Third Party Payments,Private contractors,31/10/19,6329824,232.75,VENDOR,Classified as 'personal data' (under the Data Protection Act 2018),141332
Portsmouth City Council,PCC,Children's and Education Services,Family Support Services,Children's Services and Education,Third Party Payments,Other establishments,30/10/19,6329344,50,VENDOR,DAVID HOWARD LIMITED,141296
Portsmouth City Council,PCC,Adult Social Care,Physical Support Older People (85+),Adult Services,Third Party Payments,Other establishments,18/10/19,6327145,341.82,VENDOR,ALLIED HEALTH-SERVICES LIMITED,137338
Portsmouth City Council,PCC,Housing Services,Homelessness,"Housing, Neighbourhood and Building Services",Third Party Payments,Private contractors,31/10/19,6329824,232.75,VENDOR,Classified as 'personal data' (under the Data Protection Act 2018),141332
Portsmouth City Council,PCC,Housing Services,Homelessness,"Housing, Neighbourhood and Building Services",Third Party Payments,Private contractors,31/10/19,6329824,931,VENDOR,Classified as 'personal data' (under the Data Protection Act 2018),141332
Portsmouth City Council,PCC,Housing Services,Homelessness,"Housing, Neighbourhood and Building Services",Third Party Payments,Private contractors,31/10/19,6329824,700,VENDOR,Classified as 'personal data' (under the Data Protection Act 2018),141332
Portsmouth City Council,PCC,Housing Services,Homelessness,"Housing, Neighbourhood and Building Services",Third Party Payments,Private contractors,31/10/19,6329824,700,VENDOR,Classified as 'personal data' (under the Data Protection Act 2018),141332
Portsmouth City Council,PCC,Housing Services,Homelessness,"Housing, Neighbourhood and Building Services",Third Party Payments,Private contractors,31/10/19,6329824,66.5,VENDOR,Classified as 'personal data' (under the Data Protection Act 2018),141332
Portsmouth City Council,PCC,Adult Social Care,Physical Support Older People (85+),Adult Services,Third Party Payments,Other establishments,18/10/19,6327145,135.04,VENDOR,ALLIED HEALTH-SERVICES LIMITED,137338
Portsmouth City Council,PCC,Adult Social Care,Physical Support Older People (85+),Adult Services,Third Party Payments,Other establishments,18/10/19,6327145,945.28,VENDOR,ALLIED HEALTH-SERVICES LIMITED,137338
Portsmouth City Council,PCC,Adult Social Care,Physical Support Older People (85+),Adult Services,Third Party Payments,Other establishments,18/10/19,6327145,270.08,VENDOR,ALLIED HEALTH-SERVICES LIMITED,137338
Portsmouth City Council,PCC,Central Services,Elections,Corporate Services,Supplies and Services,"Printing, stationery and general office expenses",07/10/19,6324897,881.02,VENDOR,FINANCIAL DATA MANANGEMENT PLC,102246
Portsmouth City Council,PCC,Planning Services,Business support,Regeneration,Third Party Payments,Private contractors,25/10/19,6328746,2200,COMPANY,HAMPSHIRE COMMERCIAL REFURBISHMENT LTD,139067
Portsmouth City Council,PCC,Planning Services,Business support,Regeneration,Third Party Payments,Private contractors,25/10/19,6328746,900,COMPANY,HAMPSHIRE COMMERCIAL REFURBISHMENT LTD,139067
Portsmouth City Council,PCC,Cultural and Related Services,Allocation of Management & Admin,Corporate Services,Supplies and Services,Communications and computing,17/10/19,6327072,16520,VENDOR,GRANICUS,144626
Portsmouth City Council,PCC,Housing Services,Homelessness,"Housing, Neighbourhood and Building Services",Supplies and Services,Grants and subscriptions,17/10/19,6327104,800,VENDOR,OPENRENT LIMITED,146178
Portsmouth City Council,PCC,Housing Services,Homelessness,"Housing, Neighbourhood and Building Services",Supplies and Services,Grants and subscriptions,25/10/19,6328743,700,VENDOR,Classified as 'personal data' (under the Data Protection Act 2018),146223
Portsmouth City Council,PCC,Other,Suspense and Capital Schemes,"Housing, Neighbourhood and Building Services",Third Party Payments,Private contractors,29/10/19,6329200,450000,OTHER LOCAL AUTHORITY,HAMPSHIRE COUNTY COUNCIL,100030
Portsmouth City Council,PCC,Planning Services,Business support,Regeneration,Premises-Related Expenditure,"Repairs, alterations and maintenance of buildings",08/10/19,6325077,20.16,VENDOR,SIX DEGREES TECHNOLOGY GROUP LTD,137034
Portsmouth City Council,PCC,Planning Services,Business support,Regeneration,Premises-Related Expenditure,"Repairs, alterations and maintenance of buildings",08/10/19,6325077,37.32,VENDOR,SIX DEGREES TECHNOLOGY GROUP LTD,137034
Portsmouth City Council,PCC,Cultural and Related Services,Recreation and Sport,"Culture, Leisure & Regulatory Services",Premises-Related Expenditure,"Repairs, alterations and maintenance of buildings",08/10/19,6325077,37.32,VENDOR,SIX DEGREES TECHNOLOGY GROUP LTD,137034
Portsmouth City Council,PCC,Support Service / Transparency Costs Unallocated,LLM,"Housing, Neighbourhood and Building Services",Premises-Related Expenditure,"Repairs, alterations and maintenance of buildings",08/10/19,6325077,57.48,VENDOR,SIX DEGREES TECHNOLOGY GROUP LTD,137034
Portsmouth City Council,PCC,Support Service / Transparency Costs Unallocated,LLM,"Housing, Neighbourhood and Building Services",Premises-Related Expenditure,"Repairs, alterations and maintenance of buildings",08/10/19,6325077,18.71,VENDOR,SIX DEGREES TECHNOLOGY GROUP LTD,137034
Portsmouth City Council,PCC,Support Service / Transparency Costs Unallocated,LLM,"Housing, Neighbourhood and Building Services",Premises-Related Expenditure,"Repairs, alterations and maintenance of buildings",08/10/19,6325077,18.66,VENDOR,SIX DEGREES TECHNOLOGY GROUP LTD,137034
Portsmouth City Council,PCC,Support Service / Transparency Costs Unallocated,LLM,"Housing, Neighbourhood and Building Services",Premises-Related Expenditure,"Repairs, alterations and maintenance of buildings",08/10/19,6325077,18.66,VENDOR,SIX DEGREES TECHNOLOGY GROUP LTD,137034
Portsmouth City Council,PCC,Support Service / Transparency Costs Unallocated,LLM,"Housing, Neighbourhood and Building Services",Premises-Related Expenditure,"Repairs, alterations and maintenance of buildings",08/10/19,6325077,40.32,VENDOR,SIX DEGREES TECHNOLOGY GROUP LTD,137034
Portsmouth City Council,PCC,Support Service / Transparency Costs Unallocated,LLM,"Housing, Neighbourhood and Building Services",Premises-Related Expenditure,"Repairs, alterations and maintenance of buildings",08/10/19,6325077,40.32,VENDOR,SIX DEGREES TECHNOLOGY GROUP LTD,137034
Portsmouth City Council,PCC,Support Service / Transparency Costs Unallocated,LLM,"Housing, Neighbourhood and Building Services",Premises-Related Expenditure,"Repairs, alterations and maintenance of buildings",08/10/19,6325077,20.16,VENDOR,SIX DEGREES TECHNOLOGY GROUP LTD,137034
Portsmouth City Council,PCC,Support Service / Transparency Costs Unallocated,LLM,"Housing, Neighbourhood and Building Services",Premises-Related Expenditure,"Repairs, alterations and maintenance of buildings",08/10/19,6325077,20.16,VENDOR,SIX DEGREES TECHNOLOGY GROUP LTD,137034
Portsmouth City Council,PCC,Support Service / Transparency Costs Unallocated,LLM,"Housing, Neighbourhood and Building Services",Premises-Related Expenditure,"Repairs, alterations and maintenance of buildings",08/10/19,6325077,20.16,VENDOR,SIX DEGREES TECHNOLOGY GROUP LTD,137034
Portsmouth City Council,PCC,Support Service / Transparency Costs Unallocated,LLM,"Housing, Neighbourhood and Building Services",Premises-Related Expenditure,"Repairs, alterations and maintenance of buildings",08/10/19,6325077,18.66,VENDOR,SIX DEGREES TECHNOLOGY GROUP LTD,137034
Portsmouth City Council,PCC,Support Service / Transparency Costs Unallocated,LLM,"Housing, Neighbourhood and Building Services",Premises-Related Expenditure,"Repairs, alterations and maintenance of buildings",08/10/19,6325077,18.66,VENDOR,SIX DEGREES TECHNOLOGY GROUP LTD,137034
Portsmouth City Council,PCC,Housing Revenue Account,Repairs and Maintenance,"Housing, Neighbourhood and Building Services",Premises-Related Expenditure,"Repairs, alterations and maintenance of buildings",08/10/19,6325077,1505.16,VENDOR,SIX DEGREES TECHNOLOGY GROUP LTD,137034
Portsmouth City Council,PCC,Children's and Education Services,Special Schools,Children's Services and Education,Third Party Payments,Other establishments,21/10/19,6327327,4827.14,VENDOR,HILLCREST CHILDRENS SERVICES LIMITED,117913
Portsmouth City Council,PCC,Children's and Education Services,Special Schools,Children's Services and Education,Third Party Payments,Other establishments,21/10/19,6327327,4827.14,VENDOR,HILLCREST CHILDRENS SERVICES LIMITED,117913
Portsmouth City Council,PCC,Highways and Transport Services,Parking Services,Regeneration,Supplies and Services,Services,25/10/19,6328802,458.33,SOLETRADER,Classified as 'personal data' (under the Data Protection Act 2018),142601
Portsmouth City Council,PCC,Cultural and Related Services,Culture and Heritage,"Culture, Leisure & Regulatory Services",Supplies and Services,Services,15/10/19,6326281,958.9,VENDOR,CONSTANTINE LTD,119820
Portsmouth City Council,PCC,Planning Services,Business support,Regeneration,Third Party Payments,Private contractors,08/10/19,6325024,895.25,COMPANY,HAMPSHIRE COMMERCIAL REFURBISHMENT LTD,139067
Portsmouth City Council,PCC,Planning Services,Business support,Regeneration,Third Party Payments,Private contractors,08/10/19,6325024,2800,COMPANY,HAMPSHIRE COMMERCIAL REFURBISHMENT LTD,139067
Portsmouth City Council,PCC,Adult Social Care,Social Care Activities,Adult Services,Third Party Payments,Other establishments,02/10/19,6324003,1360.86,VENDOR,CREATIVE ADVANCES LTD,100117
Portsmouth City Council,PCC,Adult Social Care,Social Care Activities,Adult Services,Third Party Payments,Other establishments,02/10/19,6324003,1359.38,VENDOR,CREATIVE ADVANCES LTD,100117
Portsmouth City Council,PCC,Adult Social Care,Physical Support Adults (18 - 64),Adult Services,Third Party Payments,Other establishments,02/10/19,6324003,220.68,VENDOR,CREATIVE ADVANCES LTD,100117
Portsmouth City Council,PCC,Adult Social Care,Physical Support Adults (18 - 64),Adult Services,Third Party Payments,Other establishments,02/10/19,6324003,165.51,VENDOR,CREATIVE ADVANCES LTD,100117
Portsmouth City Council,PCC,Adult Social Care,Physical Support Adults (18 - 64),Adult Services,Third Party Payments,Other establishments,02/10/19,6324003,698.82,VENDOR,CREATIVE ADVANCES LTD,100117
Portsmouth City Council,PCC,Adult Social Care,Learning Disability Support  Adults (18 - 64),Adult Services,Third Party Payments,Other establishments,02/10/19,6324003,220.68,VENDOR,CREATIVE ADVANCES LTD,100117
Portsmouth City Council,PCC,Adult Social Care,Learning Disability Support  Adults (18 - 64),Adult Services,Third Party Payments,Other establishments,02/10/19,6324003,275.85,VENDOR,CREATIVE ADVANCES LTD,100117
Portsmouth City Council,PCC,Adult Social Care,Learning Disability Support  Adults (18 - 64),Adult Services,Third Party Payments,Other establishments,02/10/19,6324003,900.13,VENDOR,CREATIVE ADVANCES LTD,100117
Portsmouth City Council,PCC,Adult Social Care,Learning Disability Support  Adults (18 - 64),Adult Services,Third Party Payments,Other establishments,02/10/19,6324003,1861.99,VENDOR,CREATIVE ADVANCES LTD,100117
Portsmouth City Council,PCC,Adult Social Care,Learning Disability Support  Adults (18 - 64),Adult Services,Third Party Payments,Other establishments,02/10/19,6324003,275.85,VENDOR,CREATIVE ADVANCES LTD,100117
Portsmouth City Council,PCC,Adult Social Care,Learning Disability Support  Adults (18 - 64),Adult Services,Third Party Payments,Other establishments,02/10/19,6324003,628.74,VENDOR,CREATIVE ADVANCES LTD,100117
Portsmouth City Council,PCC,Adult Social Care,Learning Disability Support  Adults (18 - 64),Adult Services,Third Party Payments,Other establishments,02/10/19,6324003,1014.45,VENDOR,CREATIVE ADVANCES LTD,100117
Portsmouth City Council,PCC,Adult Social Care,Learning Disability Support  Adults (18 - 64),Adult Services,Third Party Payments,Other establishments,02/10/19,6324003,257.18,VENDOR,CREATIVE ADVANCES LTD,100117
Portsmouth City Council,PCC,Adult Social Care,Learning Disability Support  Adults (18 - 64),Adult Services,Third Party Payments,Other establishments,02/10/19,6324003,853.29,VENDOR,CREATIVE ADVANCES LTD,100117
Portsmouth City Council,PCC,Adult Social Care,Learning Disability Support  Adults (18 - 64),Adult Services,Third Party Payments,Other establishments,02/10/19,6324003,2443.21,VENDOR,CREATIVE ADVANCES LTD,100117
Portsmouth City Council,PCC,Adult Social Care,Learning Disability Support  Adults (18 - 64),Adult Services,Third Party Payments,Other establishments,02/10/19,6324003,811.56,VENDOR,CREATIVE ADVANCES LTD,100117
Portsmouth City Council,PCC,Adult Social Care,Learning Disability Support  Adults (18 - 64),Adult Services,Third Party Payments,Other establishments,02/10/19,6324003,1284.97,VENDOR,CREATIVE ADVANCES LTD,100117
Portsmouth City Council,PCC,Adult Social Care,Learning Disability Support  Adults (18 - 64),Adult Services,Third Party Payments,Other establishments,02/10/19,6324003,1864.28,VENDOR,CREATIVE ADVANCES LTD,100117
Portsmouth City Council,PCC,Adult Social Care,Learning Disability Support  Adults (18 - 64),Adult Services,Third Party Payments,Other establishments,02/10/19,6324003,147.12,VENDOR,CREATIVE ADVANCES LTD,100117
Portsmouth City Council,PCC,Adult Social Care,Learning Disability Support  Adults (18 - 64),Adult Services,Third Party Payments,Other establishments,02/10/19,6324003,359.28,VENDOR,CREATIVE ADVANCES LTD,100117
Portsmouth City Council,PCC,Adult Social Care,Learning Disability Support  Adults (18 - 64),Adult Services,Third Party Payments,Other establishments,02/10/19,6324003,882.72,VENDOR,CREATIVE ADVANCES LTD,100117
Portsmouth City Council,PCC,Adult Social Care,Learning Disability Support  Adults (18 - 64),Adult Services,Third Party Payments,Other establishments,02/10/19,6324003,450.07,VENDOR,CREATIVE ADVANCES LTD,100117
Portsmouth City Council,PCC,Adult Social Care,Learning Disability Support  Adults (18 - 64),Adult Services,Third Party Payments,Other establishments,02/10/19,6324003,1014.45,VENDOR,CREATIVE ADVANCES LTD,100117
Portsmouth City Council,PCC,Adult Social Care,Learning Disability Support  Adults (18 - 64),Adult Services,Third Party Payments,Other establishments,02/10/19,6324003,1864.28,VENDOR,CREATIVE ADVANCES LTD,100117
Portsmouth City Council,PCC,Adult Social Care,Learning Disability Support  Adults (18 - 64),Adult Services,Third Party Payments,Other establishments,02/10/19,6324003,507.23,VENDOR,CREATIVE ADVANCES LTD,100117
Portsmouth City Council,PCC,Adult Social Care,Learning Disability Support  Adults (18 - 64),Adult Services,Third Party Payments,Other establishments,02/10/19,6324003,1928.85,VENDOR,CREATIVE ADVANCES LTD,100117
Portsmouth City Council,PCC,Adult Social Care,Learning Disability Support  Adults (18 - 64),Adult Services,Third Party Payments,Other establishments,02/10/19,6324003,1103.4,VENDOR,CREATIVE ADVANCES LTD,100117
Portsmouth City Council,PCC,Adult Social Care,Learning Disability Support  Adults (18 - 64),Adult Services,Third Party Payments,Other establishments,02/10/19,6324003,1221.61,VENDOR,CREATIVE ADVANCES LTD,100117
Portsmouth City Council,PCC,Adult Social Care,Learning Disability Support  Adults (18 - 64),Adult Services,Third Party Payments,Other establishments,02/10/19,6324003,1149.71,VENDOR,CREATIVE ADVANCES LTD,100117
Portsmouth City Council,PCC,Adult Social Care,Learning Disability Support  Adults (18 - 64),Adult Services,Third Party Payments,Other establishments,02/10/19,6324003,257.18,VENDOR,CREATIVE ADVANCES LTD,100117
Portsmouth City Council,PCC,Adult Social Care,Learning Disability Support  Adults (18 - 64),Adult Services,Third Party Payments,Other establishments,02/10/19,6324003,707.25,VENDOR,CREATIVE ADVANCES LTD,100117
Portsmouth City Council,PCC,Adult Social Care,Learning Disability Support  Adults (18 - 64),Adult Services,Third Party Payments,Other establishments,02/10/19,6324003,2443.21,VENDOR,CREATIVE ADVANCES LTD,100117
Portsmouth City Council,PCC,Adult Social Care,Learning Disability Support  Adults (18 - 64),Adult Services,Third Party Payments,Other establishments,02/10/19,6324003,494.01,VENDOR,CREATIVE ADVANCES LTD,100117
Portsmouth City Council,PCC,Adult Social Care,Learning Disability Support  Adults (18 - 64),Adult Services,Third Party Payments,Other establishments,02/10/19,6324003,494.01,VENDOR,CREATIVE ADVANCES LTD,100117
Portsmouth City Council,PCC,Adult Social Care,Learning Disability Support  Adults (18 - 64),Adult Services,Third Party Payments,Other establishments,02/10/19,6324003,179.64,VENDOR,CREATIVE ADVANCES LTD,100117
Portsmouth City Council,PCC,Adult Social Care,Learning Disability Support  Adults (18 - 64),Adult Services,Third Party Payments,Other establishments,02/10/19,6324003,157.19,VENDOR,CREATIVE ADVANCES LTD,100117
Portsmouth City Council,PCC,Adult Social Care,Learning Disability Support  Adults (18 - 64),Adult Services,Third Party Payments,Other establishments,02/10/19,6324003,441.36,VENDOR,CREATIVE ADVANCES LTD,100117
Portsmouth City Council,PCC,Adult Social Care,Learning Disability Support  Adults (18 - 64),Adult Services,Third Party Payments,Other establishments,02/10/19,6324003,853.29,VENDOR,CREATIVE ADVANCES LTD,100117
Portsmouth City Council,PCC,Adult Social Care,Learning Disability Support  Adults (18 - 64),Adult Services,Third Party Payments,Other establishments,02/10/19,6324003,220.68,VENDOR,CREATIVE ADVANCES LTD,100117
Portsmouth City Council,PCC,Adult Social Care,Learning Disability Support  Adults (18 - 64),Adult Services,Third Party Payments,Other establishments,02/10/19,6324003,853.29,VENDOR,CREATIVE ADVANCES LTD,100117
Portsmouth City Council,PCC,Adult Social Care,Learning Disability Support  Adults (18 - 64),Adult Services,Third Party Payments,Other establishments,02/10/19,6324003,55.11,VENDOR,CREATIVE ADVANCES LTD,100117
Portsmouth City Council,PCC,Adult Social Care,Learning Disability Support  Adults (18 - 64),Adult Services,Third Party Payments,Other establishments,02/10/19,6324003,777.75,VENDOR,CREATIVE ADVANCES LTD,100117
Portsmouth City Council,PCC,Adult Social Care,Learning Disability Support  Adults (18 - 64),Adult Services,Third Party Payments,Other establishments,02/10/19,6324003,1103.4,VENDOR,CREATIVE ADVANCES LTD,100117
Portsmouth City Council,PCC,Adult Social Care,Learning Disability Support  Adults (18 - 64),Adult Services,Third Party Payments,Other establishments,02/10/19,6324003,673.65,VENDOR,CREATIVE ADVANCES LTD,100117
Portsmouth City Council,PCC,Adult Social Care,Learning Disability Support  Adults (18 - 64),Adult Services,Third Party Payments,Other establishments,02/10/19,6324003,542.51,VENDOR,CREATIVE ADVANCES LTD,100117
Portsmouth City Council,PCC,Adult Social Care,Learning Disability Support  Adults (18 - 64),Adult Services,Third Party Payments,Other establishments,02/10/19,6324003,135.26,VENDOR,CREATIVE ADVANCES LTD,100117
Portsmouth City Council,PCC,Adult Social Care,Learning Disability Support  Adults (18 - 64),Adult Services,Third Party Payments,Other establishments,02/10/19,6324003,1014.45,VENDOR,CREATIVE ADVANCES LTD,100117
Portsmouth City Council,PCC,Adult Social Care,Learning Disability Support  Adults (18 - 64),Adult Services,Third Party Payments,Other establishments,02/10/19,6324003,853.29,VENDOR,CREATIVE ADVANCES LTD,100117
Portsmouth City Council,PCC,Adult Social Care,Learning Disability Support  Adults (18 - 64),Adult Services,Third Party Payments,Other establishments,02/10/19,6324003,270.52,VENDOR,CREATIVE ADVANCES LTD,100117
Portsmouth City Council,PCC,Adult Social Care,Learning Disability Support  Adults (18 - 64),Adult Services,Third Party Payments,Other establishments,02/10/19,6324003,1471.8,VENDOR,CREATIVE ADVANCES LTD,100117
Portsmouth City Council,PCC,Adult Social Care,Learning Disability Support  Adults (18 - 64),Adult Services,Third Party Payments,Other establishments,02/10/19,6324003,179.64,VENDOR,CREATIVE ADVANCES LTD,100117
Portsmouth City Council,PCC,Adult Social Care,Learning Disability Support  Adults (18 - 64),Adult Services,Third Party Payments,Other establishments,02/10/19,6324003,1864.28,VENDOR,CREATIVE ADVANCES LTD,100117
Portsmouth City Council,PCC,Adult Social Care,Learning Disability Support  Adults (18 - 64),Adult Services,Third Party Payments,Other establishments,02/10/19,6324003,1028.72,VENDOR,CREATIVE ADVANCES LTD,100117
Portsmouth City Council,PCC,Adult Social Care,Learning Disability Support  Adults (18 - 64),Adult Services,Third Party Payments,Other establishments,02/10/19,6324003,359.28,VENDOR,CREATIVE ADVANCES LTD,100117
Portsmouth City Council,PCC,Adult Social Care,Learning Disability Support  Adults (18 - 64),Adult Services,Third Party Payments,Other establishments,02/10/19,6324003,441.36,VENDOR,CREATIVE ADVANCES LTD,100117
Portsmouth City Council,PCC,Adult Social Care,Learning Disability Support  Adults (18 - 64),Adult Services,Third Party Payments,Other establishments,02/10/19,6324003,2206.8,VENDOR,CREATIVE ADVANCES LTD,100117
Portsmouth City Council,PCC,Adult Social Care,Learning Disability Support  Adults (18 - 64),Adult Services,Third Party Payments,Other establishments,02/10/19,6324003,718.56,VENDOR,CREATIVE ADVANCES LTD,100117
Portsmouth City Council,PCC,Adult Social Care,Learning Disability Support  Adults (18 - 64),Adult Services,Third Party Payments,Other establishments,02/10/19,6324003,771.54,VENDOR,CREATIVE ADVANCES LTD,100117
Portsmouth City Council,PCC,Adult Social Care,Learning Disability Support  Adults (18 - 64),Adult Services,Third Party Payments,Other establishments,02/10/19,6324003,110.34,VENDOR,CREATIVE ADVANCES LTD,100117
Portsmouth City Council,PCC,Adult Social Care,Learning Disability Support  Adults (18 - 64),Adult Services,Third Party Payments,Other establishments,02/10/19,6324003,673.65,VENDOR,CREATIVE ADVANCES LTD,100117
Portsmouth City Council,PCC,Adult Social Care,Learning Disability Support  Adults (18 - 64),Adult Services,Third Party Payments,Other establishments,02/10/19,6324003,673.65,VENDOR,CREATIVE ADVANCES LTD,100117
Portsmouth City Council,PCC,Adult Social Care,Learning Disability Support  Adults (18 - 64),Adult Services,Third Party Payments,Other establishments,02/10/19,6324003,853.29,VENDOR,CREATIVE ADVANCES LTD,100117
Portsmouth City Council,PCC,Adult Social Care,Learning Disability Support  Adults (18 - 64),Adult Services,Third Party Payments,Other establishments,02/10/19,6324003,336.83,VENDOR,CREATIVE ADVANCES LTD,100117
Portsmouth City Council,PCC,Adult Social Care,Learning Disability Support  Adults (18 - 64),Adult Services,Third Party Payments,Other establishments,02/10/19,6324003,1014.45,VENDOR,CREATIVE ADVANCES LTD,100117
Portsmouth City Council,PCC,Adult Social Care,Learning Disability Support  Adults (18 - 64),Adult Services,Third Party Payments,Other establishments,02/10/19,6324003,743.93,VENDOR,CREATIVE ADVANCES LTD,100117
Portsmouth City Council,PCC,Adult Social Care,Learning Disability Support  Adults (18 - 64),Adult Services,Third Party Payments,Other establishments,02/10/19,6324003,336.83,VENDOR,CREATIVE ADVANCES LTD,100117
Portsmouth City Council,PCC,Adult Social Care,Learning Disability Support  Adults (18 - 64),Adult Services,Third Party Payments,Other establishments,02/10/19,6324003,507.23,VENDOR,CREATIVE ADVANCES LTD,100117
Portsmouth City Council,PCC,Adult Social Care,Learning Disability Support  Adults (18 - 64),Adult Services,Third Party Payments,Other establishments,02/10/19,6324003,192.89,VENDOR,CREATIVE ADVANCES LTD,100117
Portsmouth City Council,PCC,Adult Social Care,Learning Disability Support  Adults (18 - 64),Adult Services,Third Party Payments,Other establishments,02/10/19,6324003,1103.4,VENDOR,CREATIVE ADVANCES LTD,100117
Portsmouth City Council,PCC,Adult Social Care,Learning Disability Support  Adults (18 - 64),Adult Services,Third Party Payments,Other establishments,02/10/19,6324003,128.73,VENDOR,CREATIVE ADVANCES LTD,100117
Portsmouth City Council,PCC,Adult Social Care,Learning Disability Support  Adults (18 - 64),Adult Services,Third Party Payments,Other establishments,02/10/19,6324003,110.34,VENDOR,CREATIVE ADVANCES LTD,100117
Portsmouth City Council,PCC,Adult Social Care,Learning Disability Support  Adults (18 - 64),Adult Services,Third Party Payments,Other establishments,02/10/19,6324003,1221.61,VENDOR,CREATIVE ADVANCES LTD,100117
Portsmouth City Council,PCC,Adult Social Care,Learning Disability Support  Adults (18 - 64),Adult Services,Third Party Payments,Other establishments,02/10/19,6324003,993.06,VENDOR,CREATIVE ADVANCES LTD,100117
Portsmouth City Council,PCC,Adult Social Care,Learning Disability Support  Adults (18 - 64),Adult Services,Third Party Payments,Other establishments,02/10/19,6324003,1284.97,VENDOR,CREATIVE ADVANCES LTD,100117
Portsmouth City Council,PCC,Adult Social Care,Learning Disability Support  Adults (18 - 64),Adult Services,Third Party Payments,Other establishments,02/10/19,6324003,1285.9,VENDOR,CREATIVE ADVANCES LTD,100117
Portsmouth City Council,PCC,Adult Social Care,Learning Disability Support  Adults (18 - 64),Adult Services,Third Party Payments,Other establishments,02/10/19,6324003,541.04,VENDOR,CREATIVE ADVANCES LTD,100117
Portsmouth City Council,PCC,Adult Social Care,Learning Disability Support  Adults (18 - 64),Adult Services,Third Party Payments,Other establishments,02/10/19,6324003,314.37,VENDOR,CREATIVE ADVANCES LTD,100117
Portsmouth City Council,PCC,Adult Social Care,Learning Disability Support  Adults (18 - 64),Adult Services,Third Party Payments,Other establishments,02/10/19,6324003,2443.21,VENDOR,CREATIVE ADVANCES LTD,100117
Portsmouth City Council,PCC,Adult Social Care,Learning Disability Support  Adults (18 - 64),Adult Services,Third Party Payments,Other establishments,02/10/19,6324003,192.89,VENDOR,CREATIVE ADVANCES LTD,100117
Portsmouth City Council,PCC,Adult Social Care,Learning Disability Support  Adults (18 - 64),Adult Services,Third Party Payments,Other establishments,02/10/19,6324003,404.95,VENDOR,CREATIVE ADVANCES LTD,100117
Portsmouth City Council,PCC,Adult Social Care,Learning Disability Support  Adults (18 - 64),Adult Services,Third Party Payments,Other establishments,02/10/19,6324003,294.24,VENDOR,CREATIVE ADVANCES LTD,100117
Portsmouth City Council,PCC,Adult Social Care,Learning Disability Support  Adults (18 - 64),Adult Services,Third Party Payments,Other establishments,02/10/19,6324003,538.92,VENDOR,CREATIVE ADVANCES LTD,100117
Portsmouth City Council,PCC,Adult Social Care,Learning Disability Support  Adults (18 - 64),Adult Services,Third Party Payments,Other establishments,02/10/19,6324003,314.37,VENDOR,CREATIVE ADVANCES LTD,100117
Portsmouth City Council,PCC,Adult Social Care,Learning Disability Support  Adults (18 - 64),Adult Services,Third Party Payments,Other establishments,02/10/19,6324003,608.67,VENDOR,CREATIVE ADVANCES LTD,100117
Portsmouth City Council,PCC,Adult Social Care,Learning Disability Support  Adults (18 - 64),Adult Services,Third Party Payments,Other establishments,02/10/19,6324003,192.89,VENDOR,CREATIVE ADVANCES LTD,100117
Portsmouth City Council,PCC,Adult Social Care,Learning Disability Support  Adults (18 - 64),Adult Services,Third Party Payments,Other establishments,02/10/19,6324003,964.43,VENDOR,CREATIVE ADVANCES LTD,100117
Portsmouth City Council,PCC,Adult Social Care,Learning Disability Support  Adults (18 - 64),Adult Services,Third Party Payments,Other establishments,02/10/19,6324003,1543.08,VENDOR,CREATIVE ADVANCES LTD,100117
Portsmouth City Council,PCC,Adult Social Care,Learning Disability Support  Adults (18 - 64),Adult Services,Third Party Payments,Other establishments,02/10/19,6324003,900.13,VENDOR,CREATIVE ADVANCES LTD,100117
Portsmouth City Council,PCC,Adult Social Care,Learning Disability Support  Adults (18 - 64),Adult Services,Third Party Payments,Other establishments,02/10/19,6324003,1284.97,VENDOR,CREATIVE ADVANCES LTD,100117
Portsmouth City Council,PCC,Adult Social Care,Learning Disability Support  Adults (18 - 64),Adult Services,Third Party Payments,Other establishments,02/10/19,6324003,1284.97,VENDOR,CREATIVE ADVANCES LTD,100117
Portsmouth City Council,PCC,Adult Social Care,Learning Disability Support  Adults (18 - 64),Adult Services,Third Party Payments,Other establishments,02/10/19,6324003,551.7,VENDOR,CREATIVE ADVANCES LTD,100117
Portsmouth City Council,PCC,Adult Social Care,Learning Disability Support  Adults (18 - 64),Adult Services,Third Party Payments,Other establishments,02/10/19,6324003,673.65,VENDOR,CREATIVE ADVANCES LTD,100117
Portsmouth City Council,PCC,Adult Social Care,Learning Disability Support  Adults (18 - 64),Adult Services,Third Party Payments,Other establishments,02/10/19,6324003,1014.45,VENDOR,CREATIVE ADVANCES LTD,100117
Portsmouth City Council,PCC,Adult Social Care,Learning Disability Support  Adults (18 - 64),Adult Services,Third Party Payments,Other establishments,02/10/19,6324003,494.01,VENDOR,CREATIVE ADVANCES LTD,100117
Portsmouth City Council,PCC,Adult Social Care,Learning Disability Support  Adults (18 - 64),Adult Services,Third Party Payments,Other establishments,02/10/19,6324003,1478.79,VENDOR,CREATIVE ADVANCES LTD,100117
Portsmouth City Council,PCC,Adult Social Care,Learning Disability Support  Adults (18 - 64),Adult Services,Third Party Payments,Other establishments,02/10/19,6324003,853.29,VENDOR,CREATIVE ADVANCES LTD,100117
Portsmouth City Council,PCC,Adult Social Care,Learning Disability Support  Adults (18 - 64),Adult Services,Third Party Payments,Other establishments,02/10/19,6324003,853.29,VENDOR,CREATIVE ADVANCES LTD,100117
Portsmouth City Council,PCC,Adult Social Care,Learning Disability Support  Adults (18 - 64),Adult Services,Third Party Payments,Other establishments,02/10/19,6324003,179.64,VENDOR,CREATIVE ADVANCES LTD,100117
Portsmouth City Council,PCC,Adult Social Care,Support with Memory and Cognition Older People (85+),Adult Services,Third Party Payments,Other establishments,11/10/19,6325802,2724.9,VENDOR,ALTON HOUSE PARTNERSHIP,119112
Portsmouth City Council,PCC,Adult Social Care,Support with Memory and Cognition Older People (85+),Adult Services,Third Party Payments,Other establishments,11/10/19,6325802,2724.9,VENDOR,ALTON HOUSE PARTNERSHIP,119112
Portsmouth City Council,PCC,Corporate and Democratic Core,Corporate Management,Corporate Services,Supplies and Services,"Printing, stationery and general office expenses",10/10/19,6325716,100.1,VENDOR,EASTRIO 1 LTD,144641
Portsmouth City Council,PCC,Corporate and Democratic Core,Corporate Management,Corporate Services,Supplies and Services,"Printing, stationery and general office expenses",10/10/19,6325716,150.15,VENDOR,EASTRIO 1 LTD,144641
Portsmouth City Council,PCC,Corporate and Democratic Core,Corporate Management,Corporate Services,Supplies and Services,"Printing, stationery and general office expenses",10/10/19,6325716,128.7,VENDOR,EASTRIO 1 LTD,144641
Portsmouth City Council,PCC,Corporate and Democratic Core,Corporate Management,Corporate Services,Supplies and Services,"Printing, stationery and general office expenses",10/10/19,6325716,143,VENDOR,EASTRIO 1 LTD,144641
Portsmouth City Council,PCC,Environmental and Regulatory Services,Regulatory Services,"Culture, Leisure & Regulatory Services",Supplies and Services,Services,23/10/19,6328433,1250,SOLETRADER,Classified as 'personal data' (under the Data Protection Act 2018),142601
Portsmouth City Council,PCC,Corporate and Democratic Core,Corporate Management,Corporate Services,Supplies and Services,Miscellaneous expenses,30/10/19,6329750,2418.32,VENDOR,GLOBAL RADIO SERVICES LIMITED,105043
Portsmouth City Council,PCC,Highways and Transport Services,"Airports, Harbours and Toll Facilities",Portsmouth International Port,Supplies and Services,"Equipment, furniture and materials",24/10/19,6328599,752.5,VENDOR,RAPISCAN SYSTEMS LIMITED,108247
Portsmouth City Council,PCC,Highways and Transport Services,"Airports, Harbours and Toll Facilities",Portsmouth International Port,Supplies and Services,"Equipment, furniture and materials",24/10/19,6328599,52.5,VENDOR,RAPISCAN SYSTEMS LIMITED,108247
Portsmouth City Council,PCC,Corporate and Democratic Core,Democratic Representation and Management,"Culture, Leisure & Regulatory Services",Third Party Payments,Private contractors,07/10/19,6324937,1130,COMPANY,POWERWORKS MAINTENANCE SERVICES LTD,141178
Portsmouth City Council,PCC,Support Service / Transparency Costs Unallocated,Information Services,Corporate Services,Supplies and Services,Communications and computing,21/10/19,6327352,5516.7,COMPANY,POWERWORKS MAINTENANCE SERVICES LTD,141178
Portsmouth City Council,PCC,Corporate and Democratic Core,Corporate Management,Corporate Services,Supplies and Services,"Printing, stationery and general office expenses",10/10/19,6325716,243.1,VENDOR,EASTRIO 1 LTD,144641
Portsmouth City Council,PCC,Corporate and Democratic Core,Corporate Management,Corporate Services,Supplies and Services,"Printing, stationery and general office expenses",10/10/19,6325716,457.6,VENDOR,EASTRIO 1 LTD,144641
Portsmouth City Council,PCC,Housing Services,Housing Benefits Administration,Finance & Revenues,Supplies and Services,Communications and computing,29/10/19,6329154,18810,VENDOR,CALL CREDIT INFORMATION GROUP LIMITED,137708
Portsmouth City Council,PCC,Corporate and Democratic Core,Corporate Management,Corporate Services,Supplies and Services,"Printing, stationery and general office expenses",10/10/19,6325716,171.6,VENDOR,EASTRIO 1 LTD,144641
Portsmouth City Council,PCC,Corporate and Democratic Core,Corporate Management,Corporate Services,Supplies and Services,"Printing, stationery and general office expenses",10/10/19,6325716,143,VENDOR,EASTRIO 1 LTD,144641
Portsmouth City Council,PCC,Cultural and Related Services,Tourism,"Culture, Leisure & Regulatory Services",Third Party Payments,Private contractors,08/10/19,6325035,43.2,VENDOR,LUCKETTS TRAVEL LIMITED,100278
Portsmouth City Council,PCC,Corporate and Democratic Core,Corporate Management,Corporate Services,Supplies and Services,"Printing, stationery and general office expenses",10/10/19,6325716,85.8,VENDOR,EASTRIO 1 LTD,144641
Portsmouth City Council,PCC,Corporate and Democratic Core,Corporate Management,Corporate Services,Supplies and Services,"Printing, stationery and general office expenses",10/10/19,6325716,143,VENDOR,EASTRIO 1 LTD,144641
Portsmouth City Council,PCC,Corporate and Democratic Core,Corporate Management,Corporate Services,Supplies and Services,"Printing, stationery and general office expenses",10/10/19,6325716,85.8,VENDOR,EASTRIO 1 LTD,144641
Portsmouth City Council,PCC,Solent LEP,Business support,OTHER,Employees,Indirect employee expenses,10/10/19,6325716,3520,VENDOR,EASTRIO 1 LTD,144641
Portsmouth City Council,PCC,Adult Social Care,Physical Support Older People (85+),Adult Services,Third Party Payments,Other establishments,18/10/19,6327145,151.92,VENDOR,ALLIED HEALTH-SERVICES LIMITED,137338
Portsmouth City Council,PCC,Corporate and Democratic Core,Corporate Management,Corporate Services,Supplies and Services,"Printing, stationery and general office expenses",22/10/19,6327871,185.9,VENDOR,EASTRIO 1 LTD,144641
Portsmouth City Council,PCC,Children's and Education Services,Other Children and Family Services,Children's Services and Education,Employees,Indirect employee expenses,25/10/19,6328837,60,VENDOR,RMC EMEA LIMITED,122070
Portsmouth City Council,PCC,Children's and Education Services,Other Children and Family Services,Children's Services and Education,Employees,Indirect employee expenses,25/10/19,6328837,60,VENDOR,RMC EMEA LIMITED,122070
Portsmouth City Council,PCC,Planning Services,Business support,Regeneration,Employees,Indirect employee expenses,25/10/19,6328837,48,VENDOR,RMC EMEA LIMITED,122070
Portsmouth City Council,PCC,Planning Services,Business support,Regeneration,Employees,Indirect employee expenses,25/10/19,6328837,48,VENDOR,RMC EMEA LIMITED,122070
Portsmouth City Council,PCC,Planning Services,Business support,Regeneration,Employees,Indirect employee expenses,25/10/19,6328837,48,VENDOR,RMC EMEA LIMITED,122070
Portsmouth City Council,PCC,Adult Social Care,Physical Support Older People (85+),Adult Services,Third Party Payments,Other establishments,18/10/19,6327145,1046.56,VENDOR,ALLIED HEALTH-SERVICES LIMITED,137338
Portsmouth City Council,PCC,Planning Services,Business support,Regeneration,Employees,Indirect employee expenses,25/10/19,6328837,100,VENDOR,RMC EMEA LIMITED,122070
Portsmouth City Council,PCC,Planning Services,Business support,Regeneration,Employees,Indirect employee expenses,25/10/19,6328837,100,VENDOR,RMC EMEA LIMITED,122070
Portsmouth City Council,PCC,Planning Services,Business support,Regeneration,Employees,Indirect employee expenses,25/10/19,6328837,100,VENDOR,RMC EMEA LIMITED,122070
Portsmouth City Council,PCC,Planning Services,Business support,Regeneration,Employees,Indirect employee expenses,25/10/19,6328837,100,VENDOR,RMC EMEA LIMITED,122070
Portsmouth City Council,PCC,Planning Services,Business support,Regeneration,Employees,Indirect employee expenses,25/10/19,6328837,100,VENDOR,RMC EMEA LIMITED,122070
Portsmouth City Council,PCC,Planning Services,Business support,Regeneration,Employees,Indirect employee expenses,25/10/19,6328837,100,VENDOR,RMC EMEA LIMITED,122070
Portsmouth City Council,PCC,Planning Services,Business support,Regeneration,Employees,Indirect employee expenses,25/10/19,6328837,100,VENDOR,RMC EMEA LIMITED,122070
Portsmouth City Council,PCC,Planning Services,Business support,Regeneration,Employees,Indirect employee expenses,25/10/19,6328837,100,VENDOR,RMC EMEA LIMITED,122070
Portsmouth City Council,PCC,Planning Services,Business support,Regeneration,Employees,Indirect employee expenses,25/10/19,6328837,100,VENDOR,RMC EMEA LIMITED,122070
Portsmouth City Council,PCC,Planning Services,Business support,Regeneration,Employees,Indirect employee expenses,25/10/19,6328837,100,VENDOR,RMC EMEA LIMITED,122070
Portsmouth City Council,PCC,Corporate and Democratic Core,Corporate Management,Corporate Services,Supplies and Services,"Printing, stationery and general office expenses",22/10/19,6327871,85.8,VENDOR,EASTRIO 1 LTD,144641
Portsmouth City Council,PCC,Corporate and Democratic Core,Corporate Management,Corporate Services,Supplies and Services,"Printing, stationery and general office expenses",22/10/19,6327871,85.8,VENDOR,EASTRIO 1 LTD,144641
Portsmouth City Council,PCC,Corporate and Democratic Core,Corporate Management,Corporate Services,Supplies and Services,"Printing, stationery and general office expenses",22/10/19,6327871,85.8,VENDOR,EASTRIO 1 LTD,144641
Portsmouth City Council,PCC,Corporate and Democratic Core,Corporate Management,Corporate Services,Supplies and Services,"Printing, stationery and general office expenses",22/10/19,6327871,85.8,VENDOR,EASTRIO 1 LTD,144641
Portsmouth City Council,PCC,Other,Suspense and Capital Schemes,Capital - Leader,Capital Charges,Capital Expenditure (WIP),04/10/19,6324712,2279.28,VENDOR,ECD ARCHITECTS LTD,136285
Portsmouth City Council,PCC,Other,Suspense and Capital Schemes,Capital - Leader,Capital Charges,Capital Expenditure (WIP),04/10/19,6324712,12941.66,VENDOR,ECD ARCHITECTS LTD,136285
Portsmouth City Council,PCC,Other,Suspense and Capital Schemes,Capital - Leader,Capital Charges,Capital Expenditure (WIP),04/10/19,6324712,1941.25,VENDOR,ECD ARCHITECTS LTD,136285
Portsmouth City Council,PCC,Cultural and Related Services,Culture and Heritage,"Culture, Leisure & Regulatory Services",Third Party Payments,Private contractors,21/10/19,6327386,730,SOLETRADER,Classified as 'personal data' (under the Data Protection Act 2018),144309
Portsmouth City Council,PCC,Corporate and Democratic Core,Corporate Management,Corporate Services,Supplies and Services,"Printing, stationery and general office expenses",22/10/19,6327871,228.8,VENDOR,EASTRIO 1 LTD,144641
Portsmouth City Council,PCC,Highways and Transport Services,"Airports, Harbours and Toll Facilities",Portsmouth International Port,Premises-Related Expenditure,Cleaning and domestic supplies,31/10/19,6329928,8569.17,VENDOR,NVIRO LTD,124507
Portsmouth City Council,PCC,Highways and Transport Services,"Airports, Harbours and Toll Facilities",Portsmouth International Port,Premises-Related Expenditure,Cleaning and domestic supplies,31/10/19,6329928,8569.16,VENDOR,NVIRO LTD,124507
Portsmouth City Council,PCC,Highways and Transport Services,"Airports, Harbours and Toll Facilities",Portsmouth International Port,Premises-Related Expenditure,Cleaning and domestic supplies,31/10/19,6329928,2167,VENDOR,NVIRO LTD,124507
Portsmouth City Council,PCC,Corporate and Democratic Core,Corporate Management,Corporate Services,Supplies and Services,"Printing, stationery and general office expenses",22/10/19,6327871,228.8,VENDOR,EASTRIO 1 LTD,144641
Portsmouth City Council,PCC,Planning Services,Business support,Regeneration,Supplies and Services,"Equipment, furniture and materials",09/10/19,6325613,202.44,VENDOR,SPANDEX LIMITED,100163
Portsmouth City Council,PCC,Planning Services,Business support,Regeneration,Supplies and Services,"Equipment, furniture and materials",09/10/19,6325613,189.22,VENDOR,SPANDEX LIMITED,100163
Portsmouth City Council,PCC,Planning Services,Business support,Regeneration,Supplies and Services,"Equipment, furniture and materials",09/10/19,6325613,399.9,VENDOR,SPANDEX LIMITED,100163
Portsmouth City Council,PCC,Adult Social Care,Learning Disability Support  Adults (18 - 64),Adult Services,Third Party Payments,Other establishments,11/10/19,6325924,1819.62,VENDOR,DOLPHIN HOMES LTD,100745
Portsmouth City Council,PCC,Children's and Education Services,Other Children and Family Services,Children's Services and Education,Supplies and Services,Services,02/10/19,6323995,1575,SOLETRADER,Classified as 'personal data' (under the Data Protection Act 2018),132145
Portsmouth City Council,PCC,Corporate and Democratic Core,Corporate Management,Corporate Services,Supplies and Services,"Printing, stationery and general office expenses",24/10/19,6328556,171.6,VENDOR,EASTRIO 1 LTD,144641
Portsmouth City Council,PCC,Children's and Education Services,Other Children and Family Services,Children's Services and Education,Supplies and Services,Services,02/10/19,6324005,648,SOLETRADER,Classified as 'personal data' (under the Data Protection Act 2018),128729
Portsmouth City Council,PCC,Corporate and Democratic Core,Corporate Management,Corporate Services,Supplies and Services,"Printing, stationery and general office expenses",24/10/19,6328556,85.8,VENDOR,EASTRIO 1 LTD,144641
Portsmouth City Council,PCC,Corporate and Democratic Core,Corporate Management,Corporate Services,Supplies and Services,"Printing, stationery and general office expenses",24/10/19,6328556,85.8,VENDOR,EASTRIO 1 LTD,144641
Portsmouth City Council,PCC,Corporate and Democratic Core,Corporate Management,Corporate Services,Supplies and Services,"Printing, stationery and general office expenses",24/10/19,6328556,85.8,VENDOR,EASTRIO 1 LTD,144641
Portsmouth City Council,PCC,Corporate and Democratic Core,Corporate Management,Corporate Services,Supplies and Services,"Printing, stationery and general office expenses",24/10/19,6328556,100.1,VENDOR,EASTRIO 1 LTD,144641
Portsmouth City Council,PCC,Corporate and Democratic Core,Corporate Management,Corporate Services,Supplies and Services,"Printing, stationery and general office expenses",24/10/19,6328556,114.4,VENDOR,EASTRIO 1 LTD,144641
Portsmouth City Council,PCC,Environmental and Regulatory Services,Regulatory Services,"Culture, Leisure & Regulatory Services",Supplies and Services,"Equipment, furniture and materials",18/10/19,6327230,631.8,VENDOR,PELSIS LIMITED,133905
Portsmouth City Council,PCC,Adult Social Care,Commissioning & service delivery,Adult Services,Supplies and Services,Services,16/10/19,323419,450,VENDOR,Classified as 'personal data' (under the Data Protection Act 2018),145306
Portsmouth City Council,PCC,Adult Social Care,Physical Support Older People (85+),Adult Services,Third Party Payments,Other establishments,21/10/19,6327275,945.28,VENDOR,ALLIED HEALTH-SERVICES LIMITED,137338
Portsmouth City Council,PCC,Children's and Education Services,Other Children and Family Services,Children's Services and Education,Supplies and Services,Services,11/10/19,6326002,1525,SOLETRADER,Classified as 'personal data' (under the Data Protection Act 2018),118150
Portsmouth City Council,PCC,Environmental and Regulatory Services,Regulatory Services,"Culture, Leisure & Regulatory Services",Third Party Payments,Private contractors,04/10/19,6324663,312,VENDOR,ADAMS MOREY LTD,100446
Portsmouth City Council,PCC,Environmental and Regulatory Services,Regulatory Services,"Culture, Leisure & Regulatory Services",Third Party Payments,Private contractors,04/10/19,6324663,1508,VENDOR,ADAMS MOREY LTD,100446
Portsmouth City Council,PCC,Environmental and Regulatory Services,Regulatory Services,"Culture, Leisure & Regulatory Services",Third Party Payments,Private contractors,23/10/19,6327960,520,VENDOR,ADAMS MOREY LTD,100446
Portsmouth City Council,PCC,Environmental and Regulatory Services,Regulatory Services,"Culture, Leisure & Regulatory Services",Third Party Payments,Private contractors,23/10/19,6327960,1508,VENDOR,ADAMS MOREY LTD,100446
Portsmouth City Council,PCC,Environmental and Regulatory Services,Regulatory Services,"Culture, Leisure & Regulatory Services",Third Party Payments,Private contractors,23/10/19,6327960,416,VENDOR,ADAMS MOREY LTD,100446
Portsmouth City Council,PCC,Environmental and Regulatory Services,Regulatory Services,"Culture, Leisure & Regulatory Services",Third Party Payments,Private contractors,23/10/19,6327960,1300,VENDOR,ADAMS MOREY LTD,100446
Portsmouth City Council,PCC,Environmental and Regulatory Services,Regulatory Services,"Culture, Leisure & Regulatory Services",Third Party Payments,Private contractors,25/10/19,6328645,572,VENDOR,ADAMS MOREY LTD,100446
Portsmouth City Council,PCC,Environmental and Regulatory Services,Regulatory Services,"Culture, Leisure & Regulatory Services",Third Party Payments,Private contractors,25/10/19,6328645,1196,VENDOR,ADAMS MOREY LTD,100446
Portsmouth City Council,PCC,Environmental and Regulatory Services,Regulatory Services,"Culture, Leisure & Regulatory Services",Third Party Payments,Private contractors,31/10/19,6329822,260,VENDOR,ADAMS MOREY LTD,100446
Portsmouth City Council,PCC,Environmental and Regulatory Services,Regulatory Services,"Culture, Leisure & Regulatory Services",Third Party Payments,Private contractors,31/10/19,6329822,884,VENDOR,ADAMS MOREY LTD,100446
Portsmouth City Council,PCC,Children's and Education Services,Asylum seekers,Children's Services and Education,Supplies and Services,Services,03/10/19,6324581,45,SOLETRADER,Classified as 'personal data' (under the Data Protection Act 2018),144795
Portsmouth City Council,PCC,Children's and Education Services,Other Children and Family Services,Children's Services and Education,Supplies and Services,Services,30/10/19,6329755,425,SOLETRADER,Classified as 'personal data' (under the Data Protection Act 2018),133429
Portsmouth City Council,PCC,Adult Social Care,Commissioning & service delivery,Adult Services,Supplies and Services,Services,25/10/19,6328814,750,SOLETRADER,Classified as 'personal data' (under the Data Protection Act 2018),118150
Portsmouth City Council,PCC,Adult Social Care,Physical Support Older People (85+),Adult Services,Third Party Payments,Other establishments,11/10/19,6325803,2244.4,VENDOR,ALTON MANOR CARE HOME,130289
Portsmouth City Council,PCC,Children's and Education Services,Asylum seekers,Children's Services and Education,Supplies and Services,Services,03/10/19,6324581,75,SOLETRADER,Classified as 'personal data' (under the Data Protection Act 2018),144795
Portsmouth City Council,PCC,Adult Social Care,Physical Support Older People (85+),Adult Services,Third Party Payments,Other establishments,21/10/19,6327275,472.64,VENDOR,ALLIED HEALTH-SERVICES LIMITED,137338
Portsmouth City Council,PCC,Children's and Education Services,Other Children and Family Services,Children's Services and Education,Supplies and Services,Services,30/10/19,6329271,425,SOLETRADER,Classified as 'personal data' (under the Data Protection Act 2018),132145
Portsmouth City Council,PCC,Children's and Education Services,Other Children and Family Services,Children's Services and Education,Supplies and Services,Services,23/10/19,6328415,300,SOLETRADER,Classified as 'personal data' (under the Data Protection Act 2018),134578
Portsmouth City Council,PCC,Children's and Education Services,Other Children and Family Services,Children's Services and Education,Supplies and Services,Services,23/10/19,6328415,300,SOLETRADER,Classified as 'personal data' (under the Data Protection Act 2018),134578
Portsmouth City Council,PCC,Adult Social Care,Physical Support Older People (85+),Adult Services,Third Party Payments,Other establishments,11/10/19,6325803,144.8,VENDOR,ALTON MANOR CARE HOME,130289
Portsmouth City Council,PCC,Children's and Education Services,Asylum seekers,Children's Services and Education,Supplies and Services,Services,03/10/19,6324581,125,SOLETRADER,Classified as 'personal data' (under the Data Protection Act 2018),144795
Portsmouth City Council,PCC,Highways and Transport Services,"Airports, Harbours and Toll Facilities",Portsmouth International Port,Third Party Payments,Private contractors,24/10/19,6328618,550,VENDOR,SOUTHERN MARITIME SERVICES LIMITED,120765
Portsmouth City Council,PCC,Highways and Transport Services,"Airports, Harbours and Toll Facilities",Portsmouth International Port,Third Party Payments,Private contractors,03/10/19,6324630,1206.8,VENDOR,SOUTHERN MARITIME SERVICES LIMITED,120765
Portsmouth City Council,PCC,Highways and Transport Services,"Airports, Harbours and Toll Facilities",Portsmouth International Port,Third Party Payments,Private contractors,03/10/19,6324630,2533.8,VENDOR,SOUTHERN MARITIME SERVICES LIMITED,120765
Portsmouth City Council,PCC,Highways and Transport Services,"Airports, Harbours and Toll Facilities",Portsmouth International Port,Third Party Payments,Private contractors,03/10/19,6324630,343.2,VENDOR,SOUTHERN MARITIME SERVICES LIMITED,120765
Portsmouth City Council,PCC,Housing Revenue Account,HRA services share of CDC,"Housing, Neighbourhood and Building Services",Supplies and Services,Services,28/10/19,6329069,500,VENDOR,MARTIN RALPH GROUP,127283
Portsmouth City Council,PCC,Highways and Transport Services,"Airports, Harbours and Toll Facilities",Portsmouth International Port,Third Party Payments,Private contractors,03/10/19,6324630,336.05,VENDOR,SOUTHERN MARITIME SERVICES LIMITED,120765
Portsmouth City Council,PCC,Highways and Transport Services,"Airports, Harbours and Toll Facilities",Portsmouth International Port,Third Party Payments,Private contractors,10/10/19,6325774,1168.15,VENDOR,SOUTHERN MARITIME SERVICES LIMITED,120765
Portsmouth City Council,PCC,Highways and Transport Services,"Airports, Harbours and Toll Facilities",Portsmouth International Port,Third Party Payments,Private contractors,24/10/19,6328618,1490,VENDOR,SOUTHERN MARITIME SERVICES LIMITED,120765
Portsmouth City Council,PCC,Highways and Transport Services,"Airports, Harbours and Toll Facilities",Portsmouth International Port,Third Party Payments,Private contractors,24/10/19,6328618,2302.5,VENDOR,SOUTHERN MARITIME SERVICES LIMITED,120765
Portsmouth City Council,PCC,Adult Social Care,Physical Support Older People (85+),Adult Services,Third Party Payments,Other establishments,21/10/19,6327275,135.04,VENDOR,ALLIED HEALTH-SERVICES LIMITED,137338
Portsmouth City Council,PCC,Adult Social Care,Physical Support Older People (85+),Adult Services,Third Party Payments,Other establishments,21/10/19,6327275,945.28,VENDOR,ALLIED HEALTH-SERVICES LIMITED,137338
Portsmouth City Council,PCC,Children's and Education Services,Asylum seekers,Children's Services and Education,Supplies and Services,Services,03/10/19,6324581,225,SOLETRADER,Classified as 'personal data' (under the Data Protection Act 2018),144795
Portsmouth City Council,PCC,Children's and Education Services,Children Looked After,Children's Services and Education,Transport-Related Expenditure,Direct transport costs,16/10/19,6326437,927.1,VENDOR,AQUA CARS LIMITED,100011
Portsmouth City Council,PCC,Children's and Education Services,Asylum seekers,Children's Services and Education,Supplies and Services,Services,03/10/19,6324581,95,SOLETRADER,Classified as 'personal data' (under the Data Protection Act 2018),144795
Portsmouth City Council,PCC,Adult Social Care,Physical Support Older People (85+),Adult Services,Third Party Payments,Other establishments,21/10/19,6327275,270.08,VENDOR,ALLIED HEALTH-SERVICES LIMITED,137338
Portsmouth City Council,PCC,Adult Social Care,Physical Support Older People (85+),Adult Services,Third Party Payments,Other establishments,21/10/19,6327275,168.8,VENDOR,ALLIED HEALTH-SERVICES LIMITED,137338
Portsmouth City Council,PCC,Children's and Education Services,Asylum seekers,Children's Services and Education,Supplies and Services,Services,03/10/19,6324581,85,SOLETRADER,Classified as 'personal data' (under the Data Protection Act 2018),144795
Portsmouth City Council,PCC,Adult Social Care,Physical Support Older People (85+),Adult Services,Third Party Payments,Other establishments,21/10/19,6327275,1046.56,VENDOR,ALLIED HEALTH-SERVICES LIMITED,137338
Portsmouth City Council,PCC,Adult Social Care,Physical Support Older People (85+),Adult Services,Third Party Payments,Other establishments,23/10/19,6327964,945.28,VENDOR,ALLIED HEALTH-SERVICES LIMITED,137338
Portsmouth City Council,PCC,Cultural and Related Services,Recreation and Sport,"Culture, Leisure & Regulatory Services",Third Party Payments,Private contractors,08/10/19,6325005,109600.77,COMPANY,DERWENT FLOORING LTD T/A DYNAMIK,146076
Portsmouth City Council,PCC,Adult Social Care,Physical Support Older People (85+),Adult Services,Third Party Payments,Other establishments,23/10/19,6327964,472.64,VENDOR,ALLIED HEALTH-SERVICES LIMITED,137338
Portsmouth City Council,PCC,Adult Social Care,Physical Support Older People (85+),Adult Services,Third Party Payments,Other establishments,23/10/19,6327964,109.72,VENDOR,ALLIED HEALTH-SERVICES LIMITED,137338
Portsmouth City Council,PCC,Adult Social Care,Physical Support Older People (85+),Adult Services,Third Party Payments,Other establishments,23/10/19,6327964,945.28,VENDOR,ALLIED HEALTH-SERVICES LIMITED,137338
Portsmouth City Council,PCC,Children's and Education Services,Asylum seekers,Children's Services and Education,Supplies and Services,Services,03/10/19,6324581,45,SOLETRADER,Classified as 'personal data' (under the Data Protection Act 2018),144795
Portsmouth City Council,PCC,Highways and Transport Services,Parking Services,Regeneration,Employees,Indirect employee expenses,09/10/19,6325109,4130,VENDOR,ALPHA PARKING LIMITED,133516
Portsmouth City Council,PCC,Children's and Education Services,Asylum seekers,Children's Services and Education,Supplies and Services,Services,03/10/19,6324581,75,SOLETRADER,Classified as 'personal data' (under the Data Protection Act 2018),144795
Portsmouth City Council,PCC,Adult Social Care,Physical Support Older People (85+),Adult Services,Third Party Payments,Other establishments,23/10/19,6327964,270.08,VENDOR,ALLIED HEALTH-SERVICES LIMITED,137338
Portsmouth City Council,PCC,Children's and Education Services,Asylum seekers,Children's Services and Education,Supplies and Services,Services,03/10/19,6324581,45,SOLETRADER,Classified as 'personal data' (under the Data Protection Act 2018),144795
Portsmouth City Council,PCC,Solent LEP,Business support,OTHER,Supplies and Services,Miscellaneous expenses,31/10/19,6329896,460,VENDOR,EASTRIO 1 LTD,144641
Portsmouth City Council,PCC,Children's and Education Services,Asylum seekers,Children's Services and Education,Supplies and Services,Services,03/10/19,6324581,65,SOLETRADER,Classified as 'personal data' (under the Data Protection Act 2018),144795
Portsmouth City Council,PCC,Adult Social Care,Support with Memory and Cognition Older People (85+),Adult Services,Third Party Payments,Other establishments,11/10/19,6325803,2244.4,VENDOR,ALTON MANOR CARE HOME,130289
Portsmouth City Council,PCC,Adult Social Care,Support with Memory and Cognition Older People (85+),Adult Services,Third Party Payments,Other establishments,11/10/19,6325803,2244.4,VENDOR,ALTON MANOR CARE HOME,130289
Portsmouth City Council,PCC,Adult Social Care,Support with Memory and Cognition Older People (85+),Adult Services,Third Party Payments,Other establishments,11/10/19,6325803,2244.4,VENDOR,ALTON MANOR CARE HOME,130289
Portsmouth City Council,PCC,Cultural and Related Services,Open Spaces,"Culture, Leisure & Regulatory Services",Premises-Related Expenditure,Grounds maintenance costs,16/10/19,6326939,4600,COMPANY,REDS BUILDERS LTD,108228
Portsmouth City Council,PCC,Cultural and Related Services,Open Spaces,"Culture, Leisure & Regulatory Services",Premises-Related Expenditure,"Repairs, alterations and maintenance of buildings",16/10/19,6326939,1250,COMPANY,REDS BUILDERS LTD,108228
Portsmouth City Council,PCC,Highways and Transport Services,"Airports, Harbours and Toll Facilities",Portsmouth International Port,Premises-Related Expenditure,"Repairs, alterations and maintenance of buildings",24/10/19,6328600,2710,COMPANY,REDS BUILDERS LTD,108228
Portsmouth City Council,PCC,Highways and Transport Services,"Airports, Harbours and Toll Facilities",Portsmouth International Port,Premises-Related Expenditure,"Repairs, alterations and maintenance of buildings",24/10/19,6328600,3368,COMPANY,REDS BUILDERS LTD,108228
Portsmouth City Council,PCC,Highways and Transport Services,"Airports, Harbours and Toll Facilities",Portsmouth International Port,Premises-Related Expenditure,"Repairs, alterations and maintenance of buildings",24/10/19,6328600,1736,COMPANY,REDS BUILDERS LTD,108228
Portsmouth City Council,PCC,Other,Suspense and Capital Schemes,Capital - Housing RA,Capital Charges,Capital Expenditure (WIP),09/10/19,6325593,84990,COMPANY,REDS BUILDERS LTD,108228
Portsmouth City Council,PCC,Other,Suspense and Capital Schemes,Capital - Education,Capital Charges,REFCUS,28/10/19,6329097,1366,COMPANY,REDS BUILDERS LTD,108228
Portsmouth City Council,PCC,Adult Social Care,Support with Memory and Cognition Older People (85+),Adult Services,Third Party Payments,Other establishments,11/10/19,6325803,2244.4,VENDOR,ALTON MANOR CARE HOME,130289
Portsmouth City Council,PCC,Adult Social Care,Support with Memory and Cognition Older People (85+),Adult Services,Third Party Payments,Other establishments,11/10/19,6325803,434.4,VENDOR,ALTON MANOR CARE HOME,130289
Portsmouth City Council,PCC,Adult Social Care,Support with Memory and Cognition Older People (85+),Adult Services,Third Party Payments,Other establishments,11/10/19,6325803,2244.4,VENDOR,ALTON MANOR CARE HOME,130289
Portsmouth City Council,PCC,Adult Social Care,Support with Memory and Cognition Older People (85+),Adult Services,Third Party Payments,Other establishments,11/10/19,6325803,2657.32,VENDOR,ALTON MANOR CARE HOME,130289
Portsmouth City Council,PCC,Adult Social Care,Support with Memory and Cognition Older People (85+),Adult Services,Third Party Payments,Other establishments,11/10/19,6325803,1285.8,VENDOR,ALTON MANOR CARE HOME,130289
Portsmouth City Council,PCC,Adult Social Care,Support with Memory and Cognition Older People (85+),Adult Services,Third Party Payments,Other establishments,11/10/19,6325803,2244.4,VENDOR,ALTON MANOR CARE HOME,130289
Portsmouth City Council,PCC,Adult Social Care,Support with Memory and Cognition Older People (85+),Adult Services,Third Party Payments,Other establishments,11/10/19,6325803,2244.4,VENDOR,ALTON MANOR CARE HOME,130289
Portsmouth City Council,PCC,Adult Social Care,Support with Memory and Cognition Older People (85+),Adult Services,Third Party Payments,Other establishments,11/10/19,6325803,2244.4,VENDOR,ALTON MANOR CARE HOME,130289
Portsmouth City Council,PCC,Adult Social Care,Support with Memory and Cognition Older People (85+),Adult Services,Third Party Payments,Other establishments,11/10/19,6325803,2244.4,VENDOR,ALTON MANOR CARE HOME,130289
Portsmouth City Council,PCC,Adult Social Care,Support with Memory and Cognition Older People (85+),Adult Services,Third Party Payments,Other establishments,11/10/19,6325803,2244.4,VENDOR,ALTON MANOR CARE HOME,130289
Portsmouth City Council,PCC,Adult Social Care,Support with Memory and Cognition Older People (85+),Adult Services,Third Party Payments,Other establishments,11/10/19,6325803,3100,VENDOR,ALTON MANOR CARE HOME,130289
Portsmouth City Council,PCC,Adult Social Care,Support with Memory and Cognition Older People (85+),Adult Services,Third Party Payments,Other establishments,11/10/19,6325803,2244.4,VENDOR,ALTON MANOR CARE HOME,130289
Portsmouth City Council,PCC,Adult Social Care,Support with Memory and Cognition Older People (85+),Adult Services,Third Party Payments,Other establishments,11/10/19,6325803,2244.4,VENDOR,ALTON MANOR CARE HOME,130289
Portsmouth City Council,PCC,Adult Social Care,Support with Memory and Cognition Older People (85+),Adult Services,Third Party Payments,Other establishments,11/10/19,6325803,2244.4,VENDOR,ALTON MANOR CARE HOME,130289
Portsmouth City Council,PCC,Adult Social Care,Mental Health Support Adults (18 - 64),Adult Services,Third Party Payments,Other establishments,11/10/19,6325803,2158.22,VENDOR,ALTON MANOR CARE HOME,130289
Portsmouth City Council,PCC,Adult Social Care,Learning Disability Support  Adults (18 - 64),Adult Services,Third Party Payments,Other establishments,11/10/19,6325812,10031.6,VENDOR,ASPENS CHARITIES,119343
Portsmouth City Council,PCC,Public Health,Public Health - Split Costing,Public Health,Supplies and Services,"Printing, stationery and general office expenses",03/10/19,6324507,3250,VENDOR,ASSOCIATION OF DIRECTORS OF PUBLIC HEALTH,141443
Portsmouth City Council,PCC,Adult Social Care,Learning Disability Support  Adults (18 - 64),Adult Services,Third Party Payments,Other establishments,11/10/19,6325813,9297.21,VENDOR,ASSURE HEALTH CARE GROUP,140779
Portsmouth City Council,PCC,Adult Social Care,Learning Disability Support  Adults (18 - 64),Adult Services,Third Party Payments,Other establishments,11/10/19,6325813,7334.6,VENDOR,ASSURE HEALTH CARE GROUP,140779
Portsmouth City Council,PCC,Adult Social Care,Learning Disability Support  Adults (18 - 64),Adult Services,Third Party Payments,Other establishments,30/10/19,6329263,1510.52,VENDOR,AUTISM HAMPSHIRE,139112
Portsmouth City Council,PCC,Adult Social Care,Learning Disability Support  Adults (18 - 64),Adult Services,Third Party Payments,Other establishments,01/10/19,6323861,1647.84,VENDOR,AUTISM HAMPSHIRE,139112
Portsmouth City Council,PCC,Adult Social Care,Social Care Activities,Adult Services,Third Party Payments,Other establishments,11/10/19,6325817,15860.53,VENDOR,AUTISM HAMPSHIRE,139112
Portsmouth City Council,PCC,Adult Social Care,Learning Disability Support  Adults (18 - 64),Adult Services,Third Party Payments,Other establishments,11/10/19,6325817,5964.71,VENDOR,AUTISM HAMPSHIRE,139112
Portsmouth City Council,PCC,Adult Social Care,Learning Disability Support  Adults (18 - 64),Adult Services,Third Party Payments,Other establishments,11/10/19,6325817,5708.65,VENDOR,AUTISM HAMPSHIRE,139112
Portsmouth City Council,PCC,Adult Social Care,Learning Disability Support  Adults (18 - 64),Adult Services,Third Party Payments,Other establishments,11/10/19,6325817,3863.22,VENDOR,AUTISM HAMPSHIRE,139112
Portsmouth City Council,PCC,Adult Social Care,Learning Disability Support  Adults (18 - 64),Adult Services,Third Party Payments,Other establishments,11/10/19,6325817,8917.15,VENDOR,AUTISM HAMPSHIRE,139112
Portsmouth City Council,PCC,Adult Social Care,Learning Disability Support  Adults (18 - 64),Adult Services,Third Party Payments,Other establishments,11/10/19,6325817,3738.6,VENDOR,AUTISM HAMPSHIRE,139112
Portsmouth City Council,PCC,Adult Social Care,Support with Memory and Cognition Older People (85+),Adult Services,Third Party Payments,Other establishments,11/10/19,6325818,1551.55,VENDOR,AUTUMN VALE REST HOME,100551
Portsmouth City Council,PCC,Adult Social Care,Support with Memory and Cognition Older People (85+),Adult Services,Third Party Payments,Other establishments,11/10/19,6325818,2380.49,VENDOR,AUTUMN VALE REST HOME,100551
Portsmouth City Council,PCC,Adult Social Care,Support with Memory and Cognition Older People (85+),Adult Services,Third Party Payments,Other establishments,11/10/19,6325818,780,VENDOR,AUTUMN VALE REST HOME,100551
Portsmouth City Council,PCC,Adult Social Care,Support with Memory and Cognition Older People (85+),Adult Services,Third Party Payments,Other establishments,11/10/19,6325818,1860,VENDOR,AUTUMN VALE REST HOME,100551
Portsmouth City Council,PCC,Adult Social Care,Support with Memory and Cognition Older People (85+),Adult Services,Third Party Payments,Other establishments,11/10/19,6325818,1800,VENDOR,AUTUMN VALE REST HOME,100551
Portsmouth City Council,PCC,Adult Social Care,Mental Health Support Adults (18 - 64),Adult Services,Third Party Payments,Other establishments,11/10/19,6325818,3649.32,VENDOR,AUTUMN VALE REST HOME,100551
Portsmouth City Council,PCC,Adult Social Care,Mental Health Support Adults (18 - 64),Adult Services,Third Party Payments,Other establishments,11/10/19,6325818,2125.36,VENDOR,AUTUMN VALE REST HOME,100551
Portsmouth City Council,PCC,Adult Social Care,Mental Health Support Adults (18 - 64),Adult Services,Third Party Payments,Other establishments,11/10/19,6325818,3488.43,VENDOR,AUTUMN VALE REST HOME,100551
Portsmouth City Council,PCC,Adult Social Care,Mental Health Support Adults (18 - 64),Adult Services,Third Party Payments,Other establishments,11/10/19,6325818,2305.16,VENDOR,AUTUMN VALE REST HOME,100551
Portsmouth City Council,PCC,Adult Social Care,Mental Health Support Adults (18 - 64),Adult Services,Third Party Payments,Other establishments,11/10/19,6325818,3352.65,VENDOR,AUTUMN VALE REST HOME,100551
Portsmouth City Council,PCC,Adult Social Care,Mental Health Support Adults (18 - 64),Adult Services,Third Party Payments,Other establishments,11/10/19,6325818,2554.4,VENDOR,AUTUMN VALE REST HOME,100551
Portsmouth City Council,PCC,Adult Social Care,Mental Health Support Adults (18 - 64),Adult Services,Third Party Payments,Other establishments,11/10/19,6325818,3256.86,VENDOR,AUTUMN VALE REST HOME,100551
Portsmouth City Council,PCC,Adult Social Care,Mental Health Support Adults (18 - 64),Adult Services,Third Party Payments,Other establishments,11/10/19,6325818,2469.77,VENDOR,AUTUMN VALE REST HOME,100551
Portsmouth City Council,PCC,Adult Social Care,Physical Support Older People (85+),Adult Services,Third Party Payments,Other establishments,25/10/19,6328660,415,SOLETRADER,RED SQUIRREL,145135
Portsmouth City Council,PCC,Adult Social Care,Support with Memory and Cognition Older People (85+),Adult Services,Third Party Payments,Other establishments,11/10/19,6325822,2724.9,VENDOR,BAYITH REST HOME,101832
Portsmouth City Council,PCC,Adult Social Care,Social Care Activities,Adult Services,Third Party Payments,Other establishments,11/10/19,6325823,3327.23,VENDOR,BEACONSFIELD RESIDENTIAL CARE HOME,100568
Portsmouth City Council,PCC,Adult Social Care,Learning Disability Support  Adults (18 - 64),Adult Services,Third Party Payments,Other establishments,11/10/19,6325823,3420.85,VENDOR,BEACONSFIELD RESIDENTIAL CARE HOME,100568
Portsmouth City Council,PCC,Adult Social Care,Learning Disability Support  Adults (18 - 64),Adult Services,Third Party Payments,Other establishments,11/10/19,6325823,2509.14,VENDOR,BEACONSFIELD RESIDENTIAL CARE HOME,100568
Portsmouth City Council,PCC,Adult Social Care,Mental Health Support Adults (18 - 64),Adult Services,Third Party Payments,Other establishments,11/10/19,6325823,1824.97,VENDOR,BEACONSFIELD RESIDENTIAL CARE HOME,100568
Portsmouth City Council,PCC,Adult Social Care,Mental Health Support Adults (18 - 64),Adult Services,Third Party Payments,Other establishments,11/10/19,6325823,1896.58,VENDOR,BEACONSFIELD RESIDENTIAL CARE HOME,100568
Portsmouth City Council,PCC,Adult Social Care,Mental Health Support Adults (18 - 64),Adult Services,Third Party Payments,Other establishments,11/10/19,6325823,1771.03,VENDOR,BEACONSFIELD RESIDENTIAL CARE HOME,100568
Portsmouth City Council,PCC,Adult Social Care,Mental Health Support Adults (18 - 64),Adult Services,Third Party Payments,Other establishments,11/10/19,6325823,1860.93,VENDOR,BEACONSFIELD RESIDENTIAL CARE HOME,100568
Portsmouth City Council,PCC,Adult Social Care,Mental Health Support Adults (18 - 64),Adult Services,Third Party Payments,Other establishments,11/10/19,6325823,2382.66,VENDOR,BEACONSFIELD RESIDENTIAL CARE HOME,100568
Portsmouth City Council,PCC,Adult Social Care,Mental Health Support Adults (18 - 64),Adult Services,Third Party Payments,Other establishments,11/10/19,6325823,1860.93,VENDOR,BEACONSFIELD RESIDENTIAL CARE HOME,100568
Portsmouth City Council,PCC,Adult Social Care,Mental Health Support Adults (18 - 64),Adult Services,Third Party Payments,Other establishments,11/10/19,6325823,1860.93,VENDOR,BEACONSFIELD RESIDENTIAL CARE HOME,100568
Portsmouth City Council,PCC,Adult Social Care,Mental Health Support Adults (18 - 64),Adult Services,Third Party Payments,Other establishments,11/10/19,6325823,1789.32,VENDOR,BEACONSFIELD RESIDENTIAL CARE HOME,100568
Portsmouth City Council,PCC,Adult Social Care,Mental Health Support Adults (18 - 64),Adult Services,Third Party Payments,Other establishments,11/10/19,6325823,2605.55,VENDOR,BEACONSFIELD RESIDENTIAL CARE HOME,100568
Portsmouth City Council,PCC,Adult Social Care,Mental Health Support Adults (18 - 64),Adult Services,Third Party Payments,Other establishments,11/10/19,6325823,1824.97,VENDOR,BEACONSFIELD RESIDENTIAL CARE HOME,100568
Portsmouth City Council,PCC,Adult Social Care,Mental Health Support Adults (18 - 64),Adult Services,Third Party Payments,Other establishments,11/10/19,6325823,1860.93,VENDOR,BEACONSFIELD RESIDENTIAL CARE HOME,100568
Portsmouth City Council,PCC,Adult Social Care,Mental Health Support Adults (18 - 64),Adult Services,Third Party Payments,Other establishments,11/10/19,6325823,1824.97,VENDOR,BEACONSFIELD RESIDENTIAL CARE HOME,100568
Portsmouth City Council,PCC,Adult Social Care,Mental Health Support Adults (18 - 64),Adult Services,Third Party Payments,Other establishments,11/10/19,6325823,1967.88,VENDOR,BEACONSFIELD RESIDENTIAL CARE HOME,100568
Portsmouth City Council,PCC,Adult Social Care,Mental Health Support Adults (18 - 64),Adult Services,Third Party Payments,Other establishments,11/10/19,6325823,2023.37,VENDOR,BEACONSFIELD RESIDENTIAL CARE HOME,100568
Portsmouth City Council,PCC,Adult Social Care,Mental Health Support Adults (18 - 64),Adult Services,Third Party Payments,Other establishments,11/10/19,6325823,1860.93,VENDOR,BEACONSFIELD RESIDENTIAL CARE HOME,100568
Portsmouth City Council,PCC,Adult Social Care,Mental Health Support Adults (18 - 64),Adult Services,Third Party Payments,Other establishments,11/10/19,6325823,1932.23,VENDOR,BEACONSFIELD RESIDENTIAL CARE HOME,100568
Portsmouth City Council,PCC,Adult Social Care,Social Care Activities,Adult Services,Third Party Payments,Other establishments,11/10/19,6325824,11455.43,VENDOR,BEDHAMPTON NURSING HOME,100569
Portsmouth City Council,PCC,Adult Social Care,Social Care Activities,Adult Services,Third Party Payments,Other establishments,11/10/19,6325824,11770.08,VENDOR,BEDHAMPTON NURSING HOME,100569
Portsmouth City Council,PCC,Adult Social Care,Social Care Activities,Adult Services,Third Party Payments,Other establishments,11/10/19,6325824,6632.14,VENDOR,BEDHAMPTON NURSING HOME,100569
Portsmouth City Council,PCC,Adult Social Care,Social Care Activities,Adult Services,Third Party Payments,Other establishments,11/10/19,6325824,4489.73,VENDOR,BEDHAMPTON NURSING HOME,100569
Portsmouth City Council,PCC,Adult Social Care,Social Care Activities,Adult Services,Third Party Payments,Other establishments,11/10/19,6325824,4582.73,VENDOR,BEDHAMPTON NURSING HOME,100569
Portsmouth City Council,PCC,Adult Social Care,Social Care Activities,Adult Services,Third Party Payments,Other establishments,11/10/19,6325824,733.19,VENDOR,BEDHAMPTON NURSING HOME,100569
Portsmouth City Council,PCC,Adult Social Care,Social Care Activities,Adult Services,Third Party Payments,Other establishments,11/10/19,6325824,733.19,VENDOR,BEDHAMPTON NURSING HOME,100569
Portsmouth City Council,PCC,Adult Social Care,Social Care Activities,Adult Services,Third Party Payments,Other establishments,11/10/19,6325824,733.19,VENDOR,BEDHAMPTON NURSING HOME,100569
Portsmouth City Council,PCC,Adult Social Care,Social Care Activities,Adult Services,Third Party Payments,Other establishments,11/10/19,6325824,733.19,VENDOR,BEDHAMPTON NURSING HOME,100569
Portsmouth City Council,PCC,Adult Social Care,Physical Support Older People (85+),Adult Services,Third Party Payments,Other establishments,11/10/19,6325824,2771.4,VENDOR,BEDHAMPTON NURSING HOME,100569
Portsmouth City Council,PCC,Adult Social Care,Social Care Activities,Adult Services,Third Party Payments,Other establishments,14/10/19,6326112,5757.32,VENDOR,BEDHAMPTON NURSING HOME,100569
Portsmouth City Council,PCC,Adult Social Care,Social Care Activities,Adult Services,Third Party Payments,Other establishments,14/10/19,6326112,3157.24,VENDOR,BEDHAMPTON NURSING HOME,100569
Portsmouth City Council,PCC,Housing Revenue Account,Special Services,"Housing, Neighbourhood and Building Services",Employees,Direct employee expenses,28/10/19,6329129,3867.64,VENDOR,THE PORTSMOUTH SITTING SERVICE AND COMMUNITY CARE SERVICES LTD T/A ASSURED CARE,100201
Portsmouth City Council,PCC,Adult Social Care,Mental Health Support Older People (65 - 74),Adult Services,Third Party Payments,Other establishments,23/10/19,6328476,405.12,VENDOR,THE PORTSMOUTH SITTING SERVICE AND COMMUNITY CARE SERVICES LTD T/A ASSURED CARE,100201
Portsmouth City Council,PCC,Adult Social Care,Social Care Activities,Adult Services,Third Party Payments,Other establishments,23/10/19,6328476,388.24,VENDOR,THE PORTSMOUTH SITTING SERVICE AND COMMUNITY CARE SERVICES LTD T/A ASSURED CARE,100201
Portsmouth City Council,PCC,Adult Social Care,Social Care Activities,Adult Services,Third Party Payments,Other establishments,23/10/19,6328476,435.6,VENDOR,THE PORTSMOUTH SITTING SERVICE AND COMMUNITY CARE SERVICES LTD T/A ASSURED CARE,100201
Portsmouth City Council,PCC,Adult Social Care,Physical Support Adults (18 - 64),Adult Services,Third Party Payments,Other establishments,23/10/19,6328476,641.44,VENDOR,THE PORTSMOUTH SITTING SERVICE AND COMMUNITY CARE SERVICES LTD T/A ASSURED CARE,100201
Portsmouth City Council,PCC,Adult Social Care,Physical Support Adults (18 - 64),Adult Services,Third Party Payments,Other establishments,23/10/19,6328476,472.64,VENDOR,THE PORTSMOUTH SITTING SERVICE AND COMMUNITY CARE SERVICES LTD T/A ASSURED CARE,100201
Portsmouth City Council,PCC,Adult Social Care,Physical Support Older People (85+),Adult Services,Third Party Payments,Other establishments,23/10/19,6328476,67.52,VENDOR,THE PORTSMOUTH SITTING SERVICE AND COMMUNITY CARE SERVICES LTD T/A ASSURED CARE,100201
Portsmouth City Council,PCC,Adult Social Care,Physical Support Older People (85+),Adult Services,Third Party Payments,Other establishments,23/10/19,6328476,405.12,VENDOR,THE PORTSMOUTH SITTING SERVICE AND COMMUNITY CARE SERVICES LTD T/A ASSURED CARE,100201
Portsmouth City Council,PCC,Adult Social Care,Physical Support Older People (85+),Adult Services,Third Party Payments,Other establishments,23/10/19,6328476,590.8,VENDOR,THE PORTSMOUTH SITTING SERVICE AND COMMUNITY CARE SERVICES LTD T/A ASSURED CARE,100201
Portsmouth City Council,PCC,Adult Social Care,Physical Support Older People (85+),Adult Services,Third Party Payments,Other establishments,23/10/19,6328476,236.32,VENDOR,THE PORTSMOUTH SITTING SERVICE AND COMMUNITY CARE SERVICES LTD T/A ASSURED CARE,100201
Portsmouth City Council,PCC,Adult Social Care,Physical Support Older People (85+),Adult Services,Third Party Payments,Other establishments,23/10/19,6328476,236.32,VENDOR,THE PORTSMOUTH SITTING SERVICE AND COMMUNITY CARE SERVICES LTD T/A ASSURED CARE,100201
Portsmouth City Council,PCC,Adult Social Care,Physical Support Older People (85+),Adult Services,Third Party Payments,Other establishments,23/10/19,6328476,945.28,VENDOR,THE PORTSMOUTH SITTING SERVICE AND COMMUNITY CARE SERVICES LTD T/A ASSURED CARE,100201
Portsmouth City Council,PCC,Adult Social Care,Physical Support Older People (85+),Adult Services,Third Party Payments,Other establishments,23/10/19,6328476,101.28,VENDOR,THE PORTSMOUTH SITTING SERVICE AND COMMUNITY CARE SERVICES LTD T/A ASSURED CARE,100201
Portsmouth City Council,PCC,Adult Social Care,Physical Support Older People (85+),Adult Services,Third Party Payments,Other establishments,23/10/19,6328476,135.04,VENDOR,THE PORTSMOUTH SITTING SERVICE AND COMMUNITY CARE SERVICES LTD T/A ASSURED CARE,100201
Portsmouth City Council,PCC,Adult Social Care,Physical Support Older People (85+),Adult Services,Third Party Payments,Other establishments,23/10/19,6328476,970.6,VENDOR,THE PORTSMOUTH SITTING SERVICE AND COMMUNITY CARE SERVICES LTD T/A ASSURED CARE,100201
Portsmouth City Council,PCC,Adult Social Care,Physical Support Older People (85+),Adult Services,Third Party Payments,Other establishments,23/10/19,6328476,33.76,VENDOR,THE PORTSMOUTH SITTING SERVICE AND COMMUNITY CARE SERVICES LTD T/A ASSURED CARE,100201
Portsmouth City Council,PCC,Adult Social Care,Physical Support Older People (85+),Adult Services,Third Party Payments,Other establishments,23/10/19,6328476,472.64,VENDOR,THE PORTSMOUTH SITTING SERVICE AND COMMUNITY CARE SERVICES LTD T/A ASSURED CARE,100201
Portsmouth City Council,PCC,Adult Social Care,Physical Support Older People (85+),Adult Services,Third Party Payments,Other establishments,23/10/19,6328476,50.64,VENDOR,THE PORTSMOUTH SITTING SERVICE AND COMMUNITY CARE SERVICES LTD T/A ASSURED CARE,100201
Portsmouth City Council,PCC,Adult Social Care,Physical Support Older People (85+),Adult Services,Third Party Payments,Other establishments,23/10/19,6328476,50.64,VENDOR,THE PORTSMOUTH SITTING SERVICE AND COMMUNITY CARE SERVICES LTD T/A ASSURED CARE,100201
Portsmouth City Council,PCC,Adult Social Care,Physical Support Older People (85+),Adult Services,Third Party Payments,Other establishments,23/10/19,6328476,945.28,VENDOR,THE PORTSMOUTH SITTING SERVICE AND COMMUNITY CARE SERVICES LTD T/A ASSURED CARE,100201
Portsmouth City Council,PCC,Adult Social Care,Physical Support Older People (85+),Adult Services,Third Party Payments,Other establishments,23/10/19,6328476,67.52,VENDOR,THE PORTSMOUTH SITTING SERVICE AND COMMUNITY CARE SERVICES LTD T/A ASSURED CARE,100201
Portsmouth City Council,PCC,Adult Social Care,Physical Support Older People (85+),Adult Services,Third Party Payments,Other establishments,23/10/19,6328476,422,VENDOR,THE PORTSMOUTH SITTING SERVICE AND COMMUNITY CARE SERVICES LTD T/A ASSURED CARE,100201
Portsmouth City Council,PCC,Adult Social Care,Physical Support Older People (85+),Adult Services,Third Party Payments,Other establishments,23/10/19,6328476,708.96,VENDOR,THE PORTSMOUTH SITTING SERVICE AND COMMUNITY CARE SERVICES LTD T/A ASSURED CARE,100201
Portsmouth City Council,PCC,Adult Social Care,Physical Support Older People (85+),Adult Services,Third Party Payments,Other establishments,23/10/19,6328476,708.96,VENDOR,THE PORTSMOUTH SITTING SERVICE AND COMMUNITY CARE SERVICES LTD T/A ASSURED CARE,100201
Portsmouth City Council,PCC,Adult Social Care,Physical Support Older People (85+),Adult Services,Third Party Payments,Other establishments,23/10/19,6328476,1287.1,VENDOR,THE PORTSMOUTH SITTING SERVICE AND COMMUNITY CARE SERVICES LTD T/A ASSURED CARE,100201
Portsmouth City Council,PCC,Adult Social Care,Physical Support Older People (85+),Adult Services,Third Party Payments,Other establishments,23/10/19,6328476,405.12,VENDOR,THE PORTSMOUTH SITTING SERVICE AND COMMUNITY CARE SERVICES LTD T/A ASSURED CARE,100201
Portsmouth City Council,PCC,Adult Social Care,Physical Support Older People (85+),Adult Services,Third Party Payments,Other establishments,23/10/19,6328476,565.48,VENDOR,THE PORTSMOUTH SITTING SERVICE AND COMMUNITY CARE SERVICES LTD T/A ASSURED CARE,100201
Portsmouth City Council,PCC,Adult Social Care,Physical Support Older People (85+),Adult Services,Third Party Payments,Other establishments,23/10/19,6328476,270.08,VENDOR,THE PORTSMOUTH SITTING SERVICE AND COMMUNITY CARE SERVICES LTD T/A ASSURED CARE,100201
Portsmouth City Council,PCC,Adult Social Care,Physical Support Older People (85+),Adult Services,Third Party Payments,Other establishments,23/10/19,6328476,341.82,VENDOR,THE PORTSMOUTH SITTING SERVICE AND COMMUNITY CARE SERVICES LTD T/A ASSURED CARE,100201
Portsmouth City Council,PCC,Adult Social Care,Social Support - Support for Carer,Adult Services,Third Party Payments,Other establishments,23/10/19,6328476,181.5,VENDOR,THE PORTSMOUTH SITTING SERVICE AND COMMUNITY CARE SERVICES LTD T/A ASSURED CARE,100201
Portsmouth City Council,PCC,Adult Social Care,Social Support - Support for Carer,Adult Services,Third Party Payments,Other establishments,23/10/19,6328476,174.24,VENDOR,THE PORTSMOUTH SITTING SERVICE AND COMMUNITY CARE SERVICES LTD T/A ASSURED CARE,100201
Portsmouth City Council,PCC,Adult Social Care,Social Support - Support for Carer,Adult Services,Third Party Payments,Other establishments,23/10/19,6328476,232.32,VENDOR,THE PORTSMOUTH SITTING SERVICE AND COMMUNITY CARE SERVICES LTD T/A ASSURED CARE,100201
Portsmouth City Council,PCC,Adult Social Care,Social Support - Support for Carer,Adult Services,Third Party Payments,Other establishments,23/10/19,6328476,290.4,VENDOR,THE PORTSMOUTH SITTING SERVICE AND COMMUNITY CARE SERVICES LTD T/A ASSURED CARE,100201
Portsmouth City Council,PCC,Adult Social Care,Social Support - Support for Carer,Adult Services,Third Party Payments,Other establishments,23/10/19,6328476,261.36,VENDOR,THE PORTSMOUTH SITTING SERVICE AND COMMUNITY CARE SERVICES LTD T/A ASSURED CARE,100201
Portsmouth City Council,PCC,Adult Social Care,Social Support - Support for Carer,Adult Services,Third Party Payments,Other establishments,23/10/19,6328476,145.2,VENDOR,THE PORTSMOUTH SITTING SERVICE AND COMMUNITY CARE SERVICES LTD T/A ASSURED CARE,100201
Portsmouth City Council,PCC,Adult Social Care,Social Support - Support for Carer,Adult Services,Third Party Payments,Other establishments,23/10/19,6328476,348.48,VENDOR,THE PORTSMOUTH SITTING SERVICE AND COMMUNITY CARE SERVICES LTD T/A ASSURED CARE,100201
Portsmouth City Council,PCC,Adult Social Care,Social Support - Support for Carer,Adult Services,Third Party Payments,Other establishments,23/10/19,6328476,174.24,VENDOR,THE PORTSMOUTH SITTING SERVICE AND COMMUNITY CARE SERVICES LTD T/A ASSURED CARE,100201
Portsmouth City Council,PCC,Adult Social Care,Social Support - Support for Carer,Adult Services,Third Party Payments,Other establishments,23/10/19,6328476,290.4,VENDOR,THE PORTSMOUTH SITTING SERVICE AND COMMUNITY CARE SERVICES LTD T/A ASSURED CARE,100201
Portsmouth City Council,PCC,Adult Social Care,Social Support - Support for Carer,Adult Services,Third Party Payments,Other establishments,23/10/19,6328476,348.48,VENDOR,THE PORTSMOUTH SITTING SERVICE AND COMMUNITY CARE SERVICES LTD T/A ASSURED CARE,100201
Portsmouth City Council,PCC,Adult Social Care,Social Support - Support for Carer,Adult Services,Third Party Payments,Other establishments,23/10/19,6328476,348.48,VENDOR,THE PORTSMOUTH SITTING SERVICE AND COMMUNITY CARE SERVICES LTD T/A ASSURED CARE,100201
Portsmouth City Council,PCC,Children's and Education Services,Family Support Services,Children's Services and Education,Third Party Payments,Other establishments,30/10/19,6329783,92,VENDOR,PREPAID FINANCIAL SERVICES,137139
Portsmouth City Council,PCC,Children's and Education Services,Children Looked After,Children's Services and Education,Third Party Payments,Other establishments,30/10/19,6329783,45.6,VENDOR,PREPAID FINANCIAL SERVICES,137139
Portsmouth City Council,PCC,Children's and Education Services,Other Education and Community Budget,Children's Services and Education,Third Party Payments,Other establishments,30/10/19,6329783,98.15,VENDOR,PREPAID FINANCIAL SERVICES,137139
Portsmouth City Council,PCC,Children's and Education Services,Other Education and Community Budget,Children's Services and Education,Third Party Payments,Other establishments,30/10/19,6329783,609.4,VENDOR,PREPAID FINANCIAL SERVICES,137139
Portsmouth City Council,PCC,Adult Social Care,Social Care Activities,Adult Services,Third Party Payments,Other establishments,14/10/19,6326112,5757.32,VENDOR,BEDHAMPTON NURSING HOME,100569
Portsmouth City Council,PCC,Cultural and Related Services,Open Spaces,"Culture, Leisure & Regulatory Services",Third Party Payments,Private contractors,24/10/19,6328572,16030.55,COMPANY,JTS CIVIL ENGINEERS LTD,134670
Portsmouth City Council,PCC,Cultural and Related Services,Culture and Heritage,"Culture, Leisure & Regulatory Services",Premises-Related Expenditure,Grounds maintenance costs,25/10/19,6328768,3562.35,COMPANY,JTS CIVIL ENGINEERS LTD,134670
Portsmouth City Council,PCC,Cultural and Related Services,Tourism,"Culture, Leisure & Regulatory Services",Supplies and Services,"Equipment, furniture and materials",04/10/19,6324811,970,VENDOR,THE CONTINUUM GROUP LTD,117630
Portsmouth City Council,PCC,Other,Suspense and Capital Schemes,Capital - Housing RA,Capital Charges,Capital Expenditure (WIP),21/10/19,6327296,-9500,COMPANY,COMPREHENSIVE ELEVATOR SERVICES LIMITED,134354
Portsmouth City Council,PCC,Highways and Transport Services,"Airports, Harbours and Toll Facilities",Portsmouth International Port,Premises-Related Expenditure,"Repairs, alterations and maintenance of buildings",03/10/19,6324501,480,VENDOR,AC WALLBRIDGE & CO LTD,106407
Portsmouth City Council,PCC,Cultural and Related Services,Tourism,"Culture, Leisure & Regulatory Services",Supplies and Services,"Equipment, furniture and materials",25/10/19,6328868,685.34,VENDOR,THE CONTINUUM GROUP LTD,117630
Portsmouth City Council,PCC,Adult Social Care,Social Care Activities,Adult Services,Third Party Payments,Other establishments,14/10/19,6326112,5571.6,VENDOR,BEDHAMPTON NURSING HOME,100569
Portsmouth City Council,PCC,Adult Social Care,Physical Support Older People (85+),Adult Services,Third Party Payments,Other establishments,11/10/19,6325826,3764.33,VENDOR,BETHESDA HEALTHCARE,143824
Portsmouth City Council,PCC,Adult Social Care,Support with Memory and Cognition Older People (85+),Adult Services,Third Party Payments,Other establishments,11/10/19,6325826,506.8,VENDOR,BETHESDA HEALTHCARE,143824
Portsmouth City Council,PCC,Adult Social Care,Support with Memory and Cognition Older People (85+),Adult Services,Third Party Payments,Other establishments,11/10/19,6325826,3542.99,VENDOR,BETHESDA HEALTHCARE,143824
Portsmouth City Council,PCC,Adult Social Care,Support with Memory and Cognition Older People (85+),Adult Services,Third Party Payments,Other establishments,11/10/19,6325826,2201.31,VENDOR,BETHESDA HEALTHCARE,143824
Portsmouth City Council,PCC,Adult Social Care,Support with Memory and Cognition Older People (85+),Adult Services,Third Party Payments,Other establishments,11/10/19,6325826,2244.4,VENDOR,BETHESDA HEALTHCARE,143824
Portsmouth City Council,PCC,Adult Social Care,Social Care Activities,Adult Services,Third Party Payments,Other establishments,11/10/19,6325825,3897.01,VENDOR,BETHESDA HEALTHCARE,143824
Portsmouth City Council,PCC,Adult Social Care,Social Care Activities,Adult Services,Third Party Payments,Other establishments,11/10/19,6325828,5048.04,VENDOR,BLUEBELL NURSING HOME,100112
Portsmouth City Council,PCC,Adult Social Care,Social Care Activities,Adult Services,Third Party Payments,Other establishments,11/10/19,6325828,4565.99,VENDOR,BLUEBELL NURSING HOME,100112
Portsmouth City Council,PCC,Adult Social Care,Social Care Activities,Adult Services,Third Party Payments,Other establishments,11/10/19,6325828,5159.95,VENDOR,BLUEBELL NURSING HOME,100112
Portsmouth City Council,PCC,Adult Social Care,Social Care Activities,Adult Services,Third Party Payments,Other establishments,11/10/19,6325828,4629.85,VENDOR,BLUEBELL NURSING HOME,100112
Portsmouth City Council,PCC,Adult Social Care,Social Care Activities,Adult Services,Third Party Payments,Other establishments,11/10/19,6325828,4371,VENDOR,BLUEBELL NURSING HOME,100112
Portsmouth City Council,PCC,Adult Social Care,Social Care Activities,Adult Services,Third Party Payments,Other establishments,11/10/19,6325828,1974,VENDOR,BLUEBELL NURSING HOME,100112
Portsmouth City Council,PCC,Adult Social Care,Social Care Activities,Adult Services,Third Party Payments,Other establishments,11/10/19,6325828,4371,VENDOR,BLUEBELL NURSING HOME,100112
Portsmouth City Council,PCC,Adult Social Care,Social Care Activities,Adult Services,Third Party Payments,Other establishments,11/10/19,6325828,4230,VENDOR,BLUEBELL NURSING HOME,100112
Portsmouth City Council,PCC,Adult Social Care,Social Care Activities,Adult Services,Third Party Payments,Other establishments,11/10/19,6325828,4310.55,VENDOR,BLUEBELL NURSING HOME,100112
Portsmouth City Council,PCC,Adult Social Care,Social Care Activities,Adult Services,Third Party Payments,Other establishments,11/10/19,6325828,5308.75,VENDOR,BLUEBELL NURSING HOME,100112
Portsmouth City Council,PCC,Adult Social Care,Social Care Activities,Adult Services,Third Party Payments,Other establishments,11/10/19,6325828,4789.5,VENDOR,BLUEBELL NURSING HOME,100112
Portsmouth City Council,PCC,Adult Social Care,Social Care Activities,Adult Services,Third Party Payments,Other establishments,11/10/19,6325828,-1609.2,VENDOR,BLUEBELL NURSING HOME,100112
Portsmouth City Council,PCC,Adult Social Care,Social Care Activities,Adult Services,Third Party Payments,Other establishments,11/10/19,6325828,5587.75,VENDOR,BLUEBELL NURSING HOME,100112
Portsmouth City Council,PCC,Adult Social Care,Social Care Activities,Adult Services,Third Party Payments,Other establishments,11/10/19,6325828,5428.1,VENDOR,BLUEBELL NURSING HOME,100112
Portsmouth City Council,PCC,Adult Social Care,Social Care Activities,Adult Services,Third Party Payments,Other establishments,11/10/19,6325828,2771.4,VENDOR,BLUEBELL NURSING HOME,100112
Portsmouth City Council,PCC,Adult Social Care,Social Care Activities,Adult Services,Third Party Payments,Other establishments,11/10/19,6325828,1609.2,VENDOR,BLUEBELL NURSING HOME,100112
Portsmouth City Council,PCC,Adult Social Care,Social Care Activities,Adult Services,Third Party Payments,Other establishments,11/10/19,6325828,733.19,VENDOR,BLUEBELL NURSING HOME,100112
Portsmouth City Council,PCC,Adult Social Care,Social Care Activities,Adult Services,Third Party Payments,Other establishments,11/10/19,6325828,733.19,VENDOR,BLUEBELL NURSING HOME,100112
Portsmouth City Council,PCC,Adult Social Care,Social Care Activities,Adult Services,Third Party Payments,Other establishments,11/10/19,6325828,733.19,VENDOR,BLUEBELL NURSING HOME,100112
Portsmouth City Council,PCC,Adult Social Care,Social Care Activities,Adult Services,Third Party Payments,Other establishments,11/10/19,6325828,733.19,VENDOR,BLUEBELL NURSING HOME,100112
Portsmouth City Council,PCC,Adult Social Care,Social Care Activities,Adult Services,Third Party Payments,Other establishments,11/10/19,6325828,733.19,VENDOR,BLUEBELL NURSING HOME,100112
Portsmouth City Council,PCC,Adult Social Care,Social Care Activities,Adult Services,Third Party Payments,Other establishments,11/10/19,6325828,733.19,VENDOR,BLUEBELL NURSING HOME,100112
Portsmouth City Council,PCC,Adult Social Care,Social Care Activities,Adult Services,Third Party Payments,Other establishments,11/10/19,6325828,733.19,VENDOR,BLUEBELL NURSING HOME,100112
Portsmouth City Council,PCC,Adult Social Care,Social Care Activities,Adult Services,Third Party Payments,Other establishments,11/10/19,6325828,733.19,VENDOR,BLUEBELL NURSING HOME,100112
Portsmouth City Council,PCC,Adult Social Care,Social Care Activities,Adult Services,Third Party Payments,Other establishments,11/10/19,6325828,733.19,VENDOR,BLUEBELL NURSING HOME,100112
Portsmouth City Council,PCC,Adult Social Care,Social Care Activities,Adult Services,Third Party Payments,Other establishments,11/10/19,6325828,733.19,VENDOR,BLUEBELL NURSING HOME,100112
Portsmouth City Council,PCC,Adult Social Care,Social Care Activities,Adult Services,Third Party Payments,Other establishments,11/10/19,6325828,733.19,VENDOR,BLUEBELL NURSING HOME,100112
Portsmouth City Council,PCC,Adult Social Care,Social Care Activities,Adult Services,Third Party Payments,Other establishments,11/10/19,6325828,733.19,VENDOR,BLUEBELL NURSING HOME,100112
Portsmouth City Council,PCC,Adult Social Care,Social Care Activities,Adult Services,Third Party Payments,Other establishments,11/10/19,6325828,-189.21,VENDOR,BLUEBELL NURSING HOME,100112
Portsmouth City Council,PCC,Adult Social Care,Social Care Activities,Adult Services,Third Party Payments,Other establishments,11/10/19,6325828,733.19,VENDOR,BLUEBELL NURSING HOME,100112
Portsmouth City Council,PCC,Adult Social Care,Social Care Activities,Adult Services,Third Party Payments,Other establishments,11/10/19,6325828,733.19,VENDOR,BLUEBELL NURSING HOME,100112
Portsmouth City Council,PCC,Adult Social Care,Social Care Activities,Adult Services,Third Party Payments,Other establishments,11/10/19,6325828,733.19,VENDOR,BLUEBELL NURSING HOME,100112
Portsmouth City Council,PCC,Cultural and Related Services,Open Spaces,"Culture, Leisure & Regulatory Services",Premises-Related Expenditure,Grounds maintenance costs,24/10/19,6328499,3459.1,COMPANY,BARHILL PLANT LTD,100355
Portsmouth City Council,PCC,Environmental and Regulatory Services,Agricultural and Fisheries Services,Portsmouth International Port,Premises-Related Expenditure,"Repairs, alterations and maintenance of buildings",31/10/19,6329920,2650,COMPANY,ML (UK) LTD,101018
Portsmouth City Council,PCC,Cultural and Related Services,Open Spaces,"Culture, Leisure & Regulatory Services",Premises-Related Expenditure,"Repairs, alterations and maintenance of buildings",24/10/19,6328500,1942.62,COMPANY,BARHILL PLANT LTD,100355
Portsmouth City Council,PCC,Cultural and Related Services,Open Spaces,"Culture, Leisure & Regulatory Services",Premises-Related Expenditure,Grounds maintenance costs,24/10/19,6328500,4056.42,COMPANY,BARHILL PLANT LTD,100355
Portsmouth City Council,PCC,Other,Suspense and Capital Schemes,Capital - Culture & City Development,Capital Charges,Capital Expenditure (WIP),24/10/19,6328500,2976.21,COMPANY,BARHILL PLANT LTD,100355
Portsmouth City Council,PCC,Cultural and Related Services,Open Spaces,"Culture, Leisure & Regulatory Services",Third Party Payments,Private contractors,14/10/19,6326110,118.95,COMPANY,BARHILL PLANT LTD,100355
Portsmouth City Council,PCC,Cultural and Related Services,Open Spaces,"Culture, Leisure & Regulatory Services",Third Party Payments,Private contractors,14/10/19,6326110,698.5,COMPANY,BARHILL PLANT LTD,100355
Portsmouth City Council,PCC,Cultural and Related Services,Open Spaces,"Culture, Leisure & Regulatory Services",Third Party Payments,Private contractors,14/10/19,6326110,39.5,COMPANY,BARHILL PLANT LTD,100355
Portsmouth City Council,PCC,Cultural and Related Services,Open Spaces,"Culture, Leisure & Regulatory Services",Third Party Payments,Private contractors,14/10/19,6326110,199.9,COMPANY,BARHILL PLANT LTD,100355
Portsmouth City Council,PCC,Cultural and Related Services,Open Spaces,"Culture, Leisure & Regulatory Services",Third Party Payments,Private contractors,14/10/19,6326110,225.5,COMPANY,BARHILL PLANT LTD,100355
Portsmouth City Council,PCC,Cultural and Related Services,Open Spaces,"Culture, Leisure & Regulatory Services",Third Party Payments,Private contractors,14/10/19,6326110,82.5,COMPANY,BARHILL PLANT LTD,100355
Portsmouth City Council,PCC,Cultural and Related Services,Open Spaces,"Culture, Leisure & Regulatory Services",Third Party Payments,Private contractors,14/10/19,6326110,1075.75,COMPANY,BARHILL PLANT LTD,100355
Portsmouth City Council,PCC,Cultural and Related Services,Open Spaces,"Culture, Leisure & Regulatory Services",Third Party Payments,Private contractors,14/10/19,6326110,297.5,COMPANY,BARHILL PLANT LTD,100355
Portsmouth City Council,PCC,Cultural and Related Services,Open Spaces,"Culture, Leisure & Regulatory Services",Third Party Payments,Private contractors,14/10/19,6326110,111.5,COMPANY,BARHILL PLANT LTD,100355
Portsmouth City Council,PCC,Cultural and Related Services,Open Spaces,"Culture, Leisure & Regulatory Services",Third Party Payments,Private contractors,14/10/19,6326110,235.7,COMPANY,BARHILL PLANT LTD,100355
Portsmouth City Council,PCC,Cultural and Related Services,Open Spaces,"Culture, Leisure & Regulatory Services",Third Party Payments,Private contractors,28/10/19,6328924,100,COMPANY,BARHILL PLANT LTD,100355
Portsmouth City Council,PCC,Cultural and Related Services,Open Spaces,"Culture, Leisure & Regulatory Services",Premises-Related Expenditure,"Repairs, alterations and maintenance of buildings",28/10/19,6328924,90,COMPANY,BARHILL PLANT LTD,100355
Portsmouth City Council,PCC,Cultural and Related Services,Open Spaces,"Culture, Leisure & Regulatory Services",Premises-Related Expenditure,"Repairs, alterations and maintenance of buildings",28/10/19,6328924,49.75,COMPANY,BARHILL PLANT LTD,100355
Portsmouth City Council,PCC,Cultural and Related Services,Open Spaces,"Culture, Leisure & Regulatory Services",Third Party Payments,Private contractors,28/10/19,6328924,1050,COMPANY,BARHILL PLANT LTD,100355
Portsmouth City Council,PCC,Other,Suspense and Capital Schemes,Capital - Education,Capital Charges,Capital Expenditure (WIP),22/10/19,6327882,1849.68,COMPANY,HAMPSHIRE PARTITIONING CONTRACTS LTD,104637
Portsmouth City Council,PCC,Adult Social Care,Social Care Activities,Adult Services,Third Party Payments,Other establishments,11/10/19,6325828,733.19,VENDOR,BLUEBELL NURSING HOME,100112
Portsmouth City Council,PCC,Adult Social Care,Social Care Activities,Adult Services,Third Party Payments,Other establishments,11/10/19,6325828,733.19,VENDOR,BLUEBELL NURSING HOME,100112
Portsmouth City Council,PCC,Adult Social Care,Social Care Activities,Adult Services,Third Party Payments,Other establishments,11/10/19,6325828,733.19,VENDOR,BLUEBELL NURSING HOME,100112
Portsmouth City Council,PCC,Environmental and Regulatory Services,Agricultural and Fisheries Services,Portsmouth International Port,Premises-Related Expenditure,"Repairs, alterations and maintenance of buildings",10/10/19,6325734,265,VENDOR,KEN BROWN BOATS LTD,100926
Portsmouth City Council,PCC,Adult Social Care,Social Care Activities,Adult Services,Third Party Payments,Other establishments,11/10/19,6325828,733.19,VENDOR,BLUEBELL NURSING HOME,100112
Portsmouth City Council,PCC,Adult Social Care,Social Care Activities,Adult Services,Third Party Payments,Other establishments,11/10/19,6325828,733.19,VENDOR,BLUEBELL NURSING HOME,100112
Portsmouth City Council,PCC,Adult Social Care,Social Care Activities,Adult Services,Third Party Payments,Other establishments,11/10/19,6325828,733.19,VENDOR,BLUEBELL NURSING HOME,100112
Portsmouth City Council,PCC,Adult Social Care,Social Care Activities,Adult Services,Third Party Payments,Other establishments,11/10/19,6325828,733.19,VENDOR,BLUEBELL NURSING HOME,100112
Portsmouth City Council,PCC,Adult Social Care,Social Care Activities,Adult Services,Third Party Payments,Other establishments,11/10/19,6325828,733.19,VENDOR,BLUEBELL NURSING HOME,100112
Portsmouth City Council,PCC,Environmental and Regulatory Services,Agricultural and Fisheries Services,Portsmouth International Port,Third Party Payments,Private contractors,10/10/19,6325734,298.68,VENDOR,KEN BROWN BOATS LTD,100926
Portsmouth City Council,PCC,Environmental and Regulatory Services,Agricultural and Fisheries Services,Portsmouth International Port,Third Party Payments,Private contractors,17/10/19,6327086,2949.8,VENDOR,KEN BROWN BOATS LTD,100926
Portsmouth City Council,PCC,Adult Social Care,Social Care Activities,Adult Services,Third Party Payments,Other establishments,11/10/19,6325828,733.19,VENDOR,BLUEBELL NURSING HOME,100112
Portsmouth City Council,PCC,Adult Social Care,Learning Disability Support  Adults (18 - 64),Adult Services,Third Party Payments,Other establishments,29/10/19,6329236,1318.4,VENDOR,SOUTHAMPTON SPECIAL PURPOSE WORKSHOP LTD,117819
Portsmouth City Council,PCC,Other,Suspense and Capital Schemes,Capital - Housing RA,Capital Charges,Capital Expenditure (WIP),03/10/19,6324618,7524,VENDOR,RIDGE AND PARTNERS LLP,139659
Portsmouth City Council,PCC,Adult Social Care,Social Care Activities,Adult Services,Third Party Payments,Other establishments,11/10/19,6325828,733.19,VENDOR,BLUEBELL NURSING HOME,100112
Portsmouth City Council,PCC,Highways and Transport Services,"Airports, Harbours and Toll Facilities",Portsmouth International Port,Premises-Related Expenditure,"Repairs, alterations and maintenance of buildings",17/10/19,6327009,650,VENDOR,CAMEO SYSTEMS LTD,142855
Portsmouth City Council,PCC,Highways and Transport Services,"Airports, Harbours and Toll Facilities",Portsmouth International Port,Supplies and Services,"Equipment, furniture and materials",10/10/19,6325655,5934,VENDOR,CAPCOM LAND SEA & AIR COMMUNICATIONS LIMITED,102054
Portsmouth City Council,PCC,Adult Social Care,Support with Memory and Cognition Older People (85+),Adult Services,Third Party Payments,Other establishments,11/10/19,6326048,3006.94,VENDOR,SOMERSET CARE LTD,130076
Portsmouth City Council,PCC,Planning Services,Building Control,Regeneration,Third Party Payments,Other agencies,30/10/19,6329751,483.75,COMPANY,GS BUILDING SERVICES LIMITED,121614
Portsmouth City Council,PCC,Children's and Education Services,Other Education and Community Budget,Regeneration,Supplies and Services,Miscellaneous expenses,21/10/19,6327341,570,VENDOR,MALLINA GROUP,138248
Portsmouth City Council,PCC,Children's and Education Services,Management and Support Services,Children's Services and Education,Supplies and Services,Miscellaneous expenses,24/10/19,6328577,570,VENDOR,MALLINA GROUP,138248
Portsmouth City Council,PCC,Adult Social Care,Learning Disability Support  Adults (18 - 64),Adult Services,Third Party Payments,Other establishments,29/10/19,6329216,2227.5,VENDOR,OPTIONS DAY SERVICE LTD,107273
Portsmouth City Council,PCC,Adult Social Care,Learning Disability Support  Adults (18 - 64),Adult Services,Third Party Payments,Other establishments,29/10/19,6329216,1018.56,VENDOR,OPTIONS DAY SERVICE LTD,107273
Portsmouth City Council,PCC,Adult Social Care,Learning Disability Support  Adults (18 - 64),Adult Services,Third Party Payments,Other establishments,29/10/19,6329216,148.32,VENDOR,OPTIONS DAY SERVICE LTD,107273
Portsmouth City Council,PCC,Adult Social Care,Learning Disability Support  Adults (18 - 64),Adult Services,Third Party Payments,Other establishments,29/10/19,6329216,831.6,VENDOR,OPTIONS DAY SERVICE LTD,107273
Portsmouth City Council,PCC,Adult Social Care,Learning Disability Support  Adults (18 - 64),Adult Services,Third Party Payments,Other establishments,29/10/19,6329216,197.76,VENDOR,OPTIONS DAY SERVICE LTD,107273
Portsmouth City Council,PCC,Adult Social Care,Learning Disability Support  Adults (18 - 64),Adult Services,Third Party Payments,Other establishments,29/10/19,6329216,457.92,VENDOR,OPTIONS DAY SERVICE LTD,107273
Portsmouth City Council,PCC,Adult Social Care,Learning Disability Support  Adults (18 - 64),Adult Services,Third Party Payments,Other establishments,29/10/19,6329216,51.52,VENDOR,OPTIONS DAY SERVICE LTD,107273
Portsmouth City Council,PCC,Adult Social Care,Learning Disability Support  Adults (18 - 64),Adult Services,Third Party Payments,Other establishments,29/10/19,6329216,148.32,VENDOR,OPTIONS DAY SERVICE LTD,107273
Portsmouth City Council,PCC,Adult Social Care,Learning Disability Support  Adults (18 - 64),Adult Services,Third Party Payments,Other establishments,29/10/19,6329216,950.52,VENDOR,OPTIONS DAY SERVICE LTD,107273
Portsmouth City Council,PCC,Adult Social Care,Learning Disability Support  Adults (18 - 64),Adult Services,Third Party Payments,Other establishments,11/10/19,6326015,5871,VENDOR,PRECIOUS HOMES LTD,135973
Portsmouth City Council,PCC,Adult Social Care,Mental Health Support Adults (18 - 64),Adult Services,Third Party Payments,Other establishments,15/10/19,6326407,2078.83,VENDOR,SHINE PARTNERSHIP LTD,144648
Portsmouth City Council,PCC,Adult Social Care,Mental Health Support Older People (65 - 74),Adult Services,Third Party Payments,Other establishments,15/10/19,6326428,684.69,VENDOR,TWO SAINTS LTD,102584
Portsmouth City Council,PCC,Adult Social Care,Mental Health Support Adults (18 - 64),Adult Services,Third Party Payments,Other establishments,15/10/19,6326428,733.89,VENDOR,TWO SAINTS LTD,102584
Portsmouth City Council,PCC,Adult Social Care,Mental Health Support Adults (18 - 64),Adult Services,Third Party Payments,Other establishments,15/10/19,6326428,733.89,VENDOR,TWO SAINTS LTD,102584
Portsmouth City Council,PCC,Adult Social Care,Mental Health Support Adults (18 - 64),Adult Services,Third Party Payments,Other establishments,15/10/19,6326428,1754.27,VENDOR,TWO SAINTS LTD,102584
Portsmouth City Council,PCC,Adult Social Care,Mental Health Support Adults (18 - 64),Adult Services,Third Party Payments,Other establishments,15/10/19,6326428,1754.27,VENDOR,TWO SAINTS LTD,102584
Portsmouth City Council,PCC,Adult Social Care,Mental Health Support Adults (18 - 64),Adult Services,Third Party Payments,Other establishments,15/10/19,6326428,877.16,VENDOR,TWO SAINTS LTD,102584
Portsmouth City Council,PCC,Adult Social Care,Mental Health Support Adults (18 - 64),Adult Services,Third Party Payments,Other establishments,15/10/19,6326428,877.16,VENDOR,TWO SAINTS LTD,102584
Portsmouth City Council,PCC,Adult Social Care,Mental Health Support Adults (18 - 64),Adult Services,Third Party Payments,Other establishments,15/10/19,6326428,1754.27,VENDOR,TWO SAINTS LTD,102584
Portsmouth City Council,PCC,Adult Social Care,Mental Health Support Adults (18 - 64),Adult Services,Third Party Payments,Other establishments,15/10/19,6326428,1754.27,VENDOR,TWO SAINTS LTD,102584
Portsmouth City Council,PCC,Adult Social Care,Mental Health Support Adults (18 - 64),Adult Services,Third Party Payments,Other establishments,15/10/19,6326428,1754.27,VENDOR,TWO SAINTS LTD,102584
Portsmouth City Council,PCC,Adult Social Care,Mental Health Support Adults (18 - 64),Adult Services,Third Party Payments,Other establishments,15/10/19,6326428,1754.27,VENDOR,TWO SAINTS LTD,102584
Portsmouth City Council,PCC,Children's and Education Services,Special Schools,Children's Services and Education,Third Party Payments,Other establishments,21/10/19,6327316,21644.42,VENDOR,FAIRWAYS CARE (UK) LTD,111915
Portsmouth City Council,PCC,Planning Services,Business support,Regeneration,Supplies and Services,"Equipment, furniture and materials",25/10/19,6328771,465,VENDOR,KALTZ LIMITED,128474
Portsmouth City Council,PCC,Support Service / Transparency Costs Unallocated,Financial Services,Finance & Revenues,Supplies and Services,Communications and computing,04/10/19,6324760,26562.32,VENDOR,ORACLE CORPORATION UK LTD,100470
Portsmouth City Council,PCC,Adult Social Care,Social Care Activities,Adult Services,Third Party Payments,Other establishments,29/10/19,6329146,360.6,VENDOR,APPLETREE SUPPORT LTD,126285
Portsmouth City Council,PCC,Adult Social Care,Social Care Activities,Adult Services,Third Party Payments,Other establishments,29/10/19,6329146,2812.68,VENDOR,APPLETREE SUPPORT LTD,126285
Portsmouth City Council,PCC,Adult Social Care,Learning Disability Support  Adults (18 - 64),Adult Services,Third Party Payments,Other establishments,29/10/19,6329146,955.59,VENDOR,APPLETREE SUPPORT LTD,126285
Portsmouth City Council,PCC,Children's and Education Services,Asylum seekers,Children's Services and Education,Third Party Payments,Other establishments,18/10/19,6327190,3786,VENDOR,FAIRWAYS CARE (UK) LTD,111915
Portsmouth City Council,PCC,Planning Services,Business support,Regeneration,Supplies and Services,"Equipment, furniture and materials",16/10/19,6326913,547.76,VENDOR,IN 2 EVENTS LIMITED,127383
Portsmouth City Council,PCC,Planning Services,Business support,Regeneration,Supplies and Services,"Equipment, furniture and materials",16/10/19,6326913,613.32,VENDOR,IN 2 EVENTS LIMITED,127383
Portsmouth City Council,PCC,Planning Services,Business support,Regeneration,Supplies and Services,"Equipment, furniture and materials",16/10/19,6326913,75,VENDOR,IN 2 EVENTS LIMITED,127383
Portsmouth City Council,PCC,Children's and Education Services,Children Looked After,Children's Services and Education,Third Party Payments,Other establishments,02/10/19,6324014,4771.76,VENDOR,FAMILYPLACEMENT.COM LIMITED,137231
Portsmouth City Council,PCC,Children's and Education Services,Children Looked After,Children's Services and Education,Third Party Payments,Other establishments,02/10/19,6324014,4103.96,VENDOR,FAMILYPLACEMENT.COM LIMITED,137231
Portsmouth City Council,PCC,Children's and Education Services,Children Looked After,Children's Services and Education,Third Party Payments,Other establishments,21/10/19,6327317,4771.76,VENDOR,FAMILYPLACEMENT.COM LIMITED,137231
Portsmouth City Council,PCC,Children's and Education Services,Children Looked After,Children's Services and Education,Third Party Payments,Other establishments,21/10/19,6327317,4103.96,VENDOR,FAMILYPLACEMENT.COM LIMITED,137231
Portsmouth City Council,PCC,Housing Revenue Account,Supervision and Management,"Housing, Neighbourhood and Building Services",Supplies and Services,Grants and subscriptions,25/10/19,6328736,40.62,VENDOR,FARESHARE,143806
Portsmouth City Council,PCC,Housing Revenue Account,Supervision and Management,"Housing, Neighbourhood and Building Services",Supplies and Services,Grants and subscriptions,25/10/19,6328736,40.62,VENDOR,FARESHARE,143806
Portsmouth City Council,PCC,Housing Revenue Account,Supervision and Management,"Housing, Neighbourhood and Building Services",Supplies and Services,Grants and subscriptions,25/10/19,6328736,40.62,VENDOR,FARESHARE,143806
Portsmouth City Council,PCC,Housing Revenue Account,Supervision and Management,"Housing, Neighbourhood and Building Services",Supplies and Services,Grants and subscriptions,25/10/19,6328736,40.62,VENDOR,FARESHARE,143806
Portsmouth City Council,PCC,Housing Revenue Account,Supervision and Management,"Housing, Neighbourhood and Building Services",Supplies and Services,Grants and subscriptions,25/10/19,6328736,40.62,VENDOR,FARESHARE,143806
Portsmouth City Council,PCC,Housing Revenue Account,Supervision and Management,"Housing, Neighbourhood and Building Services",Supplies and Services,Grants and subscriptions,25/10/19,6328736,40.62,VENDOR,FARESHARE,143806
Portsmouth City Council,PCC,Housing Revenue Account,Supervision and Management,"Housing, Neighbourhood and Building Services",Supplies and Services,Grants and subscriptions,25/10/19,6328736,40.62,VENDOR,FARESHARE,143806
Portsmouth City Council,PCC,Housing Revenue Account,Supervision and Management,"Housing, Neighbourhood and Building Services",Supplies and Services,Grants and subscriptions,25/10/19,6328736,243.75,VENDOR,FARESHARE,143806
Portsmouth City Council,PCC,Housing Revenue Account,Supervision and Management,"Housing, Neighbourhood and Building Services",Supplies and Services,Grants and subscriptions,25/10/19,6328736,40.62,VENDOR,FARESHARE,143806
Portsmouth City Council,PCC,Housing Revenue Account,Supervision and Management,"Housing, Neighbourhood and Building Services",Supplies and Services,Grants and subscriptions,25/10/19,6328736,40.62,VENDOR,FARESHARE,143806
Portsmouth City Council,PCC,Housing Revenue Account,Supervision and Management,"Housing, Neighbourhood and Building Services",Supplies and Services,Grants and subscriptions,25/10/19,6328736,40.62,VENDOR,FARESHARE,143806
Portsmouth City Council,PCC,Housing Revenue Account,Supervision and Management,"Housing, Neighbourhood and Building Services",Supplies and Services,Grants and subscriptions,25/10/19,6328736,40.62,VENDOR,FARESHARE,143806
Portsmouth City Council,PCC,Housing Revenue Account,Supervision and Management,"Housing, Neighbourhood and Building Services",Supplies and Services,Grants and subscriptions,25/10/19,6328736,40.62,VENDOR,FARESHARE,143806
Portsmouth City Council,PCC,Adult Social Care,Social Care Activities,Adult Services,Third Party Payments,Other establishments,11/10/19,6325828,425.73,VENDOR,BLUEBELL NURSING HOME,100112
Portsmouth City Council,PCC,Adult Social Care,Social Care Activities,Adult Services,Third Party Payments,Other establishments,11/10/19,6325828,733.19,VENDOR,BLUEBELL NURSING HOME,100112
Portsmouth City Council,PCC,Adult Social Care,Social Care Activities,Adult Services,Third Party Payments,Other establishments,11/10/19,6325828,733.19,VENDOR,BLUEBELL NURSING HOME,100112
Portsmouth City Council,PCC,Adult Social Care,Social Care Activities,Adult Services,Third Party Payments,Other establishments,11/10/19,6325828,733.19,VENDOR,BLUEBELL NURSING HOME,100112
Portsmouth City Council,PCC,Adult Social Care,Physical Support Older People (85+),Adult Services,Third Party Payments,Other establishments,11/10/19,6325828,3317,VENDOR,BLUEBELL NURSING HOME,100112
Portsmouth City Council,PCC,Children's and Education Services,Other Education and Community Budget,Children's Services and Education,Transport-Related Expenditure,Car allowances,29/10/19,6329219,875,VENDOR,PDS AUTOS LTD,143908
Portsmouth City Council,PCC,Children's and Education Services,Other Education and Community Budget,Children's Services and Education,Transport-Related Expenditure,Car allowances,29/10/19,6329219,660,VENDOR,PDS AUTOS LTD,143908
Portsmouth City Council,PCC,Children's and Education Services,Other Education and Community Budget,Children's Services and Education,Transport-Related Expenditure,Car allowances,29/10/19,6329219,1520,VENDOR,PDS AUTOS LTD,143908
Portsmouth City Council,PCC,Children's and Education Services,Other Education and Community Budget,Children's Services and Education,Transport-Related Expenditure,Car allowances,30/10/19,6329778,1421.2,VENDOR,PDS AUTOS LTD,143908
Portsmouth City Council,PCC,Adult Social Care,Physical Support Older People (85+),Adult Services,Third Party Payments,Other establishments,11/10/19,6325828,2465.12,VENDOR,BLUEBELL NURSING HOME,100112
Portsmouth City Council,PCC,Adult Social Care,Physical Support Older People (85+),Adult Services,Third Party Payments,Other establishments,25/10/19,6328767,556.2,VENDOR,JSM DAYCENTRES LTD T/AS AS THE LODGE,144000
Portsmouth City Council,PCC,Adult Social Care,Physical Support Older People (85+),Adult Services,Third Party Payments,Other establishments,25/10/19,6328767,185.4,VENDOR,JSM DAYCENTRES LTD T/AS AS THE LODGE,144000
Portsmouth City Council,PCC,Other,Suspense and Capital Schemes,Capital - Leader - Port,Capital Charges,Capital Expenditure (WIP),10/10/19,6325649,-4624.33,VENDOR,ATKINS LIMITED,108809
Portsmouth City Council,PCC,Highways and Transport Services,"Transport Planning, Policy and Strategy",Regeneration,Supplies and Services,Services,23/10/19,6327971,-23472.96,VENDOR,ATKINS LIMITED,108809
Portsmouth City Council,PCC,Housing Revenue Account,Supervision and Management,"Housing, Neighbourhood and Building Services",Supplies and Services,Grants and subscriptions,25/10/19,6328736,40.62,VENDOR,FARESHARE,143806
Portsmouth City Council,PCC,Adult Social Care,Social Care Activities,Adult Services,Third Party Payments,Other establishments,11/10/19,6326044,4057.4,VENDOR,Classified as 'personal data' (under the Data Protection Act 2018),144767
Portsmouth City Council,PCC,Adult Social Care,Physical Support Older People (85+),Adult Services,Third Party Payments,Other establishments,23/10/19,6327964,151.92,VENDOR,ALLIED HEALTH-SERVICES LIMITED,137338
Portsmouth City Council,PCC,Adult Social Care,Physical Support Older People (85+),Adult Services,Third Party Payments,Other establishments,23/10/19,6327964,1046.56,VENDOR,ALLIED HEALTH-SERVICES LIMITED,137338
Portsmouth City Council,PCC,Adult Social Care,Social Care Activities,Adult Services,Third Party Payments,Other establishments,10/10/19,6325642,1306,VENDOR,AQUA CARS LIMITED,100011
Portsmouth City Council,PCC,Adult Social Care,Learning Disability Support  Adults (18 - 64),Adult Services,Transport-Related Expenditure,Public transport,24/10/19,6328495,1666,VENDOR,AQUA CARS LIMITED,100011
Portsmouth City Council,PCC,Adult Social Care,Social Care Activities,Adult Services,Third Party Payments,Other establishments,14/10/19,6326106,418,VENDOR,AQUA CARS LIMITED,100011
Portsmouth City Council,PCC,Adult Social Care,Physical Support Adults (18 - 64),Adult Services,Third Party Payments,Other establishments,14/10/19,6326106,75,VENDOR,AQUA CARS LIMITED,100011
Portsmouth City Council,PCC,Adult Social Care,Learning Disability Support  Adults (18 - 64),Adult Services,Transport-Related Expenditure,Public transport,07/10/19,6324834,2157.6,VENDOR,AQUA CARS LIMITED,100011
Portsmouth City Council,PCC,Adult Social Care,Learning Disability Support  Adults (18 - 64),Adult Services,Transport-Related Expenditure,Public transport,15/10/19,6326260,2353.7,VENDOR,AQUA CARS LIMITED,100011
Portsmouth City Council,PCC,Adult Social Care,Learning Disability Support  Adults (18 - 64),Adult Services,Transport-Related Expenditure,Public transport,23/10/19,6327967,2358.8,VENDOR,AQUA CARS LIMITED,100011
Portsmouth City Council,PCC,Adult Social Care,Social Care Activities,Adult Services,Transport-Related Expenditure,Direct transport costs,23/10/19,6327967,9.2,VENDOR,AQUA CARS LIMITED,100011
Portsmouth City Council,PCC,Adult Social Care,Learning Disability Support  Adults (18 - 64),Adult Services,Transport-Related Expenditure,Public transport,29/10/19,6329147,2347.7,VENDOR,AQUA CARS LIMITED,100011
Portsmouth City Council,PCC,Adult Social Care,Social Care Activities,Adult Services,Transport-Related Expenditure,Direct transport costs,29/10/19,6329147,30.3,VENDOR,AQUA CARS LIMITED,100011
Portsmouth City Council,PCC,Adult Social Care,Commissioning & service delivery,Adult Services,Employees,Indirect employee expenses,17/10/19,6326995,2700,VENDOR,ASPIRE LEARNING & DEVELOPMENT LIMITED,130932
Portsmouth City Council,PCC,Adult Social Care,Commissioning & service delivery,Adult Services,Employees,Indirect employee expenses,17/10/19,6326995,285,VENDOR,ASPIRE LEARNING & DEVELOPMENT LIMITED,130932
Portsmouth City Council,PCC,Adult Social Care,Physical Support Older People (85+),Adult Services,Third Party Payments,Other establishments,11/10/19,6325814,2759.62,VENDOR,ATHENA CARE HOMES (UK) LIMITED,144812
Portsmouth City Council,PCC,Adult Social Care,Support with Memory and Cognition Older People (85+),Adult Services,Third Party Payments,Other establishments,11/10/19,6325819,2172,VENDOR,AVENUE CARE (FAREHAM) LIMITED,125285
Portsmouth City Council,PCC,Adult Social Care,Support with Memory and Cognition Older People (85+),Adult Services,Third Party Payments,Other establishments,11/10/19,6325819,2244.4,VENDOR,AVENUE CARE (FAREHAM) LIMITED,125285
Portsmouth City Council,PCC,Adult Social Care,Social Care Activities,Adult Services,Third Party Payments,Other establishments,11/10/19,6325832,4470.2,VENDOR,BRAEMAR RCH LIMITED,102015
Portsmouth City Council,PCC,Adult Social Care,Social Care Activities,Adult Services,Third Party Payments,Other establishments,11/10/19,6325832,-1400.63,VENDOR,BRAEMAR RCH LIMITED,102015
Portsmouth City Council,PCC,Adult Social Care,Social Care Activities,Adult Services,Third Party Payments,Other establishments,11/10/19,6325832,3720,VENDOR,BRAEMAR RCH LIMITED,102015
Portsmouth City Council,PCC,Adult Social Care,Social Care Activities,Adult Services,Third Party Payments,Other establishments,11/10/19,6325832,3831.6,VENDOR,BRAEMAR RCH LIMITED,102015
Portsmouth City Council,PCC,Adult Social Care,Social Care Activities,Adult Services,Third Party Payments,Other establishments,11/10/19,6325832,1782.86,VENDOR,BRAEMAR RCH LIMITED,102015
Portsmouth City Council,PCC,Adult Social Care,Social Care Activities,Adult Services,Third Party Payments,Other establishments,11/10/19,6325832,4030,VENDOR,BRAEMAR RCH LIMITED,102015
Portsmouth City Council,PCC,Adult Social Care,Social Care Activities,Adult Services,Third Party Payments,Other establishments,11/10/19,6325832,3342.86,VENDOR,BRAEMAR RCH LIMITED,102015
Portsmouth City Council,PCC,Adult Social Care,Social Care Activities,Adult Services,Third Party Payments,Other establishments,11/10/19,6325832,733.19,VENDOR,BRAEMAR RCH LIMITED,102015
Portsmouth City Council,PCC,Adult Social Care,Social Care Activities,Adult Services,Third Party Payments,Other establishments,11/10/19,6325832,733.19,VENDOR,BRAEMAR RCH LIMITED,102015
Portsmouth City Council,PCC,Adult Social Care,Social Care Activities,Adult Services,Third Party Payments,Other establishments,11/10/19,6325832,733.19,VENDOR,BRAEMAR RCH LIMITED,102015
Portsmouth City Council,PCC,Adult Social Care,Social Care Activities,Adult Services,Third Party Payments,Other establishments,11/10/19,6325832,733.19,VENDOR,BRAEMAR RCH LIMITED,102015
Portsmouth City Council,PCC,Adult Social Care,Social Care Activities,Adult Services,Third Party Payments,Other establishments,11/10/19,6325832,733.19,VENDOR,BRAEMAR RCH LIMITED,102015
Portsmouth City Council,PCC,Adult Social Care,Social Care Activities,Adult Services,Third Party Payments,Other establishments,11/10/19,6325832,733.19,VENDOR,BRAEMAR RCH LIMITED,102015
Portsmouth City Council,PCC,Adult Social Care,Social Care Activities,Adult Services,Third Party Payments,Other establishments,11/10/19,6325832,733.19,VENDOR,BRAEMAR RCH LIMITED,102015
Portsmouth City Council,PCC,Adult Social Care,Social Care Activities,Adult Services,Third Party Payments,Other establishments,11/10/19,6325832,733.19,VENDOR,BRAEMAR RCH LIMITED,102015
Portsmouth City Council,PCC,Adult Social Care,Social Care Activities,Adult Services,Third Party Payments,Other establishments,11/10/19,6325832,733.19,VENDOR,BRAEMAR RCH LIMITED,102015
Portsmouth City Council,PCC,Adult Social Care,Social Care Activities,Adult Services,Third Party Payments,Other establishments,11/10/19,6325832,733.19,VENDOR,BRAEMAR RCH LIMITED,102015
Portsmouth City Council,PCC,Adult Social Care,Social Care Activities,Adult Services,Third Party Payments,Other establishments,11/10/19,6325832,733.19,VENDOR,BRAEMAR RCH LIMITED,102015
Portsmouth City Council,PCC,Adult Social Care,Social Care Activities,Adult Services,Third Party Payments,Other establishments,11/10/19,6325832,733.19,VENDOR,BRAEMAR RCH LIMITED,102015
Portsmouth City Council,PCC,Adult Social Care,Social Care Activities,Adult Services,Third Party Payments,Other establishments,11/10/19,6325832,733.19,VENDOR,BRAEMAR RCH LIMITED,102015
Portsmouth City Council,PCC,Adult Social Care,Social Care Activities,Adult Services,Third Party Payments,Other establishments,11/10/19,6325832,733.19,VENDOR,BRAEMAR RCH LIMITED,102015
Portsmouth City Council,PCC,Adult Social Care,Social Care Activities,Adult Services,Third Party Payments,Other establishments,11/10/19,6325832,733.19,VENDOR,BRAEMAR RCH LIMITED,102015
Portsmouth City Council,PCC,Adult Social Care,Social Care Activities,Adult Services,Third Party Payments,Other establishments,11/10/19,6325832,733.19,VENDOR,BRAEMAR RCH LIMITED,102015
Portsmouth City Council,PCC,Adult Social Care,Social Care Activities,Adult Services,Third Party Payments,Other establishments,11/10/19,6325832,733.19,VENDOR,BRAEMAR RCH LIMITED,102015
Portsmouth City Council,PCC,Adult Social Care,Social Care Activities,Adult Services,Third Party Payments,Other establishments,11/10/19,6325832,733.19,VENDOR,BRAEMAR RCH LIMITED,102015
Portsmouth City Council,PCC,Adult Social Care,Social Care Activities,Adult Services,Third Party Payments,Other establishments,11/10/19,6325832,733.19,VENDOR,BRAEMAR RCH LIMITED,102015
Portsmouth City Council,PCC,Adult Social Care,Social Care Activities,Adult Services,Third Party Payments,Other establishments,11/10/19,6325832,733.19,VENDOR,BRAEMAR RCH LIMITED,102015
Portsmouth City Council,PCC,Adult Social Care,Social Care Activities,Adult Services,Third Party Payments,Other establishments,11/10/19,6325832,733.19,VENDOR,BRAEMAR RCH LIMITED,102015
Portsmouth City Council,PCC,Adult Social Care,Physical Support Adults (18 - 64),Adult Services,Third Party Payments,Other establishments,11/10/19,6325832,3059.7,VENDOR,BRAEMAR RCH LIMITED,102015
Portsmouth City Council,PCC,Adult Social Care,Physical Support Older People (85+),Adult Services,Third Party Payments,Other establishments,11/10/19,6325832,2873.7,VENDOR,BRAEMAR RCH LIMITED,102015
Portsmouth City Council,PCC,Adult Social Care,Physical Support Older People (85+),Adult Services,Third Party Payments,Other establishments,11/10/19,6325832,2465.12,VENDOR,BRAEMAR RCH LIMITED,102015
Portsmouth City Council,PCC,Adult Social Care,Physical Support Older People (85+),Adult Services,Third Party Payments,Other establishments,11/10/19,6325832,2771.4,VENDOR,BRAEMAR RCH LIMITED,102015
Portsmouth City Council,PCC,Adult Social Care,Physical Support Older People (85+),Adult Services,Third Party Payments,Other establishments,11/10/19,6325832,2771.4,VENDOR,BRAEMAR RCH LIMITED,102015
Portsmouth City Council,PCC,Adult Social Care,Physical Support Older People (85+),Adult Services,Third Party Payments,Other establishments,11/10/19,6325832,2771.4,VENDOR,BRAEMAR RCH LIMITED,102015
Portsmouth City Council,PCC,Adult Social Care,Physical Support Older People (85+),Adult Services,Third Party Payments,Other establishments,11/10/19,6325832,2682,VENDOR,BRAEMAR RCH LIMITED,102015
Portsmouth City Council,PCC,Adult Social Care,Physical Support Older People (85+),Adult Services,Third Party Payments,Other establishments,11/10/19,6325832,-2682,VENDOR,BRAEMAR RCH LIMITED,102015
Portsmouth City Council,PCC,Adult Social Care,Physical Support Older People (85+),Adult Services,Third Party Payments,Other establishments,11/10/19,6325832,1609.2,VENDOR,BRAEMAR RCH LIMITED,102015
Portsmouth City Council,PCC,Adult Social Care,Physical Support Older People (85+),Adult Services,Third Party Payments,Other establishments,11/10/19,6325832,-1609.2,VENDOR,BRAEMAR RCH LIMITED,102015
Portsmouth City Council,PCC,Adult Social Care,Physical Support Older People (85+),Adult Services,Third Party Payments,Other establishments,11/10/19,6325832,2771.4,VENDOR,BRAEMAR RCH LIMITED,102015
Portsmouth City Council,PCC,Adult Social Care,Physical Support Older People (85+),Adult Services,Third Party Payments,Other establishments,11/10/19,6325832,-2771.4,VENDOR,BRAEMAR RCH LIMITED,102015
Portsmouth City Council,PCC,Adult Social Care,Physical Support Older People (85+),Adult Services,Third Party Payments,Other establishments,11/10/19,6325832,2682,VENDOR,BRAEMAR RCH LIMITED,102015
Portsmouth City Council,PCC,Adult Social Care,Physical Support Older People (85+),Adult Services,Third Party Payments,Other establishments,11/10/19,6325832,-2682,VENDOR,BRAEMAR RCH LIMITED,102015
